﻿Organisation name ,Organisation code,Beneficiary,Date,Department,Summary of Purpose,Merchant Category,Amount (Net of VAT)
Wigan Council ,E08000010,Ashtead Plant Hire Company Ltd,22/04/2015,Trading,Transport,Vehicle and Plant Hire,660
Wigan Council ,E08000010,Adult Community Education (Wigan) Ltd,28/04/2015,Provider Management & Market Development,Third Party Payments,Voluntary Day Care,15242.58
Wigan Council ,E08000010,"Ashton, Wigan & District YMCA",01/04/2015,Childrens - Departmental Overheads,Third Party Payments,Nursery Grant Payments,36292.2
Wigan Council ,E08000010,"Ashton, Wigan & District YMCA",30/04/2015,Economic Development & Skills,Third Party Payments,Private Education Services,5912.65
Wigan Council ,E08000010,"Ashton, Wigan & District YMCA",30/04/2015,Economic Development & Skills,Third Party Payments,Private Education Services,2547.66
Wigan Council ,E08000010,Age UK Wigan Borough,28/04/2015,Early Intervention & Prevention,Third Party Payments,Payments to Voluntary Organisations,989.58
Wigan Council ,E08000010,Age UK Wigan Borough,28/04/2015,Early Intervention & Prevention,Third Party Payments,Payments to Voluntary Organisations,3556.97
Wigan Council ,E08000010,Age UK Wigan Borough,28/04/2015,Public Health,Third Party Payments,Payments to Private Contractors,9350
Wigan Council ,E08000010,Age UK Wigan Borough,28/04/2015,Early Intervention & Prevention,Third Party Payments,Payments to Voluntary Organisations,22000
Wigan Council ,E08000010,Appleby Court Nursing Home,01/04/2015,Support & Safeguarding,Third Party Payments,Nursing Care,610.44
Wigan Council ,E08000010,Appleby Court Nursing Home,01/04/2015,Support & Safeguarding,Third Party Payments,Permanent Care,641.14
Wigan Council ,E08000010,Appleby Court Nursing Home,01/04/2015,Support & Safeguarding,Third Party Payments,Respite Care,748
Wigan Council ,E08000010,Appleby Court Nursing Home,01/04/2015,Support & Safeguarding,Third Party Payments,Respite Care,748
Wigan Council ,E08000010,Appleby Court Nursing Home,01/04/2015,Support & Safeguarding,Third Party Payments,Nursing Care,887.12
Wigan Council ,E08000010,Appleby Court Nursing Home,01/04/2015,Support & Safeguarding,Third Party Payments,Respite Care,1122
Wigan Council ,E08000010,Appleby Court Nursing Home,01/04/2015,Support & Safeguarding,Third Party Payments,Nursing Care,1188.11
Wigan Council ,E08000010,Appleby Court Nursing Home,01/04/2015,Support & Safeguarding,Third Party Payments,Permanent Care,1348
Wigan Council ,E08000010,Appleby Court Nursing Home,01/04/2015,Support & Safeguarding,Third Party Payments,Permanent Care,1496
Wigan Council ,E08000010,Appleby Court Nursing Home,01/04/2015,Support & Safeguarding,Third Party Payments,Permanent Care,1496
Wigan Council ,E08000010,Appleby Court Nursing Home,01/04/2015,Support & Safeguarding,Third Party Payments,Permanent Care,1496
Wigan Council ,E08000010,Appleby Court Nursing Home,01/04/2015,Support & Safeguarding,Third Party Payments,Permanent Care,1496
Wigan Council ,E08000010,Appleby Court Nursing Home,01/04/2015,Support & Safeguarding,Third Party Payments,Permanent Care,1496
Wigan Council ,E08000010,Appleby Court Nursing Home,01/04/2015,Support & Safeguarding,Third Party Payments,Permanent Care,1496
Wigan Council ,E08000010,Appleby Court Nursing Home,01/04/2015,Support & Safeguarding,Third Party Payments,Permanent Care,1496
Wigan Council ,E08000010,Appleby Court Nursing Home,01/04/2015,Support & Safeguarding,Third Party Payments,Permanent Care,1496
Wigan Council ,E08000010,Appleby Court Nursing Home,01/04/2015,Support & Safeguarding,Third Party Payments,Permanent Care,1496
Wigan Council ,E08000010,Appleby Court Nursing Home,01/04/2015,Support & Safeguarding,Third Party Payments,Permanent Care,1496
Wigan Council ,E08000010,Appleby Court Nursing Home,01/04/2015,Support & Safeguarding,Third Party Payments,Permanent Care,1496
Wigan Council ,E08000010,Appleby Court Nursing Home,01/04/2015,Support & Safeguarding,Third Party Payments,Permanent Care,1496
Wigan Council ,E08000010,Appleby Court Nursing Home,01/04/2015,Support & Safeguarding,Third Party Payments,Permanent Care,1496
Wigan Council ,E08000010,Appleby Court Nursing Home,01/04/2015,Support & Safeguarding,Third Party Payments,Permanent Care,1496
Wigan Council ,E08000010,Appleby Court Nursing Home,01/04/2015,Support & Safeguarding,Third Party Payments,Permanent Care,1496
Wigan Council ,E08000010,Appleby Court Nursing Home,01/04/2015,Support & Safeguarding,Third Party Payments,Permanent Care,1496
Wigan Council ,E08000010,Appleby Court Nursing Home,01/04/2015,Support & Safeguarding,Third Party Payments,Permanent Care,1496
Wigan Council ,E08000010,Appleby Court Nursing Home,01/04/2015,Support & Safeguarding,Third Party Payments,Permanent Care,1496
Wigan Council ,E08000010,Appleby Court Nursing Home,01/04/2015,Support & Safeguarding,Third Party Payments,Permanent Care,1496
Wigan Council ,E08000010,Appleby Court Nursing Home,01/04/2015,Support & Safeguarding,Third Party Payments,Permanent Care,1496
Wigan Council ,E08000010,Appleby Court Nursing Home,01/04/2015,Support & Safeguarding,Third Party Payments,Permanent Care,1496
Wigan Council ,E08000010,Appleby Court Nursing Home,01/04/2015,Support & Safeguarding,Third Party Payments,Permanent Care,1496
Wigan Council ,E08000010,Appleby Court Nursing Home,01/04/2015,Support & Safeguarding,Third Party Payments,Permanent Care,1496
Wigan Council ,E08000010,Appleby Court Nursing Home,01/04/2015,Support & Safeguarding,Third Party Payments,Permanent Care,1496
Wigan Council ,E08000010,Appleby Court Nursing Home,01/04/2015,Support & Safeguarding,Third Party Payments,Permanent Care,1496
Wigan Council ,E08000010,Appleby Court Nursing Home,01/04/2015,Support & Safeguarding,Third Party Payments,Permanent Care,1496
Wigan Council ,E08000010,Appleby Court Nursing Home,01/04/2015,Support & Safeguarding,Third Party Payments,Permanent Care,1496
Wigan Council ,E08000010,Appleby Court Nursing Home,01/04/2015,Support & Safeguarding,Third Party Payments,Permanent Care,1496
Wigan Council ,E08000010,Appleby Court Nursing Home,01/04/2015,Support & Safeguarding,Third Party Payments,Permanent Care,1496
Wigan Council ,E08000010,Appleby Court Nursing Home,01/04/2015,Support & Safeguarding,Third Party Payments,Permanent Care,1496
Wigan Council ,E08000010,Appleby Court Nursing Home,01/04/2015,Support & Safeguarding,Third Party Payments,Permanent Care,1496
Wigan Council ,E08000010,Appleby Court Nursing Home,01/04/2015,Support & Safeguarding,Third Party Payments,Permanent Care,1496
Wigan Council ,E08000010,Appleby Court Nursing Home,01/04/2015,Support & Safeguarding,Third Party Payments,Permanent Care,1496
Wigan Council ,E08000010,Appleby Court Nursing Home,01/04/2015,Support & Safeguarding,Third Party Payments,Permanent Care,1496
Wigan Council ,E08000010,Appleby Court Nursing Home,01/04/2015,Support & Safeguarding,Third Party Payments,Permanent Care,1496
Wigan Council ,E08000010,Appleby Court Nursing Home,01/04/2015,Support & Safeguarding,Third Party Payments,Permanent Care,1496
Wigan Council ,E08000010,Appleby Court Nursing Home,01/04/2015,Support & Safeguarding,Third Party Payments,Permanent Care,1496
Wigan Council ,E08000010,Appleby Court Nursing Home,01/04/2015,Support & Safeguarding,Third Party Payments,Permanent Care,1547.92
Wigan Council ,E08000010,Appleby Court Nursing Home,01/04/2015,Support & Safeguarding,Third Party Payments,Permanent Care,1547.92
Wigan Council ,E08000010,Appleby Court Nursing Home,01/04/2015,Support & Safeguarding,Third Party Payments,Permanent Care,1656.29
Wigan Council ,E08000010,Appleby Court Nursing Home,01/04/2015,Support & Safeguarding,Third Party Payments,Permanent Care,1684
Wigan Council ,E08000010,Appleby Court Nursing Home,01/04/2015,Support & Safeguarding,Third Party Payments,Permanent Care,1684
Wigan Council ,E08000010,Appleby Court Nursing Home,01/04/2015,Support & Safeguarding,Third Party Payments,Permanent Care,3368
Wigan Council ,E08000010,Appleby Court Nursing Home,01/04/2015,Support & Safeguarding,Third Party Payments,Permanent Care,4510.71
Wigan Council ,E08000010,Appleby Court Nursing Home,01/04/2015,Support & Safeguarding,Third Party Payments,Permanent Care,6431.4
Wigan Council ,E08000010,Appleby Court Nursing Home,01/04/2015,Support & Safeguarding,Third Party Payments,Permanent Care,6600
Wigan Council ,E08000010,Appleby Court Nursing Home,01/04/2015,Support & Safeguarding,Third Party Payments,Permanent Care,6602.96
Wigan Council ,E08000010,Appleby Court Nursing Home,01/04/2015,Support & Safeguarding,Third Party Payments,Permanent Care,6782.96
Wigan Council ,E08000010,Appleby Court Nursing Home,29/04/2015,Support & Safeguarding,Third Party Payments,Nursing Care,572.52
Wigan Council ,E08000010,Appleby Court Nursing Home,29/04/2015,Support & Safeguarding,Third Party Payments,Respite Care,587.71
Wigan Council ,E08000010,Appleby Court Nursing Home,29/04/2015,Support & Safeguarding,Third Party Payments,Nursing Care,616.56
Wigan Council ,E08000010,Appleby Court Nursing Home,29/04/2015,Support & Safeguarding,Third Party Payments,Respite Care,674
Wigan Council ,E08000010,Appleby Court Nursing Home,29/04/2015,Support & Safeguarding,Third Party Payments,Respite Care,854.86
Wigan Council ,E08000010,Appleby Court Nursing Home,29/04/2015,Support & Safeguarding,Third Party Payments,Respite Care,908.29
Wigan Council ,E08000010,Appleby Court Nursing Home,29/04/2015,Support & Safeguarding,Third Party Payments,Respite Care,1122
Wigan Council ,E08000010,Appleby Court Nursing Home,29/04/2015,Support & Safeguarding,Third Party Payments,Respite Care,1335.71
Wigan Council ,E08000010,Appleby Court Nursing Home,29/04/2015,Support & Safeguarding,Third Party Payments,Permanent Care,1348
Wigan Council ,E08000010,Appleby Court Nursing Home,29/04/2015,Support & Safeguarding,Third Party Payments,Permanent Care,1389.14
Wigan Council ,E08000010,Appleby Court Nursing Home,29/04/2015,Support & Safeguarding,Third Party Payments,Permanent Care,1389.14
Wigan Council ,E08000010,Appleby Court Nursing Home,29/04/2015,Support & Safeguarding,Third Party Payments,Permanent Care,1389.14
Wigan Council ,E08000010,Appleby Court Nursing Home,29/04/2015,Support & Safeguarding,Third Party Payments,Permanent Care,1389.14
Wigan Council ,E08000010,Appleby Court Nursing Home,29/04/2015,Support & Safeguarding,Third Party Payments,Permanent Care,1389.14
Wigan Council ,E08000010,Appleby Court Nursing Home,29/04/2015,Support & Safeguarding,Third Party Payments,Permanent Care,1389.14
Wigan Council ,E08000010,Appleby Court Nursing Home,29/04/2015,Support & Safeguarding,Third Party Payments,Permanent Care,1389.14
Wigan Council ,E08000010,Appleby Court Nursing Home,29/04/2015,Support & Safeguarding,Third Party Payments,Permanent Care,1389.14
Wigan Council ,E08000010,Appleby Court Nursing Home,29/04/2015,Support & Safeguarding,Third Party Payments,Permanent Care,1389.14
Wigan Council ,E08000010,Appleby Court Nursing Home,29/04/2015,Support & Safeguarding,Third Party Payments,Permanent Care,1389.14
Wigan Council ,E08000010,Appleby Court Nursing Home,29/04/2015,Support & Safeguarding,Third Party Payments,Permanent Care,1389.14
Wigan Council ,E08000010,Appleby Court Nursing Home,29/04/2015,Support & Safeguarding,Third Party Payments,Permanent Care,1389.14
Wigan Council ,E08000010,Appleby Court Nursing Home,29/04/2015,Support & Safeguarding,Third Party Payments,Permanent Care,1389.14
Wigan Council ,E08000010,Appleby Court Nursing Home,29/04/2015,Support & Safeguarding,Third Party Payments,Permanent Care,1389.14
Wigan Council ,E08000010,Appleby Court Nursing Home,29/04/2015,Support & Safeguarding,Third Party Payments,Permanent Care,1389.14
Wigan Council ,E08000010,Appleby Court Nursing Home,29/04/2015,Support & Safeguarding,Third Party Payments,Permanent Care,1389.14
Wigan Council ,E08000010,Appleby Court Nursing Home,29/04/2015,Support & Safeguarding,Third Party Payments,Permanent Care,1389.14
Wigan Council ,E08000010,Appleby Court Nursing Home,29/04/2015,Support & Safeguarding,Third Party Payments,Permanent Care,1496
Wigan Council ,E08000010,Appleby Court Nursing Home,29/04/2015,Support & Safeguarding,Third Party Payments,Permanent Care,1496
Wigan Council ,E08000010,Appleby Court Nursing Home,29/04/2015,Support & Safeguarding,Third Party Payments,Permanent Care,1496
Wigan Council ,E08000010,Appleby Court Nursing Home,29/04/2015,Support & Safeguarding,Third Party Payments,Permanent Care,1496
Wigan Council ,E08000010,Appleby Court Nursing Home,29/04/2015,Support & Safeguarding,Third Party Payments,Permanent Care,1496
Wigan Council ,E08000010,Appleby Court Nursing Home,29/04/2015,Support & Safeguarding,Third Party Payments,Permanent Care,1496
Wigan Council ,E08000010,Appleby Court Nursing Home,29/04/2015,Support & Safeguarding,Third Party Payments,Permanent Care,1496
Wigan Council ,E08000010,Appleby Court Nursing Home,29/04/2015,Support & Safeguarding,Third Party Payments,Permanent Care,1496
Wigan Council ,E08000010,Appleby Court Nursing Home,29/04/2015,Support & Safeguarding,Third Party Payments,Permanent Care,1496
Wigan Council ,E08000010,Appleby Court Nursing Home,29/04/2015,Support & Safeguarding,Third Party Payments,Permanent Care,1496
Wigan Council ,E08000010,Appleby Court Nursing Home,29/04/2015,Support & Safeguarding,Third Party Payments,Permanent Care,1496
Wigan Council ,E08000010,Appleby Court Nursing Home,29/04/2015,Support & Safeguarding,Third Party Payments,Permanent Care,1496
Wigan Council ,E08000010,Appleby Court Nursing Home,29/04/2015,Support & Safeguarding,Third Party Payments,Permanent Care,1496
Wigan Council ,E08000010,Appleby Court Nursing Home,29/04/2015,Support & Safeguarding,Third Party Payments,Permanent Care,1496
Wigan Council ,E08000010,Appleby Court Nursing Home,29/04/2015,Support & Safeguarding,Third Party Payments,Permanent Care,1496
Wigan Council ,E08000010,Appleby Court Nursing Home,29/04/2015,Support & Safeguarding,Third Party Payments,Respite Care,1496
Wigan Council ,E08000010,Appleby Court Nursing Home,29/04/2015,Support & Safeguarding,Third Party Payments,Respite Care,1496
Wigan Council ,E08000010,Appleby Court Nursing Home,29/04/2015,Support & Safeguarding,Third Party Payments,Respite Care,1496
Wigan Council ,E08000010,Appleby Court Nursing Home,29/04/2015,Support & Safeguarding,Third Party Payments,Permanent Care,1496
Wigan Council ,E08000010,Appleby Court Nursing Home,29/04/2015,Support & Safeguarding,Third Party Payments,Permanent Care,1496
Wigan Council ,E08000010,Appleby Court Nursing Home,29/04/2015,Support & Safeguarding,Third Party Payments,Permanent Care,1496
Wigan Council ,E08000010,Appleby Court Nursing Home,29/04/2015,Support & Safeguarding,Third Party Payments,Permanent Care,1496
Wigan Council ,E08000010,Appleby Court Nursing Home,29/04/2015,Support & Safeguarding,Third Party Payments,Permanent Care,1496
Wigan Council ,E08000010,Appleby Court Nursing Home,29/04/2015,Support & Safeguarding,Third Party Payments,Permanent Care,1496
Wigan Council ,E08000010,Appleby Court Nursing Home,29/04/2015,Support & Safeguarding,Third Party Payments,Permanent Care,1496
Wigan Council ,E08000010,Appleby Court Nursing Home,29/04/2015,Support & Safeguarding,Third Party Payments,Permanent Care,1496
Wigan Council ,E08000010,Appleby Court Nursing Home,29/04/2015,Support & Safeguarding,Third Party Payments,Permanent Care,1496
Wigan Council ,E08000010,Appleby Court Nursing Home,29/04/2015,Support & Safeguarding,Third Party Payments,Permanent Care,1496
Wigan Council ,E08000010,Appleby Court Nursing Home,29/04/2015,Support & Safeguarding,Third Party Payments,Permanent Care,1496
Wigan Council ,E08000010,Appleby Court Nursing Home,29/04/2015,Support & Safeguarding,Third Party Payments,Permanent Care,1496
Wigan Council ,E08000010,Appleby Court Nursing Home,29/04/2015,Support & Safeguarding,Third Party Payments,Permanent Care,1496
Wigan Council ,E08000010,Appleby Court Nursing Home,29/04/2015,Support & Safeguarding,Third Party Payments,Permanent Care,1496
Wigan Council ,E08000010,Appleby Court Nursing Home,29/04/2015,Support & Safeguarding,Third Party Payments,Permanent Care,1496
Wigan Council ,E08000010,Appleby Court Nursing Home,29/04/2015,Support & Safeguarding,Third Party Payments,Permanent Care,1496
Wigan Council ,E08000010,Appleby Court Nursing Home,29/04/2015,Support & Safeguarding,Third Party Payments,Permanent Care,1496
Wigan Council ,E08000010,Appleby Court Nursing Home,29/04/2015,Support & Safeguarding,Third Party Payments,Permanent Care,1496
Wigan Council ,E08000010,Appleby Court Nursing Home,29/04/2015,Support & Safeguarding,Third Party Payments,Permanent Care,1496
Wigan Council ,E08000010,Appleby Court Nursing Home,29/04/2015,Support & Safeguarding,Third Party Payments,Permanent Care,1496
Wigan Council ,E08000010,Appleby Court Nursing Home,29/04/2015,Support & Safeguarding,Third Party Payments,Permanent Care,1496
Wigan Council ,E08000010,Appleby Court Nursing Home,29/04/2015,Support & Safeguarding,Third Party Payments,Permanent Care,1496
Wigan Council ,E08000010,Appleby Court Nursing Home,29/04/2015,Support & Safeguarding,Third Party Payments,Permanent Care,1496
Wigan Council ,E08000010,Appleby Court Nursing Home,29/04/2015,Support & Safeguarding,Third Party Payments,Permanent Care,1547.92
Wigan Council ,E08000010,Appleby Court Nursing Home,29/04/2015,Support & Safeguarding,Third Party Payments,Permanent Care,1547.92
Wigan Council ,E08000010,Appleby Court Nursing Home,29/04/2015,Support & Safeguarding,Third Party Payments,Permanent Care,1563.71
Wigan Council ,E08000010,Appleby Court Nursing Home,29/04/2015,Support & Safeguarding,Third Party Payments,Permanent Care,1563.71
Wigan Council ,E08000010,Appleby Court Nursing Home,29/04/2015,Support & Safeguarding,Third Party Payments,Permanent Care,1684
Wigan Council ,E08000010,Appleby Court Nursing Home,29/04/2015,Support & Safeguarding,Third Party Payments,Permanent Care,1816.57
Wigan Council ,E08000010,Appleby Court Nursing Home,29/04/2015,Support & Safeguarding,Third Party Payments,Nursing Care,3279.18
Wigan Council ,E08000010,Appleby Court Nursing Home,29/04/2015,Support & Safeguarding,Third Party Payments,Permanent Care,6431.4
Wigan Council ,E08000010,Appleby Court Nursing Home,29/04/2015,Support & Safeguarding,Third Party Payments,Permanent Care,6600
Wigan Council ,E08000010,Appleby Court Nursing Home,29/04/2015,Support & Safeguarding,Third Party Payments,Permanent Care,6602.96
Wigan Council ,E08000010,Appleby Court Nursing Home,29/04/2015,Support & Safeguarding,Third Party Payments,Permanent Care,6782.96
Wigan Council ,E08000010,Ashwood Residential Home,01/04/2015,Support & Safeguarding,Third Party Payments,Respite Care,961.71
Wigan Council ,E08000010,Ashwood Residential Home,01/04/2015,Support & Safeguarding,Third Party Payments,Permanent Care,1348
Wigan Council ,E08000010,Ashwood Residential Home,01/04/2015,Support & Safeguarding,Third Party Payments,Permanent Care,1348
Wigan Council ,E08000010,Ashwood Residential Home,01/04/2015,Support & Safeguarding,Third Party Payments,Permanent Care,1348
Wigan Council ,E08000010,Ashwood Residential Home,01/04/2015,Support & Safeguarding,Third Party Payments,Permanent Care,1348
Wigan Council ,E08000010,Ashwood Residential Home,01/04/2015,Support & Safeguarding,Third Party Payments,Permanent Care,1348
Wigan Council ,E08000010,Ashwood Residential Home,01/04/2015,Support & Safeguarding,Third Party Payments,Permanent Care,1496
Wigan Council ,E08000010,Ashwood Residential Home,01/04/2015,Support & Safeguarding,Third Party Payments,Permanent Care,1496
Wigan Council ,E08000010,Ashwood Residential Home,01/04/2015,Support & Safeguarding,Third Party Payments,Permanent Care,1496
Wigan Council ,E08000010,Ashwood Residential Home,01/04/2015,Support & Safeguarding,Third Party Payments,Permanent Care,1496
Wigan Council ,E08000010,Ashwood Residential Home,01/04/2015,Support & Safeguarding,Third Party Payments,Permanent Care,1496
Wigan Council ,E08000010,Ashwood Residential Home,01/04/2015,Support & Safeguarding,Third Party Payments,Permanent Care,1496
Wigan Council ,E08000010,Ashwood Residential Home,01/04/2015,Support & Safeguarding,Third Party Payments,Permanent Care,1496
Wigan Council ,E08000010,Ashwood Residential Home,01/04/2015,Support & Safeguarding,Third Party Payments,Respite Care,1496
Wigan Council ,E08000010,Ashwood Residential Home,01/04/2015,Support & Safeguarding,Third Party Payments,Permanent Care,1496
Wigan Council ,E08000010,Ashwood Residential Home,01/04/2015,Support & Safeguarding,Third Party Payments,Permanent Care,1684
Wigan Council ,E08000010,Ashwood Residential Home,01/04/2015,Support & Safeguarding,Third Party Payments,Permanent Care,1684
Wigan Council ,E08000010,Ashwood Residential Home,01/04/2015,Support & Safeguarding,Third Party Payments,Permanent Care,1684
Wigan Council ,E08000010,Ashwood Residential Home,01/04/2015,Support & Safeguarding,Third Party Payments,Respite Care,2030.29
Wigan Council ,E08000010,Ashwood Residential Home,01/04/2015,Support & Safeguarding,Third Party Payments,Respite Care,3900.29
Wigan Council ,E08000010,Ashwood Residential Home,29/04/2015,Support & Safeguarding,Third Party Payments,Permanent Care,534.29
Wigan Council ,E08000010,Ashwood Residential Home,29/04/2015,Support & Safeguarding,Third Party Payments,Permanent Care,1348
Wigan Council ,E08000010,Ashwood Residential Home,29/04/2015,Support & Safeguarding,Third Party Payments,Permanent Care,1348
Wigan Council ,E08000010,Ashwood Residential Home,29/04/2015,Support & Safeguarding,Third Party Payments,Permanent Care,1348
Wigan Council ,E08000010,Ashwood Residential Home,29/04/2015,Support & Safeguarding,Third Party Payments,Permanent Care,1348
Wigan Council ,E08000010,Ashwood Residential Home,29/04/2015,Support & Safeguarding,Third Party Payments,Permanent Care,1348
Wigan Council ,E08000010,Ashwood Residential Home,29/04/2015,Support & Safeguarding,Third Party Payments,Permanent Care,1496
Wigan Council ,E08000010,Ashwood Residential Home,29/04/2015,Support & Safeguarding,Third Party Payments,Permanent Care,1496
Wigan Council ,E08000010,Ashwood Residential Home,29/04/2015,Support & Safeguarding,Third Party Payments,Permanent Care,1496
Wigan Council ,E08000010,Ashwood Residential Home,29/04/2015,Support & Safeguarding,Third Party Payments,Permanent Care,1496
Wigan Council ,E08000010,Ashwood Residential Home,29/04/2015,Support & Safeguarding,Third Party Payments,Permanent Care,1496
Wigan Council ,E08000010,Ashwood Residential Home,29/04/2015,Support & Safeguarding,Third Party Payments,Permanent Care,1496
Wigan Council ,E08000010,Ashwood Residential Home,29/04/2015,Support & Safeguarding,Third Party Payments,Respite Care,1496
Wigan Council ,E08000010,Ashwood Residential Home,29/04/2015,Support & Safeguarding,Third Party Payments,Permanent Care,1496
Wigan Council ,E08000010,Ashwood Residential Home,29/04/2015,Support & Safeguarding,Third Party Payments,Permanent Care,1684
Wigan Council ,E08000010,Ashwood Residential Home,29/04/2015,Support & Safeguarding,Third Party Payments,Permanent Care,1684
Wigan Council ,E08000010,Ashwood Residential Home,29/04/2015,Support & Safeguarding,Third Party Payments,Permanent Care,1684
Wigan Council ,E08000010,The Award Scheme Ltd,10/04/2015,Early Intervention and Prevention (Children),Supplies & Services,"Books, Publications and Resources",608
Wigan Council ,E08000010,Amberswood Environmental Services Ltd,16/04/2015,Provider Management & Market Development,Third Party Payments,Private Day Care,1200
Wigan Council ,E08000010,Amberswood Environmental Services Ltd,16/04/2015,Provider Management & Market Development,Third Party Payments,Private Day Care,1110
Wigan Council ,E08000010,Amberswood Environmental Services Ltd,30/04/2015,Provider Management & Market Development,Third Party Payments,Private Day Care,1380
Wigan Council ,E08000010,Amberswood Environmental Services Ltd,30/04/2015,Provider Management & Market Development,Third Party Payments,Private Day Care,1380
Wigan Council ,E08000010,ABC Private Day Nursery,01/04/2015,Childrens - Departmental Overheads,Third Party Payments,Nursery Grant Payments,14224.39
Wigan Council ,E08000010,The Avenue Private Day Nursery,01/04/2015,Childrens - Departmental Overheads,Third Party Payments,Nursery Grant Payments,30257.64
Wigan Council ,E08000010,Agape Family Support Group,30/04/2015,Childrens - Departmental Overheads,Third Party Payments,Nursery Grant Payments,5438.16
Wigan Council ,E08000010,Autism Initiatives,01/04/2015,Support & Safeguarding,Third Party Payments,Permanent Care,1680.6
Wigan Council ,E08000010,Autism Initiatives,01/04/2015,Support & Safeguarding,Third Party Payments,Permanent Care,2411.89
Wigan Council ,E08000010,Autism Initiatives,01/04/2015,Support & Safeguarding,Third Party Payments,Permanent Care,5041.8
Wigan Council ,E08000010,Autism Initiatives,01/04/2015,Support & Safeguarding,Third Party Payments,Permanent Care,7235.67
Wigan Council ,E08000010,Autism Initiatives,23/04/2015,Provider Management & Market Development,Third Party Payments,Payments to Voluntary Organisations,3014.08
Wigan Council ,E08000010,ABC Castle Nursery,01/04/2015,Childrens - Departmental Overheads,Third Party Payments,Nursery Grant Payments,20636.28
Wigan Council ,E08000010,Ashton Early Years Playgroup,01/04/2015,Childrens - Departmental Overheads,Third Party Payments,Nursery Grant Payments,6170.98
Wigan Council ,E08000010,Airborne Environmental Consultants Ltd,14/04/2015,Housing Revenue Account,Premises,HRA Programmed Works,12558
Wigan Council ,E08000010,Allied Healthcare (UK) Ltd,14/04/2015,Support & Safeguarding,Third Party Payments,Private Domicilliary,3787.6
Wigan Council ,E08000010,Allied Healthcare (UK) Ltd,14/04/2015,Provider Management & Market Development,Third Party Payments,Private Domicilliary,3073.34
Wigan Council ,E08000010,Allied Healthcare (UK) Ltd,14/04/2015,Provider Management & Market Development,Third Party Payments,Private Domicilliary,1132.27
Wigan Council ,E08000010,Allied Healthcare (UK) Ltd,14/04/2015,Provider Management & Market Development,Third Party Payments,Private Domicilliary,1480.94
Wigan Council ,E08000010,Allied Healthcare (UK) Ltd,14/04/2015,Provider Management & Market Development,Third Party Payments,Private Domicilliary,572.4
Wigan Council ,E08000010,Allied Healthcare (UK) Ltd,14/04/2015,Provider Management & Market Development,Third Party Payments,Private Domicilliary,639.09
Wigan Council ,E08000010,Allied Healthcare (UK) Ltd,14/04/2015,Provider Management & Market Development,Third Party Payments,Private Domicilliary,509.47
Wigan Council ,E08000010,Allied Healthcare (UK) Ltd,14/04/2015,Support & Safeguarding,Third Party Payments,Private Domicilliary,1890.44
Wigan Council ,E08000010,Aidapt Bathrooms Ltd,30/04/2015,Corporate,Capital Expenditure,GF Capital Expenditure,1929
Wigan Council ,E08000010,Aidapt Bathrooms Ltd,30/04/2015,Corporate,Capital Expenditure,GF Capital Expenditure,545
Wigan Council ,E08000010,Aidapt Bathrooms Ltd,30/04/2015,Corporate,Capital Expenditure,GF Capital Expenditure,3110.75
Wigan Council ,E08000010,Aidapt Bathrooms Ltd,30/04/2015,Corporate,Capital Expenditure,GF Capital Expenditure,2247.7
Wigan Council ,E08000010,Aidapt Bathrooms Ltd,30/04/2015,Corporate,Capital Expenditure,GF Capital Expenditure,2292.08
Wigan Council ,E08000010,Aidapt Bathrooms Ltd,30/04/2015,Corporate,Capital Expenditure,GF Capital Expenditure,618.75
Wigan Council ,E08000010,AON UK Ltd,14/04/2015,Housing Revenue Account,Supplies & Services,External Insurance Premiums,17642.32
Wigan Council ,E08000010,Four Seasons Health Care,01/04/2015,Support & Safeguarding,Third Party Payments,Permanent Care,1712
Wigan Council ,E08000010,Four Seasons Health Care,29/04/2015,Support & Safeguarding,Third Party Payments,Permanent Care,1712
Wigan Council ,E08000010,Alexandra Grange,01/04/2015,Support & Safeguarding,Third Party Payments,Respite Care,1496
Wigan Council ,E08000010,Alexandra Grange,01/04/2015,Support & Safeguarding,Third Party Payments,Permanent Care,1496
Wigan Council ,E08000010,Alexandra Grange,01/04/2015,Support & Safeguarding,Third Party Payments,Permanent Care,1496
Wigan Council ,E08000010,Alexandra Grange,01/04/2015,Support & Safeguarding,Third Party Payments,Permanent Care,1496
Wigan Council ,E08000010,Alexandra Grange,01/04/2015,Support & Safeguarding,Third Party Payments,Permanent Care,1496
Wigan Council ,E08000010,Alexandra Grange,01/04/2015,Support & Safeguarding,Third Party Payments,Permanent Care,1496
Wigan Council ,E08000010,Alexandra Grange,01/04/2015,Support & Safeguarding,Third Party Payments,Permanent Care,1496
Wigan Council ,E08000010,Alexandra Grange,01/04/2015,Support & Safeguarding,Third Party Payments,Permanent Care,1496
Wigan Council ,E08000010,Alexandra Grange,01/04/2015,Support & Safeguarding,Third Party Payments,Permanent Care,1496
Wigan Council ,E08000010,Alexandra Grange,01/04/2015,Support & Safeguarding,Third Party Payments,Permanent Care,1496
Wigan Council ,E08000010,Alexandra Grange,01/04/2015,Support & Safeguarding,Third Party Payments,Permanent Care,1496
Wigan Council ,E08000010,Alexandra Grange,01/04/2015,Support & Safeguarding,Third Party Payments,Permanent Care,1496
Wigan Council ,E08000010,Alexandra Grange,01/04/2015,Support & Safeguarding,Third Party Payments,Permanent Care,1496
Wigan Council ,E08000010,Alexandra Grange,01/04/2015,Support & Safeguarding,Third Party Payments,Permanent Care,1496
Wigan Council ,E08000010,Alexandra Grange,01/04/2015,Support & Safeguarding,Third Party Payments,Permanent Care,1496
Wigan Council ,E08000010,Alexandra Grange,01/04/2015,Support & Safeguarding,Third Party Payments,Permanent Care,1496
Wigan Council ,E08000010,Alexandra Grange,01/04/2015,Support & Safeguarding,Third Party Payments,Permanent Care,1684
Wigan Council ,E08000010,Alexandra Grange,01/04/2015,Support & Safeguarding,Third Party Payments,Permanent Care,1684
Wigan Council ,E08000010,Alexandra Grange,01/04/2015,Support & Safeguarding,Third Party Payments,Permanent Care,1684
Wigan Council ,E08000010,Alexandra Grange,01/04/2015,Support & Safeguarding,Third Party Payments,Permanent Care,1684
Wigan Council ,E08000010,Alexandra Grange,01/04/2015,Support & Safeguarding,Third Party Payments,Permanent Care,1684
Wigan Council ,E08000010,Alexandra Grange,01/04/2015,Support & Safeguarding,Third Party Payments,Permanent Care,1684
Wigan Council ,E08000010,Alexandra Grange,01/04/2015,Support & Safeguarding,Third Party Payments,Permanent Care,1684
Wigan Council ,E08000010,Alexandra Grange,01/04/2015,Support & Safeguarding,Third Party Payments,Permanent Care,1684
Wigan Council ,E08000010,Alexandra Grange,01/04/2015,Support & Safeguarding,Third Party Payments,Permanent Care,1684
Wigan Council ,E08000010,Alexandra Grange,01/04/2015,Support & Safeguarding,Third Party Payments,Permanent Care,1684
Wigan Council ,E08000010,Alexandra Grange,01/04/2015,Support & Safeguarding,Third Party Payments,Permanent Care,1684
Wigan Council ,E08000010,Alexandra Grange,01/04/2015,Support & Safeguarding,Third Party Payments,Permanent Care,1684
Wigan Council ,E08000010,Alexandra Grange,01/04/2015,Support & Safeguarding,Third Party Payments,Permanent Care,1684
Wigan Council ,E08000010,Alexandra Grange,01/04/2015,Support & Safeguarding,Third Party Payments,Permanent Care,1684
Wigan Council ,E08000010,Alexandra Grange,01/04/2015,Support & Safeguarding,Third Party Payments,Permanent Care,1684
Wigan Council ,E08000010,Alexandra Grange,01/04/2015,Support & Safeguarding,Third Party Payments,Permanent Care,1684
Wigan Council ,E08000010,Alexandra Grange,01/04/2015,Support & Safeguarding,Third Party Payments,Permanent Care,1684
Wigan Council ,E08000010,Alexandra Grange,01/04/2015,Support & Safeguarding,Third Party Payments,Permanent Care,1684
Wigan Council ,E08000010,Alexandra Grange,01/04/2015,Support & Safeguarding,Third Party Payments,Permanent Care,1684
Wigan Council ,E08000010,Alexandra Grange,01/04/2015,Support & Safeguarding,Third Party Payments,Permanent Care,1684
Wigan Council ,E08000010,Alexandra Grange,01/04/2015,Support & Safeguarding,Third Party Payments,Permanent Care,2083.71
Wigan Council ,E08000010,Alexandra Grange,29/04/2015,Support & Safeguarding,Third Party Payments,Respite Care,748
Wigan Council ,E08000010,Alexandra Grange,29/04/2015,Support & Safeguarding,Third Party Payments,Respite Care,781.86
Wigan Council ,E08000010,Alexandra Grange,29/04/2015,Support & Safeguarding,Third Party Payments,Respite Care,902.14
Wigan Council ,E08000010,Alexandra Grange,29/04/2015,Support & Safeguarding,Third Party Payments,Permanent Care,1496
Wigan Council ,E08000010,Alexandra Grange,29/04/2015,Support & Safeguarding,Third Party Payments,Permanent Care,1496
Wigan Council ,E08000010,Alexandra Grange,29/04/2015,Support & Safeguarding,Third Party Payments,Permanent Care,1496
Wigan Council ,E08000010,Alexandra Grange,29/04/2015,Support & Safeguarding,Third Party Payments,Permanent Care,1496
Wigan Council ,E08000010,Alexandra Grange,29/04/2015,Support & Safeguarding,Third Party Payments,Permanent Care,1496
Wigan Council ,E08000010,Alexandra Grange,29/04/2015,Support & Safeguarding,Third Party Payments,Permanent Care,1496
Wigan Council ,E08000010,Alexandra Grange,29/04/2015,Support & Safeguarding,Third Party Payments,Permanent Care,1496
Wigan Council ,E08000010,Alexandra Grange,29/04/2015,Support & Safeguarding,Third Party Payments,Permanent Care,1496
Wigan Council ,E08000010,Alexandra Grange,29/04/2015,Support & Safeguarding,Third Party Payments,Permanent Care,1496
Wigan Council ,E08000010,Alexandra Grange,29/04/2015,Support & Safeguarding,Third Party Payments,Permanent Care,1496
Wigan Council ,E08000010,Alexandra Grange,29/04/2015,Support & Safeguarding,Third Party Payments,Permanent Care,1496
Wigan Council ,E08000010,Alexandra Grange,29/04/2015,Support & Safeguarding,Third Party Payments,Permanent Care,1496
Wigan Council ,E08000010,Alexandra Grange,29/04/2015,Support & Safeguarding,Third Party Payments,Permanent Care,1496
Wigan Council ,E08000010,Alexandra Grange,29/04/2015,Support & Safeguarding,Third Party Payments,Permanent Care,1496
Wigan Council ,E08000010,Alexandra Grange,29/04/2015,Support & Safeguarding,Third Party Payments,Permanent Care,1496
Wigan Council ,E08000010,Alexandra Grange,29/04/2015,Support & Safeguarding,Third Party Payments,Permanent Care,1684
Wigan Council ,E08000010,Alexandra Grange,29/04/2015,Support & Safeguarding,Third Party Payments,Permanent Care,1684
Wigan Council ,E08000010,Alexandra Grange,29/04/2015,Support & Safeguarding,Third Party Payments,Permanent Care,1684
Wigan Council ,E08000010,Alexandra Grange,29/04/2015,Support & Safeguarding,Third Party Payments,Permanent Care,1684
Wigan Council ,E08000010,Alexandra Grange,29/04/2015,Support & Safeguarding,Third Party Payments,Permanent Care,1684
Wigan Council ,E08000010,Alexandra Grange,29/04/2015,Support & Safeguarding,Third Party Payments,Permanent Care,1684
Wigan Council ,E08000010,Alexandra Grange,29/04/2015,Support & Safeguarding,Third Party Payments,Permanent Care,1684
Wigan Council ,E08000010,Alexandra Grange,29/04/2015,Support & Safeguarding,Third Party Payments,Permanent Care,1684
Wigan Council ,E08000010,Alexandra Grange,29/04/2015,Support & Safeguarding,Third Party Payments,Permanent Care,1684
Wigan Council ,E08000010,Alexandra Grange,29/04/2015,Support & Safeguarding,Third Party Payments,Permanent Care,1684
Wigan Council ,E08000010,Alexandra Grange,29/04/2015,Support & Safeguarding,Third Party Payments,Permanent Care,1684
Wigan Council ,E08000010,Alexandra Grange,29/04/2015,Support & Safeguarding,Third Party Payments,Permanent Care,1684
Wigan Council ,E08000010,Alexandra Grange,29/04/2015,Support & Safeguarding,Third Party Payments,Permanent Care,1684
Wigan Council ,E08000010,Alexandra Grange,29/04/2015,Support & Safeguarding,Third Party Payments,Permanent Care,1684
Wigan Council ,E08000010,Alexandra Grange,29/04/2015,Support & Safeguarding,Third Party Payments,Permanent Care,1684
Wigan Council ,E08000010,Alexandra Grange,29/04/2015,Support & Safeguarding,Third Party Payments,Permanent Care,1684
Wigan Council ,E08000010,Alexandra Grange,29/04/2015,Support & Safeguarding,Third Party Payments,Permanent Care,1684
Wigan Council ,E08000010,Alexandra Grange,29/04/2015,Support & Safeguarding,Third Party Payments,Permanent Care,1684
Wigan Council ,E08000010,Alexandra Grange,29/04/2015,Support & Safeguarding,Third Party Payments,Permanent Care,1684
Wigan Council ,E08000010,Alexandra Grange,29/04/2015,Support & Safeguarding,Third Party Payments,Permanent Care,1684
Wigan Council ,E08000010,Alexandra Grange,29/04/2015,Support & Safeguarding,Third Party Payments,Permanent Care,2826.71
Wigan Council ,E08000010,Arena Housing Association Ltd,23/04/2015,Early Intervention & Prevention,Third Party Payments,Payments to Private Contractors,6212.35
Wigan Council ,E08000010,Arena Housing Association Ltd,28/04/2015,Early Intervention & Prevention,Third Party Payments,Payments to Private Contractors,14812.33
Wigan Council ,E08000010,Arena Housing Association Ltd,28/04/2015,Public Health,Third Party Payments,Payments to Private Contractors,16748.33
Wigan Council ,E08000010,Arena Housing Association Ltd,28/04/2015,Early Intervention & Prevention,Third Party Payments,Payments to Private Contractors,17082.12
Wigan Council ,E08000010,Arena Housing Association Ltd,28/04/2015,Public Health,Third Party Payments,Payments to Private Contractors,18825.75
Wigan Council ,E08000010,A.G.S. Tech Ltd,14/04/2015,Corporate,Capital Expenditure,HRA Capital Expenditure,15882.95
Wigan Council ,E08000010,A.G.S. Tech Ltd,14/04/2015,Corporate,Capital Expenditure,HRA Capital Expenditure,1467.2
Wigan Council ,E08000010,A.G.S. Tech Ltd,14/04/2015,Housing Revenue Account,Premises,HRA Day to Day Responsive Repairs,502.25
Wigan Council ,E08000010,A.G.S. Tech Ltd,14/04/2015,Corporate,Capital Expenditure,HRA Capital Expenditure,1587.75
Wigan Council ,E08000010,A.G.S. Tech Ltd,14/04/2015,Corporate,Capital Expenditure,HRA Capital Expenditure,1058.5
Wigan Council ,E08000010,A.G.S. Tech Ltd,20/04/2015,Housing Revenue Account,Premises,HRA Day to Day Responsive Repairs,750
Wigan Council ,E08000010,A.G.S. Tech Ltd,28/04/2015,Housing Revenue Account,Premises,HRA Day to Day Responsive Repairs,626.93
Wigan Council ,E08000010,A.G.S. Tech Ltd,30/04/2015,Corporate,Capital Expenditure,HRA Capital Expenditure,541.36
Wigan Council ,E08000010,Atherton Pre-School,01/04/2015,Childrens - Departmental Overheads,Third Party Payments,Nursery Grant Payments,16652.16
Wigan Council ,E08000010,Unit4 Business Software  Ltd,10/04/2015,Finance,Supplies & Services,Professional Fees,6450
Wigan Council ,E08000010,Unit4 Business Software  Ltd,10/04/2015,Finance,Supplies & Services,Professional Fees,27284.18
Wigan Council ,E08000010,Abbeyfield (Leigh) Society Limited,23/04/2015,Early Intervention & Prevention,Third Party Payments,Payments to Private Contractors,942.48
Wigan Council ,E08000010,Anchor Trust,23/04/2015,Early Intervention & Prevention,Third Party Payments,Payments to Private Contractors,1342.44
Wigan Council ,E08000010,Action on Hearing Loss,14/04/2015,Support & Safeguarding,Supplies & Services,Professional Fees,5793
Wigan Council ,E08000010,Bithell's Waste Disposal LTD,09/04/2015,Finance,Premises,Refuse Collection,535.4
Wigan Council ,E08000010,Bithell's Waste Disposal LTD,23/04/2015,Housing Revenue Account,Premises,HRA Programmed Works,530.6
Wigan Council ,E08000010,B.A.A.F.,08/04/2015,Targeted Services,Supplies & Services,Licence Fees,2981.77
Wigan Council ,E08000010,B.A.A.F.,08/04/2015,Targeted Services,Supplies & Services,Licence Fees,1957.86
Wigan Council ,E08000010,B.A.A.F.,10/04/2015,Targeted Services,Supplies & Services,Advertising (Non Employee),555
Wigan Council ,E08000010,B.A.A.F.,10/04/2015,Targeted Services,Supplies & Services,Licence Fees,3383.55
Wigan Council ,E08000010,D.I.A.S.,07/04/2015,Strategy & Partnerships,Third Party Payments,Payments to Voluntary Organisations,15098.75
Wigan Council ,E08000010,Snapfast,14/04/2015,Trading,Supplies & Services,Agresso Warehouse Control Account,1061.64
Wigan Council ,E08000010,Sunbeams,01/04/2015,Childrens - Departmental Overheads,Third Party Payments,Nursery Grant Payments,19242.72
Wigan Council ,E08000010,Transport for Greater Manchester,10/04/2015,Infrastructure,Supplies & Services,Professional Fees,19352.91
Wigan Council ,E08000010,Marshalls,28/04/2015,Trading,Supplies & Services,Direct Materials,889.03
Wigan Council ,E08000010,Marshalls,30/04/2015,"Leisure, Cultural & Property",Supplies & Services,Equipment Furniture & Materials,540
Wigan Council ,E08000010,Standish St Wilfrid's CE Primary Academy,09/04/2015,Education,Third Party Payments,Payments to Other Local Authorities,500
Wigan Council ,E08000010,Abraham Guest Academy,08/04/2015,Economic Development & Skills,Third Party Payments,Private Education Services,8650
Wigan Council ,E08000010,Abraham Guest Academy,09/04/2015,Education,Third Party Payments,Payments to Other Local Authorities,2000
Wigan Council ,E08000010,Abraham Guest Academy,16/04/2015,Economic Development & Skills,Third Party Payments,Private Education Services,8600
Wigan Council ,E08000010,Abraham Guest Academy,23/04/2015,Childrens - Departmental Overheads,Third Party Payments,Internal Eduation Services,1696.23
Wigan Council ,E08000010,Fred Longworth High School,09/04/2015,Education,Third Party Payments,Payments to Other Local Authorities,1000
Wigan Council ,E08000010,Westleigh Methodist Primary School,09/04/2015,Education,Third Party Payments,Payments to Other Local Authorities,750
Wigan Council ,E08000010,Colas Ltd,13/04/2015,Trading,Supplies & Services,Agresso Warehouse Control Account,851.52
Wigan Council ,E08000010,K J Lines,08/04/2015,Trading,Supplies & Services,Subcontracted Repairs,504.75
Wigan Council ,E08000010,K J Lines,08/04/2015,Trading,Supplies & Services,Subcontracted Repairs,737.94
Wigan Council ,E08000010,K J Lines,10/04/2015,Trading,Supplies & Services,Subcontracted Repairs,574.56
Wigan Council ,E08000010,K J Lines,10/04/2015,Trading,Supplies & Services,Subcontracted Repairs,717.78
Wigan Council ,E08000010,K J Lines,10/04/2015,Trading,Supplies & Services,Subcontracted Repairs,844.6
Wigan Council ,E08000010,K J Lines,10/04/2015,Trading,Supplies & Services,Subcontracted Repairs,618.36
Wigan Council ,E08000010,K J Lines,15/04/2015,Trading,Supplies & Services,Subcontracted Repairs,916.88
Wigan Council ,E08000010,K J Lines,15/04/2015,Trading,Supplies & Services,Subcontracted Repairs,1284.82
Wigan Council ,E08000010,Housing 21,23/04/2015,Early Intervention & Prevention,Third Party Payments,Payments to Private Contractors,577.28
Wigan Council ,E08000010,Stockdales,01/04/2015,Support & Safeguarding,Third Party Payments,Permanent Care,6225.32
Wigan Council ,E08000010,Stockdales,29/04/2015,Support & Safeguarding,Third Party Payments,Permanent Care,6225.32
Wigan Council ,E08000010,Six Acres Residential & Supported Acccomodation Ltd,01/04/2015,Support & Safeguarding,Third Party Payments,Permanent Care,4442.68
Wigan Council ,E08000010,Six Acres Residential & Supported Acccomodation Ltd,29/04/2015,Support & Safeguarding,Third Party Payments,Permanent Care,4442.68
Wigan Council ,E08000010,Laurel Ltd,10/04/2015,Corporate,Capital Expenditure,GF Capital Expenditure,1060
Wigan Council ,E08000010,Blair House,01/04/2015,Support & Safeguarding,Third Party Payments,Permanent Care,1249.35
Wigan Council ,E08000010,Blair House,01/04/2015,Support & Safeguarding,Third Party Payments,Permanent Care,1249.35
Wigan Council ,E08000010,Blair House,01/04/2015,Support & Safeguarding,Third Party Payments,Permanent Care,1665.8
Wigan Council ,E08000010,Blair House,29/04/2015,Support & Safeguarding,Third Party Payments,Permanent Care,1665.8
Wigan Council ,E08000010,Blair House,29/04/2015,Support & Safeguarding,Third Party Payments,Permanent Care,1665.8
Wigan Council ,E08000010,Blair House,29/04/2015,Support & Safeguarding,Third Party Payments,Permanent Care,1665.8
Wigan Council ,E08000010,Mayrise Ltd,08/04/2015,Infrastructure,Supplies & Services,Computer Software (Licences & Maintenance),9870
Wigan Council ,E08000010,Mayrise Ltd,08/04/2015,Infrastructure,Supplies & Services,Equipment Furniture & Materials,3202.5
Wigan Council ,E08000010,B J McNamee Limited,22/04/2015,Trading,Supplies & Services,Subcontracted Repairs,2360.6
Wigan Council ,E08000010,B J McNamee Limited,22/04/2015,Trading,Supplies & Services,Subcontracted Repairs,2360.6
Wigan Council ,E08000010,Carelink Community  Services Ltd,24/04/2015,Provider Management & Market Development,Third Party Payments,Private Domicilliary,572
Wigan Council ,E08000010,Carelink Community  Services Ltd,24/04/2015,Provider Management & Market Development,Third Party Payments,Private Domicilliary,2136.78
Wigan Council ,E08000010,Making Space,01/04/2015,Support & Safeguarding,Third Party Payments,Permanent Care,1684
Wigan Council ,E08000010,Making Space,01/04/2015,Support & Safeguarding,Third Party Payments,Permanent Care,1684
Wigan Council ,E08000010,Making Space,01/04/2015,Support & Safeguarding,Third Party Payments,Permanent Care,1684
Wigan Council ,E08000010,Making Space,01/04/2015,Support & Safeguarding,Third Party Payments,Permanent Care,1684
Wigan Council ,E08000010,Making Space,01/04/2015,Support & Safeguarding,Third Party Payments,Permanent Care,1684
Wigan Council ,E08000010,Making Space,01/04/2015,Support & Safeguarding,Third Party Payments,Permanent Care,1684
Wigan Council ,E08000010,Making Space,01/04/2015,Support & Safeguarding,Third Party Payments,Permanent Care,1684
Wigan Council ,E08000010,Making Space,01/04/2015,Support & Safeguarding,Third Party Payments,Permanent Care,1684
Wigan Council ,E08000010,Making Space,01/04/2015,Support & Safeguarding,Third Party Payments,Permanent Care,1684
Wigan Council ,E08000010,Making Space,01/04/2015,Support & Safeguarding,Third Party Payments,Permanent Care,1684
Wigan Council ,E08000010,Making Space,01/04/2015,Support & Safeguarding,Third Party Payments,Permanent Care,1684
Wigan Council ,E08000010,Making Space,01/04/2015,Support & Safeguarding,Third Party Payments,Permanent Care,1684
Wigan Council ,E08000010,Making Space,01/04/2015,Support & Safeguarding,Third Party Payments,Permanent Care,1684
Wigan Council ,E08000010,Making Space,01/04/2015,Support & Safeguarding,Third Party Payments,Permanent Care,1684
Wigan Council ,E08000010,Making Space,01/04/2015,Support & Safeguarding,Third Party Payments,Permanent Care,1684
Wigan Council ,E08000010,Making Space,01/04/2015,Support & Safeguarding,Third Party Payments,Permanent Care,1684
Wigan Council ,E08000010,Making Space,01/04/2015,Support & Safeguarding,Third Party Payments,Permanent Care,1684
Wigan Council ,E08000010,Making Space,01/04/2015,Support & Safeguarding,Third Party Payments,Permanent Care,1684
Wigan Council ,E08000010,Making Space,01/04/2015,Support & Safeguarding,Third Party Payments,Permanent Care,1684
Wigan Council ,E08000010,Making Space,01/04/2015,Support & Safeguarding,Third Party Payments,Permanent Care,1684
Wigan Council ,E08000010,Making Space,01/04/2015,Support & Safeguarding,Third Party Payments,Permanent Care,1684
Wigan Council ,E08000010,Making Space,01/04/2015,Support & Safeguarding,Third Party Payments,Permanent Care,1684
Wigan Council ,E08000010,Making Space,01/04/2015,Support & Safeguarding,Third Party Payments,Permanent Care,1684
Wigan Council ,E08000010,Making Space,01/04/2015,Support & Safeguarding,Third Party Payments,Permanent Care,1684
Wigan Council ,E08000010,Making Space,01/04/2015,Support & Safeguarding,Third Party Payments,Permanent Care,1684
Wigan Council ,E08000010,Making Space,01/04/2015,Support & Safeguarding,Third Party Payments,Permanent Care,1684
Wigan Council ,E08000010,Making Space,01/04/2015,Support & Safeguarding,Third Party Payments,Permanent Care,1684
Wigan Council ,E08000010,Making Space,01/04/2015,Support & Safeguarding,Third Party Payments,Permanent Care,1684
Wigan Council ,E08000010,Making Space,01/04/2015,Support & Safeguarding,Third Party Payments,Permanent Care,1684
Wigan Council ,E08000010,Making Space,01/04/2015,Support & Safeguarding,Third Party Payments,Permanent Care,1824.76
Wigan Council ,E08000010,Making Space,23/04/2015,Early Intervention & Prevention,Third Party Payments,Payments to Private Contractors,11556.22
Wigan Council ,E08000010,Making Space,29/04/2015,Support & Safeguarding,Third Party Payments,Permanent Care,842
Wigan Council ,E08000010,Making Space,29/04/2015,Support & Safeguarding,Third Party Payments,Permanent Care,1684
Wigan Council ,E08000010,Making Space,29/04/2015,Support & Safeguarding,Third Party Payments,Permanent Care,1684
Wigan Council ,E08000010,Making Space,29/04/2015,Support & Safeguarding,Third Party Payments,Permanent Care,1684
Wigan Council ,E08000010,Making Space,29/04/2015,Support & Safeguarding,Third Party Payments,Permanent Care,1684
Wigan Council ,E08000010,Making Space,29/04/2015,Support & Safeguarding,Third Party Payments,Permanent Care,1684
Wigan Council ,E08000010,Making Space,29/04/2015,Support & Safeguarding,Third Party Payments,Permanent Care,1684
Wigan Council ,E08000010,Making Space,29/04/2015,Support & Safeguarding,Third Party Payments,Permanent Care,1684
Wigan Council ,E08000010,Making Space,29/04/2015,Support & Safeguarding,Third Party Payments,Permanent Care,1684
Wigan Council ,E08000010,Making Space,29/04/2015,Support & Safeguarding,Third Party Payments,Permanent Care,1684
Wigan Council ,E08000010,Making Space,29/04/2015,Support & Safeguarding,Third Party Payments,Permanent Care,1684
Wigan Council ,E08000010,Making Space,29/04/2015,Support & Safeguarding,Third Party Payments,Permanent Care,1684
Wigan Council ,E08000010,Making Space,29/04/2015,Support & Safeguarding,Third Party Payments,Permanent Care,1684
Wigan Council ,E08000010,Making Space,29/04/2015,Support & Safeguarding,Third Party Payments,Permanent Care,1684
Wigan Council ,E08000010,Making Space,29/04/2015,Support & Safeguarding,Third Party Payments,Permanent Care,1684
Wigan Council ,E08000010,Making Space,29/04/2015,Support & Safeguarding,Third Party Payments,Permanent Care,1684
Wigan Council ,E08000010,Making Space,29/04/2015,Support & Safeguarding,Third Party Payments,Permanent Care,1684
Wigan Council ,E08000010,Making Space,29/04/2015,Support & Safeguarding,Third Party Payments,Permanent Care,1684
Wigan Council ,E08000010,Making Space,29/04/2015,Support & Safeguarding,Third Party Payments,Permanent Care,1684
Wigan Council ,E08000010,Making Space,29/04/2015,Support & Safeguarding,Third Party Payments,Permanent Care,1684
Wigan Council ,E08000010,Making Space,29/04/2015,Support & Safeguarding,Third Party Payments,Permanent Care,1684
Wigan Council ,E08000010,Making Space,29/04/2015,Support & Safeguarding,Third Party Payments,Permanent Care,1684
Wigan Council ,E08000010,Making Space,29/04/2015,Support & Safeguarding,Third Party Payments,Permanent Care,1684
Wigan Council ,E08000010,Making Space,29/04/2015,Support & Safeguarding,Third Party Payments,Permanent Care,1684
Wigan Council ,E08000010,Making Space,29/04/2015,Support & Safeguarding,Third Party Payments,Permanent Care,1684
Wigan Council ,E08000010,Making Space,29/04/2015,Support & Safeguarding,Third Party Payments,Permanent Care,1684
Wigan Council ,E08000010,Making Space,29/04/2015,Support & Safeguarding,Third Party Payments,Permanent Care,1684
Wigan Council ,E08000010,Making Space,29/04/2015,Support & Safeguarding,Third Party Payments,Permanent Care,1684
Wigan Council ,E08000010,Making Space,29/04/2015,Support & Safeguarding,Third Party Payments,Permanent Care,1684
Wigan Council ,E08000010,Making Space,29/04/2015,Support & Safeguarding,Third Party Payments,Permanent Care,1684
Wigan Council ,E08000010,Making Space,29/04/2015,Support & Safeguarding,Third Party Payments,Permanent Care,1684
Wigan Council ,E08000010,Making Space,29/04/2015,Support & Safeguarding,Third Party Payments,Permanent Care,1824.76
Wigan Council ,E08000010,Pro Care Shower and Bathroom Centre Ltd,08/04/2015,Corporate,Capital Expenditure,HRA Capital Expenditure,695.28
Wigan Council ,E08000010,Pro Care Shower and Bathroom Centre Ltd,08/04/2015,Corporate,Capital Expenditure,HRA Capital Expenditure,1996.02
Wigan Council ,E08000010,Pro Care Shower and Bathroom Centre Ltd,08/04/2015,Corporate,Capital Expenditure,HRA Capital Expenditure,3226.04
Wigan Council ,E08000010,Pro Care Shower and Bathroom Centre Ltd,08/04/2015,Corporate,Capital Expenditure,HRA Capital Expenditure,891.46
Wigan Council ,E08000010,Pro Care Shower and Bathroom Centre Ltd,08/04/2015,Corporate,Capital Expenditure,HRA Capital Expenditure,1307.62
Wigan Council ,E08000010,Pro Care Shower and Bathroom Centre Ltd,14/04/2015,Corporate,Capital Expenditure,HRA Capital Expenditure,622.23
Wigan Council ,E08000010,Pro Care Shower and Bathroom Centre Ltd,14/04/2015,Corporate,Capital Expenditure,HRA Capital Expenditure,583.16
Wigan Council ,E08000010,Pro Care Shower and Bathroom Centre Ltd,20/04/2015,Corporate,Capital Expenditure,HRA Capital Expenditure,1919.17
Wigan Council ,E08000010,Pro Care Shower and Bathroom Centre Ltd,20/04/2015,Corporate,Capital Expenditure,HRA Capital Expenditure,7133.64
Wigan Council ,E08000010,Pro Care Shower and Bathroom Centre Ltd,20/04/2015,Corporate,Capital Expenditure,HRA Capital Expenditure,2532.64
Wigan Council ,E08000010,Pro Care Shower and Bathroom Centre Ltd,22/04/2015,Corporate,Capital Expenditure,HRA Capital Expenditure,1129.14
Wigan Council ,E08000010,Pro Care Shower and Bathroom Centre Ltd,22/04/2015,Corporate,Capital Expenditure,HRA Capital Expenditure,553.7
Wigan Council ,E08000010,Pro Care Shower and Bathroom Centre Ltd,22/04/2015,Corporate,Capital Expenditure,HRA Capital Expenditure,836.88
Wigan Council ,E08000010,Pro Care Shower and Bathroom Centre Ltd,22/04/2015,Corporate,Capital Expenditure,HRA Capital Expenditure,664.36
Wigan Council ,E08000010,Pro Care Shower and Bathroom Centre Ltd,22/04/2015,Corporate,Capital Expenditure,HRA Capital Expenditure,1071.31
Wigan Council ,E08000010,Pro Care Shower and Bathroom Centre Ltd,22/04/2015,Corporate,Capital Expenditure,HRA Capital Expenditure,627.98
Wigan Council ,E08000010,Pro Care Shower and Bathroom Centre Ltd,22/04/2015,Trading,Supplies & Services,Direct Materials,912.77
Wigan Council ,E08000010,Pro Care Shower and Bathroom Centre Ltd,22/04/2015,Trading,Supplies & Services,Direct Materials,603.85
Wigan Council ,E08000010,Pro Care Shower and Bathroom Centre Ltd,24/04/2015,Corporate,Capital Expenditure,HRA Capital Expenditure,6032.19
Wigan Council ,E08000010,Pro Care Shower and Bathroom Centre Ltd,28/04/2015,Corporate,Capital Expenditure,HRA Capital Expenditure,1054.63
Wigan Council ,E08000010,Pro Care Shower and Bathroom Centre Ltd,28/04/2015,Corporate,Capital Expenditure,HRA Capital Expenditure,605.13
Wigan Council ,E08000010,Pro Care Shower and Bathroom Centre Ltd,28/04/2015,Corporate,Capital Expenditure,HRA Capital Expenditure,526.13
Wigan Council ,E08000010,Pro Care Shower and Bathroom Centre Ltd,28/04/2015,Corporate,Capital Expenditure,HRA Capital Expenditure,1080.71
Wigan Council ,E08000010,Pro Care Shower and Bathroom Centre Ltd,28/04/2015,Corporate,Capital Expenditure,HRA Capital Expenditure,604.08
Wigan Council ,E08000010,Pro Care Shower and Bathroom Centre Ltd,28/04/2015,Corporate,Capital Expenditure,HRA Capital Expenditure,3544.9
Wigan Council ,E08000010,Pro Care Shower and Bathroom Centre Ltd,29/04/2015,Corporate,Capital Expenditure,HRA Capital Expenditure,1209.56
Wigan Council ,E08000010,Pro Care Shower and Bathroom Centre Ltd,29/04/2015,Corporate,Capital Expenditure,HRA Capital Expenditure,1114.49
Wigan Council ,E08000010,Pro Care Shower and Bathroom Centre Ltd,30/04/2015,Corporate,Capital Expenditure,HRA Capital Expenditure,625.59
Wigan Council ,E08000010,Pro Care Shower and Bathroom Centre Ltd,30/04/2015,Corporate,Capital Expenditure,HRA Capital Expenditure,1231.07
Wigan Council ,E08000010,Pro Care Shower and Bathroom Centre Ltd,30/04/2015,Corporate,Capital Expenditure,HRA Capital Expenditure,676.78
Wigan Council ,E08000010,Pro Care Shower and Bathroom Centre Ltd,30/04/2015,Corporate,Capital Expenditure,HRA Capital Expenditure,784.8
Wigan Council ,E08000010,Pro Care Shower and Bathroom Centre Ltd,30/04/2015,Corporate,Capital Expenditure,HRA Capital Expenditure,2386.73
Wigan Council ,E08000010,Meridian Healthcare Ltd,01/04/2015,Support & Safeguarding,Third Party Payments,Respite Care,842
Wigan Council ,E08000010,Meridian Healthcare Ltd,01/04/2015,Support & Safeguarding,Third Party Payments,Permanent Care,1496
Wigan Council ,E08000010,Meridian Healthcare Ltd,01/04/2015,Support & Safeguarding,Third Party Payments,Permanent Care,1496
Wigan Council ,E08000010,Meridian Healthcare Ltd,01/04/2015,Support & Safeguarding,Third Party Payments,Permanent Care,1496
Wigan Council ,E08000010,Meridian Healthcare Ltd,01/04/2015,Support & Safeguarding,Third Party Payments,Permanent Care,1496
Wigan Council ,E08000010,Meridian Healthcare Ltd,01/04/2015,Support & Safeguarding,Third Party Payments,Permanent Care,1496
Wigan Council ,E08000010,Meridian Healthcare Ltd,01/04/2015,Support & Safeguarding,Third Party Payments,Permanent Care,1496
Wigan Council ,E08000010,Meridian Healthcare Ltd,01/04/2015,Support & Safeguarding,Third Party Payments,Permanent Care,1496
Wigan Council ,E08000010,Meridian Healthcare Ltd,01/04/2015,Support & Safeguarding,Third Party Payments,Permanent Care,1496
Wigan Council ,E08000010,Meridian Healthcare Ltd,01/04/2015,Support & Safeguarding,Third Party Payments,Permanent Care,1496
Wigan Council ,E08000010,Meridian Healthcare Ltd,01/04/2015,Support & Safeguarding,Third Party Payments,Permanent Care,1496
Wigan Council ,E08000010,Meridian Healthcare Ltd,01/04/2015,Support & Safeguarding,Third Party Payments,Permanent Care,1496
Wigan Council ,E08000010,Meridian Healthcare Ltd,01/04/2015,Support & Safeguarding,Third Party Payments,Permanent Care,1496
Wigan Council ,E08000010,Meridian Healthcare Ltd,01/04/2015,Support & Safeguarding,Third Party Payments,Permanent Care,1496
Wigan Council ,E08000010,Meridian Healthcare Ltd,01/04/2015,Support & Safeguarding,Third Party Payments,Permanent Care,1496
Wigan Council ,E08000010,Meridian Healthcare Ltd,01/04/2015,Support & Safeguarding,Third Party Payments,Permanent Care,1496
Wigan Council ,E08000010,Meridian Healthcare Ltd,01/04/2015,Support & Safeguarding,Third Party Payments,Permanent Care,1496
Wigan Council ,E08000010,Meridian Healthcare Ltd,01/04/2015,Support & Safeguarding,Third Party Payments,Permanent Care,1496
Wigan Council ,E08000010,Meridian Healthcare Ltd,01/04/2015,Support & Safeguarding,Third Party Payments,Permanent Care,1496
Wigan Council ,E08000010,Meridian Healthcare Ltd,01/04/2015,Support & Safeguarding,Third Party Payments,Permanent Care,1496
Wigan Council ,E08000010,Meridian Healthcare Ltd,01/04/2015,Support & Safeguarding,Third Party Payments,Permanent Care,1496
Wigan Council ,E08000010,Meridian Healthcare Ltd,01/04/2015,Support & Safeguarding,Third Party Payments,Permanent Care,1684
Wigan Council ,E08000010,Meridian Healthcare Ltd,01/04/2015,Support & Safeguarding,Third Party Payments,Permanent Care,1684
Wigan Council ,E08000010,Meridian Healthcare Ltd,01/04/2015,Support & Safeguarding,Third Party Payments,Permanent Care,1684
Wigan Council ,E08000010,Meridian Healthcare Ltd,01/04/2015,Support & Safeguarding,Third Party Payments,Respite Care,1684
Wigan Council ,E08000010,Meridian Healthcare Ltd,01/04/2015,Support & Safeguarding,Third Party Payments,Permanent Care,6518.29
Wigan Council ,E08000010,Meridian Healthcare Ltd,29/04/2015,Support & Safeguarding,Third Party Payments,Respite Care,534.29
Wigan Council ,E08000010,Meridian Healthcare Ltd,29/04/2015,Support & Safeguarding,Third Party Payments,Respite Care,694.57
Wigan Council ,E08000010,Meridian Healthcare Ltd,29/04/2015,Support & Safeguarding,Third Party Payments,Permanent Care,748
Wigan Council ,E08000010,Meridian Healthcare Ltd,29/04/2015,Support & Safeguarding,Third Party Payments,Respite Care,801.43
Wigan Council ,E08000010,Meridian Healthcare Ltd,29/04/2015,Support & Safeguarding,Third Party Payments,Permanent Care,854.86
Wigan Council ,E08000010,Meridian Healthcare Ltd,29/04/2015,Support & Safeguarding,Third Party Payments,Respite Care,1389.14
Wigan Council ,E08000010,Meridian Healthcare Ltd,29/04/2015,Support & Safeguarding,Third Party Payments,Permanent Care,1389.14
Wigan Council ,E08000010,Meridian Healthcare Ltd,29/04/2015,Support & Safeguarding,Third Party Payments,Permanent Care,1389.14
Wigan Council ,E08000010,Meridian Healthcare Ltd,29/04/2015,Support & Safeguarding,Third Party Payments,Permanent Care,1389.14
Wigan Council ,E08000010,Meridian Healthcare Ltd,29/04/2015,Support & Safeguarding,Third Party Payments,Permanent Care,1389.14
Wigan Council ,E08000010,Meridian Healthcare Ltd,29/04/2015,Support & Safeguarding,Third Party Payments,Permanent Care,1389.14
Wigan Council ,E08000010,Meridian Healthcare Ltd,29/04/2015,Support & Safeguarding,Third Party Payments,Permanent Care,1389.14
Wigan Council ,E08000010,Meridian Healthcare Ltd,29/04/2015,Support & Safeguarding,Third Party Payments,Permanent Care,1389.14
Wigan Council ,E08000010,Meridian Healthcare Ltd,29/04/2015,Support & Safeguarding,Third Party Payments,Permanent Care,1389.14
Wigan Council ,E08000010,Meridian Healthcare Ltd,29/04/2015,Support & Safeguarding,Third Party Payments,Permanent Care,1389.14
Wigan Council ,E08000010,Meridian Healthcare Ltd,29/04/2015,Support & Safeguarding,Third Party Payments,Permanent Care,1389.14
Wigan Council ,E08000010,Meridian Healthcare Ltd,29/04/2015,Support & Safeguarding,Third Party Payments,Permanent Care,1389.14
Wigan Council ,E08000010,Meridian Healthcare Ltd,29/04/2015,Support & Safeguarding,Third Party Payments,Permanent Care,1389.14
Wigan Council ,E08000010,Meridian Healthcare Ltd,29/04/2015,Support & Safeguarding,Third Party Payments,Permanent Care,1389.14
Wigan Council ,E08000010,Meridian Healthcare Ltd,29/04/2015,Support & Safeguarding,Third Party Payments,Permanent Care,1389.14
Wigan Council ,E08000010,Meridian Healthcare Ltd,29/04/2015,Support & Safeguarding,Third Party Payments,Permanent Care,1389.14
Wigan Council ,E08000010,Meridian Healthcare Ltd,29/04/2015,Support & Safeguarding,Third Party Payments,Permanent Care,1389.14
Wigan Council ,E08000010,Meridian Healthcare Ltd,29/04/2015,Support & Safeguarding,Third Party Payments,Permanent Care,1389.14
Wigan Council ,E08000010,Meridian Healthcare Ltd,29/04/2015,Support & Safeguarding,Third Party Payments,Permanent Care,1389.14
Wigan Council ,E08000010,Meridian Healthcare Ltd,29/04/2015,Support & Safeguarding,Third Party Payments,Permanent Care,1389.14
Wigan Council ,E08000010,Meridian Healthcare Ltd,29/04/2015,Support & Safeguarding,Third Party Payments,Permanent Care,1389.14
Wigan Council ,E08000010,Meridian Healthcare Ltd,29/04/2015,Support & Safeguarding,Third Party Payments,Permanent Care,1389.14
Wigan Council ,E08000010,Meridian Healthcare Ltd,29/04/2015,Support & Safeguarding,Third Party Payments,Respite Care,1442.57
Wigan Council ,E08000010,Meridian Healthcare Ltd,29/04/2015,Support & Safeguarding,Third Party Payments,Respite Care,1496
Wigan Council ,E08000010,Meridian Healthcare Ltd,29/04/2015,Support & Safeguarding,Third Party Payments,Permanent Care,1496
Wigan Council ,E08000010,Meridian Healthcare Ltd,29/04/2015,Support & Safeguarding,Third Party Payments,Permanent Care,1496
Wigan Council ,E08000010,Meridian Healthcare Ltd,29/04/2015,Support & Safeguarding,Third Party Payments,Permanent Care,1496
Wigan Council ,E08000010,Meridian Healthcare Ltd,29/04/2015,Support & Safeguarding,Third Party Payments,Permanent Care,1496
Wigan Council ,E08000010,Meridian Healthcare Ltd,29/04/2015,Support & Safeguarding,Third Party Payments,Permanent Care,1496
Wigan Council ,E08000010,Meridian Healthcare Ltd,29/04/2015,Support & Safeguarding,Third Party Payments,Permanent Care,1496
Wigan Council ,E08000010,Meridian Healthcare Ltd,29/04/2015,Support & Safeguarding,Third Party Payments,Permanent Care,1496
Wigan Council ,E08000010,Meridian Healthcare Ltd,29/04/2015,Support & Safeguarding,Third Party Payments,Permanent Care,1496
Wigan Council ,E08000010,Meridian Healthcare Ltd,29/04/2015,Support & Safeguarding,Third Party Payments,Permanent Care,1496
Wigan Council ,E08000010,Meridian Healthcare Ltd,29/04/2015,Support & Safeguarding,Third Party Payments,Permanent Care,1496
Wigan Council ,E08000010,Meridian Healthcare Ltd,29/04/2015,Support & Safeguarding,Third Party Payments,Permanent Care,1496
Wigan Council ,E08000010,Meridian Healthcare Ltd,29/04/2015,Support & Safeguarding,Third Party Payments,Permanent Care,1496
Wigan Council ,E08000010,Meridian Healthcare Ltd,29/04/2015,Support & Safeguarding,Third Party Payments,Permanent Care,1496
Wigan Council ,E08000010,Meridian Healthcare Ltd,29/04/2015,Support & Safeguarding,Third Party Payments,Permanent Care,1496
Wigan Council ,E08000010,Meridian Healthcare Ltd,29/04/2015,Support & Safeguarding,Third Party Payments,Permanent Care,1496
Wigan Council ,E08000010,Meridian Healthcare Ltd,29/04/2015,Support & Safeguarding,Third Party Payments,Permanent Care,1496
Wigan Council ,E08000010,Meridian Healthcare Ltd,29/04/2015,Support & Safeguarding,Third Party Payments,Permanent Care,1496
Wigan Council ,E08000010,Meridian Healthcare Ltd,29/04/2015,Support & Safeguarding,Third Party Payments,Permanent Care,1496
Wigan Council ,E08000010,Meridian Healthcare Ltd,29/04/2015,Support & Safeguarding,Third Party Payments,Permanent Care,1496
Wigan Council ,E08000010,Meridian Healthcare Ltd,29/04/2015,Support & Safeguarding,Third Party Payments,Permanent Care,1496
Wigan Council ,E08000010,Meridian Healthcare Ltd,29/04/2015,Support & Safeguarding,Third Party Payments,Permanent Care,1496
Wigan Council ,E08000010,Meridian Healthcare Ltd,29/04/2015,Support & Safeguarding,Third Party Payments,Permanent Care,1496
Wigan Council ,E08000010,Meridian Healthcare Ltd,29/04/2015,Support & Safeguarding,Third Party Payments,Respite Care,1549.43
Wigan Council ,E08000010,Meridian Healthcare Ltd,29/04/2015,Support & Safeguarding,Third Party Payments,Respite Care,1563.71
Wigan Council ,E08000010,Meridian Healthcare Ltd,29/04/2015,Support & Safeguarding,Third Party Payments,Permanent Care,1563.71
Wigan Council ,E08000010,Meridian Healthcare Ltd,29/04/2015,Support & Safeguarding,Third Party Payments,Permanent Care,1563.71
Wigan Council ,E08000010,Meridian Healthcare Ltd,29/04/2015,Support & Safeguarding,Third Party Payments,Permanent Care,1563.71
Wigan Council ,E08000010,Meridian Healthcare Ltd,29/04/2015,Support & Safeguarding,Third Party Payments,Permanent Care,1684
Wigan Council ,E08000010,Meridian Healthcare Ltd,29/04/2015,Support & Safeguarding,Third Party Payments,Permanent Care,1684
Wigan Council ,E08000010,Meridian Healthcare Ltd,29/04/2015,Support & Safeguarding,Third Party Payments,Permanent Care,1684
Wigan Council ,E08000010,Sitelift Ltd,22/04/2015,Trading,Transport,Vehicle and Plant Hire,896
Wigan Council ,E08000010,Wigan Taxi's Ltd t/a Crusader Cabs,08/04/2015,Infrastructure,Transport,Home To School,1470
Wigan Council ,E08000010,Wigan Taxi's Ltd t/a Crusader Cabs,08/04/2015,Infrastructure,Transport,Home To School,2835
Wigan Council ,E08000010,Just Learning,01/04/2015,Childrens - Departmental Overheads,Third Party Payments,Nursery Grant Payments,24285.75
Wigan Council ,E08000010,Bondcare Ltd - Lindsay House,01/04/2015,Support & Safeguarding,Third Party Payments,Permanent Care,1588
Wigan Council ,E08000010,Bondcare Ltd - Lindsay House,01/04/2015,Support & Safeguarding,Third Party Payments,Permanent Care,1588
Wigan Council ,E08000010,Bondcare Ltd - Lindsay House,29/04/2015,Support & Safeguarding,Third Party Payments,Permanent Care,1588
Wigan Council ,E08000010,Bondcare Ltd - Lindsay House,29/04/2015,Support & Safeguarding,Third Party Payments,Permanent Care,1588
Wigan Council ,E08000010,Bondcare Ltd - Lindsay House,29/04/2015,Support & Safeguarding,Third Party Payments,Permanent Care,1588
Wigan Council ,E08000010,Bondcare Ltd - Lindsay House,29/04/2015,Support & Safeguarding,Third Party Payments,Permanent Care,3005.86
Wigan Council ,E08000010,Norfolk House,01/04/2015,Support & Safeguarding,Third Party Payments,Permanent Care,1348
Wigan Council ,E08000010,Norfolk House,01/04/2015,Support & Safeguarding,Third Party Payments,Permanent Care,1348
Wigan Council ,E08000010,Norfolk House,01/04/2015,Support & Safeguarding,Third Party Payments,Permanent Care,1348
Wigan Council ,E08000010,Norfolk House,01/04/2015,Support & Safeguarding,Third Party Payments,Permanent Care,1348
Wigan Council ,E08000010,Norfolk House,01/04/2015,Support & Safeguarding,Third Party Payments,Permanent Care,1496
Wigan Council ,E08000010,Norfolk House,01/04/2015,Support & Safeguarding,Third Party Payments,Permanent Care,1496
Wigan Council ,E08000010,Norfolk House,01/04/2015,Support & Safeguarding,Third Party Payments,Permanent Care,1684
Wigan Council ,E08000010,Norfolk House,01/04/2015,Support & Safeguarding,Third Party Payments,Permanent Care,1684
Wigan Council ,E08000010,Norfolk House,01/04/2015,Support & Safeguarding,Third Party Payments,Permanent Care,1684
Wigan Council ,E08000010,Norfolk House,01/04/2015,Support & Safeguarding,Third Party Payments,Permanent Care,1684
Wigan Council ,E08000010,Norfolk House,01/04/2015,Support & Safeguarding,Third Party Payments,Permanent Care,1684
Wigan Council ,E08000010,Norfolk House,29/04/2015,Support & Safeguarding,Third Party Payments,Permanent Care,1348
Wigan Council ,E08000010,Norfolk House,29/04/2015,Support & Safeguarding,Third Party Payments,Permanent Care,1348
Wigan Council ,E08000010,Norfolk House,29/04/2015,Support & Safeguarding,Third Party Payments,Permanent Care,1348
Wigan Council ,E08000010,Norfolk House,29/04/2015,Support & Safeguarding,Third Party Payments,Permanent Care,1348
Wigan Council ,E08000010,Norfolk House,29/04/2015,Support & Safeguarding,Third Party Payments,Permanent Care,1496
Wigan Council ,E08000010,Norfolk House,29/04/2015,Support & Safeguarding,Third Party Payments,Permanent Care,1496
Wigan Council ,E08000010,Norfolk House,29/04/2015,Support & Safeguarding,Third Party Payments,Permanent Care,1684
Wigan Council ,E08000010,Norfolk House,29/04/2015,Support & Safeguarding,Third Party Payments,Permanent Care,1684
Wigan Council ,E08000010,Norfolk House,29/04/2015,Support & Safeguarding,Third Party Payments,Permanent Care,1684
Wigan Council ,E08000010,Norfolk House,29/04/2015,Support & Safeguarding,Third Party Payments,Permanent Care,1684
Wigan Council ,E08000010,Norfolk House,29/04/2015,Support & Safeguarding,Third Party Payments,Permanent Care,1684
Wigan Council ,E08000010,Art of Childcare Ltd,24/04/2015,Human Resources and Organisational Development,Supplies & Services,Professional Fees,595
Wigan Council ,E08000010,ThyssenKrupp Encasa Ltd,16/04/2015,Corporate,Capital Expenditure,GF Capital Expenditure,3465
Wigan Council ,E08000010,ThyssenKrupp Encasa Ltd,17/04/2015,Early Intervention & Prevention,Premises,Aids and Adaptations,1030
Wigan Council ,E08000010,ThyssenKrupp Encasa Ltd,29/04/2015,Corporate,Capital Expenditure,GF Capital Expenditure,960
Wigan Council ,E08000010,ThyssenKrupp Encasa Ltd,29/04/2015,Corporate,Capital Expenditure,HRA Capital Expenditure,1895
Wigan Council ,E08000010,ThyssenKrupp Encasa Ltd,29/04/2015,Corporate,Capital Expenditure,HRA Capital Expenditure,3800
Wigan Council ,E08000010,ThyssenKrupp Encasa Ltd,30/04/2015,Corporate,Capital Expenditure,HRA Capital Expenditure,1660
Wigan Council ,E08000010,Bluestar Taxis,10/04/2015,Infrastructure,Transport,Home To School,3615
Wigan Council ,E08000010,Bluestar Taxis,10/04/2015,Infrastructure,Transport,Home To School,4180
Wigan Council ,E08000010,Bluestar Taxis,15/04/2015,Provider Management & Market Development,Third Party Payments,Payments to Private Contractors,1484
Wigan Council ,E08000010,Chubb Fire Ltd,17/04/2015,Provider Management & Market Development,Premises,Repairs & Maintenance (Non CPMF),860.9
Wigan Council ,E08000010,Chubb Fire Ltd,30/04/2015,"Leisure, Cultural & Property",Premises,Repairs & Maintenance (Landlord),606.34
Wigan Council ,E08000010,Heathcoates Care Ltd (florence House),01/04/2015,Support & Safeguarding,Third Party Payments,Permanent Care,6992.16
Wigan Council ,E08000010,Heathcoates Care Ltd (florence House),29/04/2015,Support & Safeguarding,Third Party Payments,Permanent Care,6992.16
Wigan Council ,E08000010,Glasdon UK Ltd,30/04/2015,Corporate,Capital Expenditure,GF Capital Expenditure,638.69
Wigan Council ,E08000010,Glasdon UK Ltd,30/04/2015,Corporate,Capital Expenditure,GF Capital Expenditure,1277.38
Wigan Council ,E08000010,JLA Total Care Ltd,09/04/2015,Targeted Services,Supplies & Services,Equipment Furniture & Materials,522
Wigan Council ,E08000010,JLA Total Care Ltd,21/04/2015,Provider Management & Market Development,Supplies & Services,Equipment Furniture & Materials,798
Wigan Council ,E08000010,Sue Ryder Care,01/04/2015,Support & Safeguarding,Third Party Payments,Permanent Care,660.27
Wigan Council ,E08000010,Sue Ryder Care,01/04/2015,Support & Safeguarding,Third Party Payments,Permanent Care,1980.81
Wigan Council ,E08000010,Sue Ryder Care,29/04/2015,Support & Safeguarding,Third Party Payments,Permanent Care,2641.08
Wigan Council ,E08000010,Xerox (UK) Ltd,10/04/2015,IT and Communications,Supplies & Services,Reprographics,44912.81
Wigan Council ,E08000010,Stepping Stones,01/04/2015,Support & Safeguarding,Third Party Payments,Permanent Care,5068.08
Wigan Council ,E08000010,Stepping Stones,29/04/2015,Support & Safeguarding,Third Party Payments,Permanent Care,5068.08
Wigan Council ,E08000010,United Response,23/04/2015,Early Intervention & Prevention,Third Party Payments,Payments to Private Contractors,614.64
Wigan Council ,E08000010,United Response,23/04/2015,Adults - Departmental Overheads,Third Party Payments,Payments to Voluntary Organisations,10077.32
Wigan Council ,E08000010,United Response,23/04/2015,Provider Management & Market Development,Third Party Payments,Payments to Voluntary Organisations,39636.2
Wigan Council ,E08000010,Reilly Brothers,17/04/2015,Corporate,Capital Expenditure,HRA Capital Expenditure,750
Wigan Council ,E08000010,Reilly Brothers,30/04/2015,Corporate,Capital Expenditure,HRA Capital Expenditure,9500
Wigan Council ,E08000010,The Carpet Place,23/04/2015,Housing Revenue Account,Premises,HRA Repairs to Void Properties,864
Wigan Council ,E08000010,The Carpet Place,23/04/2015,Housing Revenue Account,Premises,HRA Repairs to Void Properties,767.5
Wigan Council ,E08000010,The Carpet Place,23/04/2015,Housing Revenue Account,Premises,HRA Repairs to Void Properties,684
Wigan Council ,E08000010,The Carpet Place,23/04/2015,Housing Revenue Account,Premises,HRA Repairs to Void Properties,560.5
Wigan Council ,E08000010,The Carpet Place,23/04/2015,Housing Revenue Account,Premises,HRA Repairs to Void Properties,1189.3
Wigan Council ,E08000010,The Carpet Place,23/04/2015,Housing Revenue Account,Premises,HRA Repairs to Void Properties,593
Wigan Council ,E08000010,Exegesis SDM Ltd,20/04/2015,Planning and Transportation,Supplies & Services,Computer Software (Licences & Maintenance),2599
Wigan Council ,E08000010,Finning (UK) Ltd,22/04/2015,Trading,Transport,Vehicle and Plant Hire,2200
Wigan Council ,E08000010,Finning (UK) Ltd,22/04/2015,Trading,Transport,Vehicle and Plant Hire,2200
Wigan Council ,E08000010,Hopwells Limited,07/04/2015,Trading,Supplies & Services,Provisions - Food and Drink,510.43
Wigan Council ,E08000010,Hopwells Limited,07/04/2015,Trading,Supplies & Services,Provisions - Food and Drink,555.26
Wigan Council ,E08000010,Hopwells Limited,07/04/2015,Trading,Supplies & Services,Provisions - Food and Drink,669.37
Wigan Council ,E08000010,Hopwells Limited,07/04/2015,Trading,Supplies & Services,Provisions - Food and Drink,1036.03
Wigan Council ,E08000010,Hopwells Limited,24/04/2015,Trading,Supplies & Services,Provisions - Food and Drink,588.61
Wigan Council ,E08000010,Hopwells Limited,24/04/2015,Trading,Supplies & Services,Provisions - Food and Drink,788.64
Wigan Council ,E08000010,Hopwells Limited,24/04/2015,Trading,Supplies & Services,Provisions - Food and Drink,841.33
Wigan Council ,E08000010,Hopwells Limited,24/04/2015,Trading,Supplies & Services,Provisions - Food and Drink,1106.99
Wigan Council ,E08000010,Holyrood Nursery,16/04/2015,Childrens - Departmental Overheads,Third Party Payments,Nursery Grant Payments,20616.12
Wigan Council ,E08000010,Pooles Domestics,08/04/2015,Provider Management & Market Development,Supplies & Services,Equipment Furniture & Materials,971.65
Wigan Council ,E08000010,Phonak Group Ltd,30/04/2015,Early Intervention and Prevention (Children),Supplies & Services,Equipment Furniture & Materials,765
Wigan Council ,E08000010,Academy Services,17/04/2015,Corporate,Capital Expenditure,GF Capital Expenditure,739.08
Wigan Council ,E08000010,Academy Services,17/04/2015,Corporate,Capital Expenditure,GF Capital Expenditure,833.69
Wigan Council ,E08000010,Academy Services,17/04/2015,Corporate,Capital Expenditure,GF Capital Expenditure,870
Wigan Council ,E08000010,Academy Services,17/04/2015,Corporate,Capital Expenditure,GF Capital Expenditure,1447.16
Wigan Council ,E08000010,Academy Services,17/04/2015,Corporate,Capital Expenditure,GF Capital Expenditure,1903.33
Wigan Council ,E08000010,Academy Services,29/04/2015,Corporate,Capital Expenditure,GF Capital Expenditure,943.5
Wigan Council ,E08000010,Academy Services,30/04/2015,Corporate,Capital Expenditure,GF Capital Expenditure,518.94
Wigan Council ,E08000010,Academy Services,30/04/2015,Early Intervention & Prevention,Premises,Aids and Adaptations,676.26
Wigan Council ,E08000010,Metric Group Ltd,10/04/2015,Planning and Transportation,Supplies & Services,Repairs To Equipment,3035.38
Wigan Council ,E08000010,Metric Group Ltd,10/04/2015,"Leisure, Cultural & Property",Supplies & Services,Repairs To Equipment,528.6
Wigan Council ,E08000010,Heron Day Nursery,01/04/2015,Childrens - Departmental Overheads,Third Party Payments,Nursery Grant Payments,10974.6
Wigan Council ,E08000010,Heron Day Nursery,01/04/2015,Childrens - Departmental Overheads,Third Party Payments,Nursery Grant Payments,20575.8
Wigan Council ,E08000010,Civica Uk Ltd,21/04/2015,Regulatory Services,Supplies & Services,Equipment Furniture & Materials,2725
Wigan Council ,E08000010,Civica Uk Ltd,28/04/2015,Customer Services,Supplies & Services,Computer Software (Licences & Maintenance),11478.48
Wigan Council ,E08000010,St Helens College,16/04/2015,Partnerships & Safeguarding,Third Party Payments,Private Education Services,3852.66
Wigan Council ,E08000010,REDACTED PERSONAL DATA,14/04/2015,Targeted Services,Supplies & Services,Professional Fees,720
Wigan Council ,E08000010,REDACTED PERSONAL DATA,21/04/2015,Targeted Services,Supplies & Services,Professional Fees,720
Wigan Council ,E08000010,REDACTED PERSONAL DATA,30/04/2015,Targeted Services,Supplies & Services,Professional Fees,720
Wigan Council ,E08000010,Starbrite Nursery,01/04/2015,Childrens - Departmental Overheads,Third Party Payments,Nursery Grant Payments,25061.23
Wigan Council ,E08000010,Starbrite Nursery,13/04/2015,Legal,Supplies & Services,Grants to External Bodies,1000
Wigan Council ,E08000010,Brabbin & Rudd Ltd,10/04/2015,Trading,Supplies & Services,Agresso Warehouse Control Account,1035.42
Wigan Council ,E08000010,Brabbin & Rudd Ltd,10/04/2015,Trading,Supplies & Services,Agresso Warehouse Control Account,902.8
Wigan Council ,E08000010,Brooklands Childcare Ltd,01/04/2015,Childrens - Departmental Overheads,Third Party Payments,Nursery Grant Payments,17502.24
Wigan Council ,E08000010,Brooklands Childcare Ltd,01/04/2015,Childrens - Departmental Overheads,Third Party Payments,Nursery Grant Payments,21348.94
Wigan Council ,E08000010,Brooklands Childcare Ltd,01/04/2015,Childrens - Departmental Overheads,Third Party Payments,Nursery Grant Payments,27980.91
Wigan Council ,E08000010,Brooklands Childcare Ltd,01/04/2015,Childrens - Departmental Overheads,Third Party Payments,Nursery Grant Payments,37786.56
Wigan Council ,E08000010,Brooklands Childcare Ltd,07/04/2015,Childrens - Departmental Overheads,Third Party Payments,Nursery Grant Payments,892.2
Wigan Council ,E08000010,OCS Group UK Ltd T/A Cannon,16/04/2015,Targeted Services,Supplies & Services,Equipment Furniture & Materials,1661.4
Wigan Council ,E08000010,OCS Group UK Ltd T/A Cannon,20/04/2015,Provider Management & Market Development,Supplies & Services,Equipment Furniture & Materials,502.71
Wigan Council ,E08000010,Howdens Joinery Co.,14/04/2015,Trading,Supplies & Services,Agresso Warehouse Control Account,1703.85
Wigan Council ,E08000010,Howdens Joinery Co.,23/04/2015,Trading,Supplies & Services,Direct Materials,973.5
Wigan Council ,E08000010,Howdens Joinery Co.,30/04/2015,Trading,Supplies & Services,Agresso Warehouse Control Account,504.87
Wigan Council ,E08000010,Moston Grange N.H.,01/04/2015,Support & Safeguarding,Third Party Payments,Permanent Care,4071.4
Wigan Council ,E08000010,Moston Grange N.H.,29/04/2015,Support & Safeguarding,Third Party Payments,Permanent Care,4071.4
Wigan Council ,E08000010,SLC Paragon UK Limited,23/04/2015,Provider Management & Market Development,Third Party Payments,Payments to Voluntary Organisations,8039.68
Wigan Council ,E08000010,SLC Paragon UK Limited,28/04/2015,Provider Management & Market Development,Third Party Payments,Payments to Private Contractors,2091.12
Wigan Council ,E08000010,SLC Paragon UK Limited,28/04/2015,Provider Management & Market Development,Third Party Payments,Payments to Private Contractors,5036.4
Wigan Council ,E08000010,SLC Paragon UK Limited,28/04/2015,Provider Management & Market Development,Third Party Payments,Payments to Private Contractors,3011.76
Wigan Council ,E08000010,Sunny Bank Prs Ltd,20/04/2015,Provider Management & Market Development,Third Party Payments,Private Domicilliary,759.36
Wigan Council ,E08000010,Young Persons' Centre,01/04/2015,Childrens - Departmental Overheads,Third Party Payments,Nursery Grant Payments,52431.66
Wigan Council ,E08000010,Young Persons' Centre,24/04/2015,Childrens - Departmental Overheads,Third Party Payments,Nursery Grant Payments,1584
Wigan Council ,E08000010,BAM Nuttall Ltd,10/04/2015,Trading,Supplies & Services,Subcontracted Repairs,1702.24
Wigan Council ,E08000010,A Connolly Limited,29/04/2015,Corporate,Capital Expenditure,GF Capital Expenditure,512.17
Wigan Council ,E08000010,A Connolly Limited,29/04/2015,"Leisure, Cultural & Property",Premises,Repairs & Maintenance (Landlord),625.3
Wigan Council ,E08000010,A Connolly Limited,29/04/2015,"Leisure, Cultural & Property",Premises,Repairs & Maintenance (Landlord),712.55
Wigan Council ,E08000010,A Connolly Limited,29/04/2015,"Leisure, Cultural & Property",Premises,Repairs & Maintenance (Landlord),2455.06
Wigan Council ,E08000010,A Connolly Limited,29/04/2015,Corporate,Capital Expenditure,GF Capital Expenditure,17601.69
Wigan Council ,E08000010,A Connolly Limited,30/04/2015,"Leisure, Cultural & Property",Premises,Repairs & Maintenance (Landlord),573.27
Wigan Council ,E08000010,A Connolly Limited,30/04/2015,Corporate,Capital Expenditure,GF Capital Expenditure,3535.15
Wigan Council ,E08000010,Brothers Of Charity,30/04/2015,Provider Management & Market Development,Third Party Payments,Payments to Voluntary Organisations,4447.76
Wigan Council ,E08000010,Brothers Of Charity,30/04/2015,Provider Management & Market Development,Third Party Payments,Private Day Care,887.44
Wigan Council ,E08000010,Fostering Solutions,29/04/2015,Targeted Services,Third Party Payments,Payments to Voluntary Organisations,3440.1
Wigan Council ,E08000010,Fostering Solutions,29/04/2015,Targeted Services,Third Party Payments,Payments to Voluntary Organisations,3407.1
Wigan Council ,E08000010,Fostering Solutions,29/04/2015,Targeted Services,Third Party Payments,Payments to Voluntary Organisations,3095.4
Wigan Council ,E08000010,Fostering Solutions,29/04/2015,Targeted Services,Third Party Payments,Payments to Voluntary Organisations,2823.9
Wigan Council ,E08000010,Fostering Solutions,29/04/2015,Targeted Services,Third Party Payments,Payments to Voluntary Organisations,3095.4
Wigan Council ,E08000010,Hope School Nursery,01/04/2015,Childrens - Departmental Overheads,Third Party Payments,Nursery Grant Payments,18963
Wigan Council ,E08000010,IAS (Services) Limited,17/04/2015,Provider Management & Market Development,Third Party Payments,Payments to Voluntary Organisations,1550
Wigan Council ,E08000010,IAS (Services) Limited,23/04/2015,Provider Management & Market Development,Third Party Payments,Payments to Voluntary Organisations,20383.16
Wigan Council ,E08000010,IAS (Services) Limited,23/04/2015,Provider Management & Market Development,Third Party Payments,Payments to Voluntary Organisations,28813.12
Wigan Council ,E08000010,IAS (Services) Limited,23/04/2015,Provider Management & Market Development,Third Party Payments,Payments to Voluntary Organisations,29907.72
Wigan Council ,E08000010,IAS (Services) Limited,23/04/2015,Adults - Departmental Overheads,Third Party Payments,Payments to Voluntary Organisations,31776.84
Wigan Council ,E08000010,IAS (Services) Limited,23/04/2015,Provider Management & Market Development,Third Party Payments,Payments to Voluntary Organisations,54040
Wigan Council ,E08000010,IAS (Services) Limited,23/04/2015,Provider Management & Market Development,Third Party Payments,Payments to Voluntary Organisations,66339.8
Wigan Council ,E08000010,IAS (Services) Limited,23/04/2015,Provider Management & Market Development,Third Party Payments,Payments to Voluntary Organisations,133264.08
Wigan Council ,E08000010,IAS (Services) Limited,30/04/2015,Support & Safeguarding,Third Party Payments,Private Domicilliary,14326
Wigan Council ,E08000010,IAS (Services) Limited,30/04/2015,Support & Safeguarding,Third Party Payments,Private Domicilliary,14326
Wigan Council ,E08000010,IAS (Services) Limited,30/04/2015,Support & Safeguarding,Third Party Payments,Private Domicilliary,1453.5
Wigan Council ,E08000010,IAS (Services) Limited,30/04/2015,Support & Safeguarding,Third Party Payments,Private Domicilliary,1504.5
Wigan Council ,E08000010,Instarmac Group plc,14/04/2015,Trading,Supplies & Services,Agresso Warehouse Control Account,1233.52
Wigan Council ,E08000010,Instarmac Group plc,14/04/2015,Trading,Supplies & Services,Agresso Warehouse Control Account,571.6
Wigan Council ,E08000010,Jah-Jireh Rest Home,01/04/2015,Support & Safeguarding,Third Party Payments,Nursing Care,610.44
Wigan Council ,E08000010,Jah-Jireh Rest Home,01/04/2015,Support & Safeguarding,Third Party Payments,Permanent Care,1303.8
Wigan Council ,E08000010,Jah-Jireh Rest Home,01/04/2015,Support & Safeguarding,Third Party Payments,Permanent Care,1348
Wigan Council ,E08000010,Jah-Jireh Rest Home,01/04/2015,Support & Safeguarding,Third Party Payments,Permanent Care,1348
Wigan Council ,E08000010,Jah-Jireh Rest Home,01/04/2015,Support & Safeguarding,Third Party Payments,Permanent Care,1496
Wigan Council ,E08000010,Jah-Jireh Rest Home,01/04/2015,Support & Safeguarding,Third Party Payments,Permanent Care,1496
Wigan Council ,E08000010,Jah-Jireh Rest Home,01/04/2015,Support & Safeguarding,Third Party Payments,Permanent Care,1496
Wigan Council ,E08000010,Jah-Jireh Rest Home,01/04/2015,Support & Safeguarding,Third Party Payments,Permanent Care,1496
Wigan Council ,E08000010,Jah-Jireh Rest Home,01/04/2015,Support & Safeguarding,Third Party Payments,Permanent Care,1684
Wigan Council ,E08000010,Jah-Jireh Rest Home,01/04/2015,Support & Safeguarding,Third Party Payments,Permanent Care,1684
Wigan Council ,E08000010,Jah-Jireh Rest Home,29/04/2015,Support & Safeguarding,Third Party Payments,Nursing Care,572.52
Wigan Council ,E08000010,Jah-Jireh Rest Home,29/04/2015,Support & Safeguarding,Third Party Payments,Permanent Care,1303.8
Wigan Council ,E08000010,Jah-Jireh Rest Home,29/04/2015,Support & Safeguarding,Third Party Payments,Permanent Care,1348
Wigan Council ,E08000010,Jah-Jireh Rest Home,29/04/2015,Support & Safeguarding,Third Party Payments,Permanent Care,1348
Wigan Council ,E08000010,Jah-Jireh Rest Home,29/04/2015,Support & Safeguarding,Third Party Payments,Permanent Care,1389.14
Wigan Council ,E08000010,Jah-Jireh Rest Home,29/04/2015,Support & Safeguarding,Third Party Payments,Permanent Care,1389.14
Wigan Council ,E08000010,Jah-Jireh Rest Home,29/04/2015,Support & Safeguarding,Third Party Payments,Permanent Care,1496
Wigan Council ,E08000010,Jah-Jireh Rest Home,29/04/2015,Support & Safeguarding,Third Party Payments,Permanent Care,1496
Wigan Council ,E08000010,Jah-Jireh Rest Home,29/04/2015,Support & Safeguarding,Third Party Payments,Permanent Care,1496
Wigan Council ,E08000010,Jah-Jireh Rest Home,29/04/2015,Support & Safeguarding,Third Party Payments,Permanent Care,1496
Wigan Council ,E08000010,Jah-Jireh Rest Home,29/04/2015,Support & Safeguarding,Third Party Payments,Permanent Care,1563.71
Wigan Council ,E08000010,Jah-Jireh Rest Home,29/04/2015,Support & Safeguarding,Third Party Payments,Permanent Care,1684
Wigan Council ,E08000010,Jah-Jireh Rest Home,29/04/2015,Support & Safeguarding,Third Party Payments,Permanent Care,1684
Wigan Council ,E08000010,REDACTED PERSONAL DATA,30/04/2015,Corporate,Capital Expenditure,GF Capital Expenditure,1792
Wigan Council ,E08000010,REDACTED PERSONAL DATA,17/04/2015,Targeted Services,Supplies & Services,Professional Fees,930
Wigan Council ,E08000010,REDACTED PERSONAL DATA,21/04/2015,Targeted Services,Supplies & Services,Professional Fees,1350
Wigan Council ,E08000010,REDACTED PERSONAL DATA,24/04/2015,Targeted Services,Supplies & Services,Professional Fees,750
Wigan Council ,E08000010,Powell Hardware Ltd,14/04/2015,Trading,Supplies & Services,Agresso Warehouse Control Account,507.46
Wigan Council ,E08000010,Powell Hardware Ltd,14/04/2015,Trading,Supplies & Services,Agresso Warehouse Control Account,596
Wigan Council ,E08000010,Capstone Foster Care (north) Ltd,22/04/2015,Targeted Services,Third Party Payments,Payments to Voluntary Organisations,3595.33
Wigan Council ,E08000010,Capstone Foster Care (north) Ltd,24/04/2015,Targeted Services,Third Party Payments,Payments to Voluntary Organisations,3902.23
Wigan Council ,E08000010,Rothwells Paper Ltd,28/04/2015,Trading,Supplies & Services,Agresso Warehouse Control Account,720
Wigan Council ,E08000010,Richmond Fellowship,23/04/2015,Early Intervention & Prevention,Third Party Payments,Payments to Private Contractors,1146.8
Wigan Council ,E08000010,Richmond Fellowship,23/04/2015,Early Intervention & Prevention,Third Party Payments,Payments to Private Contractors,7365.68
Wigan Council ,E08000010,Tameside Council - GMPF,28/04/2015,Finance,Salaries,Enhanced Pension Costs,149000
Wigan Council ,E08000010,The Village Nursery,01/04/2015,Childrens - Departmental Overheads,Third Party Payments,Nursery Grant Payments,29480.64
Wigan Council ,E08000010,Hughes Brothers Ltd,07/04/2015,Corporate,Capital Expenditure,HRA Capital Expenditure,2955.43
Wigan Council ,E08000010,Hughes Brothers Ltd,07/04/2015,Corporate,Capital Expenditure,HRA Capital Expenditure,3001.46
Wigan Council ,E08000010,Hughes Brothers Ltd,07/04/2015,Corporate,Capital Expenditure,HRA Capital Expenditure,3215.68
Wigan Council ,E08000010,Hughes Brothers Ltd,22/04/2015,Trading,Supplies & Services,Subcontracted Repairs,2214.45
Wigan Council ,E08000010,Hughes Brothers Ltd,29/04/2015,Housing Revenue Account,Premises,Aids and Adaptations,500
Wigan Council ,E08000010,Hughes Brothers Ltd,29/04/2015,Housing Revenue Account,Premises,Aids and Adaptations,503.47
Wigan Council ,E08000010,Hughes Brothers Ltd,29/04/2015,Corporate,Capital Expenditure,HRA Capital Expenditure,667.8
Wigan Council ,E08000010,Hughes Brothers Ltd,29/04/2015,Corporate,Capital Expenditure,HRA Capital Expenditure,934.16
Wigan Council ,E08000010,Hughes Brothers Ltd,29/04/2015,Corporate,Capital Expenditure,HRA Capital Expenditure,1254.46
Wigan Council ,E08000010,Hughes Brothers Ltd,29/04/2015,Corporate,Capital Expenditure,HRA Capital Expenditure,1254.46
Wigan Council ,E08000010,Hughes Brothers Ltd,29/04/2015,Corporate,Capital Expenditure,HRA Capital Expenditure,1578.46
Wigan Council ,E08000010,Hughes Brothers Ltd,29/04/2015,Corporate,Capital Expenditure,HRA Capital Expenditure,1724.86
Wigan Council ,E08000010,Hughes Brothers Ltd,29/04/2015,Housing Revenue Account,Premises,HRA Day to Day Responsive Repairs,1972.16
Wigan Council ,E08000010,Hughes Brothers Ltd,29/04/2015,Corporate,Capital Expenditure,HRA Capital Expenditure,2298.02
Wigan Council ,E08000010,Hughes Brothers Ltd,29/04/2015,Corporate,Capital Expenditure,HRA Capital Expenditure,2360.38
Wigan Council ,E08000010,Hughes Brothers Ltd,29/04/2015,Corporate,Capital Expenditure,HRA Capital Expenditure,2850.88
Wigan Council ,E08000010,Hughes Brothers Ltd,29/04/2015,Corporate,Capital Expenditure,HRA Capital Expenditure,2864.64
Wigan Council ,E08000010,Hughes Brothers Ltd,29/04/2015,Corporate,Capital Expenditure,HRA Capital Expenditure,2909.26
Wigan Council ,E08000010,Hughes Brothers Ltd,29/04/2015,Corporate,Capital Expenditure,HRA Capital Expenditure,2945.11
Wigan Council ,E08000010,Hughes Brothers Ltd,29/04/2015,Corporate,Capital Expenditure,HRA Capital Expenditure,3004.06
Wigan Council ,E08000010,Hughes Brothers Ltd,29/04/2015,Corporate,Capital Expenditure,HRA Capital Expenditure,3061.86
Wigan Council ,E08000010,Hughes Brothers Ltd,29/04/2015,Corporate,Capital Expenditure,HRA Capital Expenditure,3149.16
Wigan Council ,E08000010,Hughes Brothers Ltd,29/04/2015,Corporate,Capital Expenditure,HRA Capital Expenditure,3400
Wigan Council ,E08000010,Hughes Brothers Ltd,29/04/2015,Corporate,Capital Expenditure,HRA Capital Expenditure,3447.16
Wigan Council ,E08000010,Hughes Brothers Ltd,29/04/2015,Corporate,Capital Expenditure,HRA Capital Expenditure,3493.2
Wigan Council ,E08000010,Hughes Brothers Ltd,29/04/2015,Corporate,Capital Expenditure,HRA Capital Expenditure,3760.36
Wigan Council ,E08000010,Hughes Brothers Ltd,30/04/2015,Trading,Supplies & Services,Subcontracted Repairs,2460.75
Wigan Council ,E08000010,Hughes Brothers Ltd,30/04/2015,Trading,Supplies & Services,Subcontracted Repairs,6674.4
Wigan Council ,E08000010,Hughes Brothers Ltd,30/04/2015,Trading,Supplies & Services,Subcontracted Repairs,2574.96
Wigan Council ,E08000010,Hughes Brothers Ltd,30/04/2015,Trading,Supplies & Services,Subcontracted Repairs,3093.48
Wigan Council ,E08000010,Hughes Brothers Ltd,30/04/2015,Trading,Supplies & Services,Subcontracted Repairs,1421.72
Wigan Council ,E08000010,Hughes Brothers Ltd,30/04/2015,Trading,Supplies & Services,Subcontracted Repairs,2234.21
Wigan Council ,E08000010,Hughes Brothers Ltd,30/04/2015,Trading,Supplies & Services,Subcontracted Repairs,1392.76
Wigan Council ,E08000010,Hughes Brothers Ltd,30/04/2015,Trading,Supplies & Services,Subcontracted Repairs,1038.81
Wigan Council ,E08000010,Hughes Brothers Ltd,30/04/2015,Trading,Supplies & Services,Subcontracted Repairs,2193.49
Wigan Council ,E08000010,Hughes Brothers Ltd,30/04/2015,Trading,Supplies & Services,Subcontracted Repairs,2464.3
Wigan Council ,E08000010,Hughes Brothers Ltd,30/04/2015,Trading,Supplies & Services,Subcontracted Repairs,858.22
Wigan Council ,E08000010,Hughes Brothers Ltd,30/04/2015,Trading,Supplies & Services,Subcontracted Repairs,2618.91
Wigan Council ,E08000010,Hughes Brothers Ltd,30/04/2015,Trading,Supplies & Services,Subcontracted Repairs,2325.67
Wigan Council ,E08000010,Hughes Brothers Ltd,30/04/2015,Trading,Supplies & Services,Subcontracted Repairs,1008.77
Wigan Council ,E08000010,Hughes Brothers Ltd,30/04/2015,Trading,Supplies & Services,Subcontracted Repairs,1409.71
Wigan Council ,E08000010,Hughes Brothers Ltd,30/04/2015,Trading,Supplies & Services,Subcontracted Repairs,709.75
Wigan Council ,E08000010,Hughes Brothers Ltd,30/04/2015,Trading,Supplies & Services,Subcontracted Repairs,3081.87
Wigan Council ,E08000010,Hughes Brothers Ltd,30/04/2015,Trading,Supplies & Services,Subcontracted Repairs,1068.44
Wigan Council ,E08000010,Hughes Brothers Ltd,30/04/2015,Trading,Supplies & Services,Subcontracted Repairs,11829.78
Wigan Council ,E08000010,Hughes Brothers Ltd,30/04/2015,Trading,Supplies & Services,Subcontracted Repairs,2790.27
Wigan Council ,E08000010,Hughes Brothers Ltd,30/04/2015,Trading,Supplies & Services,Subcontracted Repairs,569.68
Wigan Council ,E08000010,Hughes Brothers Ltd,30/04/2015,Trading,Supplies & Services,Subcontracted Repairs,867.11
Wigan Council ,E08000010,Hughes Brothers Ltd,30/04/2015,Trading,Supplies & Services,Subcontracted Repairs,1143.2
Wigan Council ,E08000010,Hughes Brothers Ltd,30/04/2015,Trading,Supplies & Services,Subcontracted Repairs,5940.37
Wigan Council ,E08000010,Hughes Brothers Ltd,30/04/2015,Trading,Supplies & Services,Subcontracted Repairs,2990.82
Wigan Council ,E08000010,Hughes Brothers Ltd,30/04/2015,Trading,Supplies & Services,Subcontracted Repairs,1743.78
Wigan Council ,E08000010,Hughes Brothers Ltd,30/04/2015,Trading,Supplies & Services,Subcontracted Repairs,1990.23
Wigan Council ,E08000010,Hughes Brothers Ltd,30/04/2015,Trading,Supplies & Services,Subcontracted Repairs,2236.94
Wigan Council ,E08000010,Hughes Brothers Ltd,30/04/2015,Trading,Supplies & Services,Subcontracted Repairs,842.43
Wigan Council ,E08000010,Hughes Brothers Ltd,30/04/2015,Trading,Supplies & Services,Subcontracted Repairs,1153.12
Wigan Council ,E08000010,Hughes Brothers Ltd,30/04/2015,Trading,Supplies & Services,Subcontracted Repairs,2677.2
Wigan Council ,E08000010,Hughes Brothers Ltd,30/04/2015,Trading,Supplies & Services,Subcontracted Repairs,7426.6
Wigan Council ,E08000010,Hughes Brothers Ltd,30/04/2015,Trading,Supplies & Services,Subcontracted Repairs,895
Wigan Council ,E08000010,Bradshaw Gass & Hope LLP,22/04/2015,Corporate,Capital Expenditure,HRA Capital Expenditure,1116
Wigan Council ,E08000010,Bradshaw Gass & Hope LLP,22/04/2015,Corporate,Capital Expenditure,HRA Capital Expenditure,2734.25
Wigan Council ,E08000010,Beeches Care Home,01/04/2015,Support & Safeguarding,Third Party Payments,Permanent Care,1682
Wigan Council ,E08000010,Beeches Care Home,01/04/2015,Support & Safeguarding,Third Party Payments,Permanent Care,1792
Wigan Council ,E08000010,Beeches Care Home,01/04/2015,Support & Safeguarding,Third Party Payments,Permanent Care,1792
Wigan Council ,E08000010,Beeches Care Home,01/04/2015,Support & Safeguarding,Third Party Payments,Permanent Care,1860
Wigan Council ,E08000010,Beeches Care Home,29/04/2015,Support & Safeguarding,Third Party Payments,Permanent Care,1682
Wigan Council ,E08000010,Beeches Care Home,29/04/2015,Support & Safeguarding,Third Party Payments,Permanent Care,1792
Wigan Council ,E08000010,Beeches Care Home,29/04/2015,Support & Safeguarding,Third Party Payments,Permanent Care,1792
Wigan Council ,E08000010,Beeches Care Home,29/04/2015,Support & Safeguarding,Third Party Payments,Permanent Care,1860
Wigan Council ,E08000010,Buttons & Bows P D N,01/04/2015,Childrens - Departmental Overheads,Third Party Payments,Nursery Grant Payments,14680.68
Wigan Council ,E08000010,Best Friends Nursery,01/04/2015,Childrens - Departmental Overheads,Third Party Payments,Nursery Grant Payments,16016.95
Wigan Council ,E08000010,Best Friends Nursery,07/04/2015,Childrens - Departmental Overheads,Third Party Payments,Nursery Grant Payments,524.7
Wigan Council ,E08000010,Kids.Com Day Nursery,27/04/2015,Childrens - Departmental Overheads,Third Party Payments,Nursery Grant Payments,13310.3
Wigan Council ,E08000010,NCC Services Limited,16/04/2015,Public Health,Third Party Payments,Housing Support / Drugs and Alcohol,600
Wigan Council ,E08000010,Standish Under Fives,01/04/2015,Childrens - Departmental Overheads,Third Party Payments,Nursery Grant Payments,19691.95
Wigan Council ,E08000010,Woodfold Fledglings,01/04/2015,Childrens - Departmental Overheads,Third Party Payments,Nursery Grant Payments,17680.99
Wigan Council ,E08000010,ISM Construction Ltd,08/04/2015,Corporate,Capital Expenditure,GF Capital Expenditure,35000
Wigan Council ,E08000010,Borough Care Services,01/04/2015,Support & Safeguarding,Third Party Payments,Respite Care,3472.86
Wigan Council ,E08000010,Borough Care Services,29/04/2015,Support & Safeguarding,Third Party Payments,Respite Care,6197.71
Wigan Council ,E08000010,Carlton Fuels,28/04/2015,Trading,Supplies & Services,Stock Purchases,21238.59
Wigan Council ,E08000010,Carlton Fuels,28/04/2015,Trading,Supplies & Services,Stock Purchases,2735
Wigan Council ,E08000010,Carlton Fuels,29/04/2015,Trading,Supplies & Services,Stock Purchases,19237.56
Wigan Council ,E08000010,The Fostering Network,17/04/2015,Targeted Services,Supplies & Services,Payments to Carers,680
Wigan Council ,E08000010,Entwistle & Joynt Ltd,28/04/2015,Trading,Supplies & Services,Direct Materials,1329.27
Wigan Council ,E08000010,Jumping Jacks Nursery,01/04/2015,Childrens - Departmental Overheads,Third Party Payments,Nursery Grant Payments,18533.09
Wigan Council ,E08000010,NJS & G Contracts Ltd,08/04/2015,Provider Management & Market Development,Third Party Payments,Payments to Private Contractors,2380
Wigan Council ,E08000010,NJS & G Contracts Ltd,09/04/2015,Targeted Services,Transport,Vehicle and Plant Hire,1830
Wigan Council ,E08000010,NJS & G Contracts Ltd,30/04/2015,Provider Management & Market Development,Third Party Payments,Private Day Care,1874.62
Wigan Council ,E08000010,NJS & G Contracts Ltd,30/04/2015,Provider Management & Market Development,Third Party Payments,Private Day Care,1484.2
Wigan Council ,E08000010,Stocks Hall Care Home,01/04/2015,Support & Safeguarding,Third Party Payments,Permanent Care,2061.96
Wigan Council ,E08000010,Stocks Hall Care Home,01/04/2015,Support & Safeguarding,Third Party Payments,Permanent Care,2246.4
Wigan Council ,E08000010,Stocks Hall Care Home,01/04/2015,Support & Safeguarding,Third Party Payments,Permanent Care,2316
Wigan Council ,E08000010,Stocks Hall Care Home,01/04/2015,Support & Safeguarding,Third Party Payments,Permanent Care,3386
Wigan Council ,E08000010,Stocks Hall Care Home,01/04/2015,Support & Safeguarding,Third Party Payments,Permanent Care,3400
Wigan Council ,E08000010,Stocks Hall Care Home,01/04/2015,Support & Safeguarding,Third Party Payments,Permanent Care,8183.31
Wigan Council ,E08000010,Stocks Hall Care Home,29/04/2015,Support & Safeguarding,Third Party Payments,Permanent Care,2061.96
Wigan Council ,E08000010,Stocks Hall Care Home,29/04/2015,Support & Safeguarding,Third Party Payments,Permanent Care,2246.4
Wigan Council ,E08000010,Stocks Hall Care Home,29/04/2015,Support & Safeguarding,Third Party Payments,Permanent Care,2316
Wigan Council ,E08000010,Stocks Hall Care Home,29/04/2015,Support & Safeguarding,Third Party Payments,Permanent Care,3386
Wigan Council ,E08000010,Stocks Hall Care Home,29/04/2015,Support & Safeguarding,Third Party Payments,Permanent Care,3400
Wigan Council ,E08000010,Peter Case Plant Hire Ltd,22/04/2015,Trading,Transport,Vehicle and Plant Hire,668.5
Wigan Council ,E08000010,Cardinall Heenan House,01/04/2015,Support & Safeguarding,Third Party Payments,Permanent Care,1780
Wigan Council ,E08000010,Cardinall Heenan House,01/04/2015,Support & Safeguarding,Third Party Payments,Permanent Care,1780
Wigan Council ,E08000010,Cardinall Heenan House,01/04/2015,Support & Safeguarding,Third Party Payments,Permanent Care,1780
Wigan Council ,E08000010,Cardinall Heenan House,01/04/2015,Support & Safeguarding,Third Party Payments,Permanent Care,1824
Wigan Council ,E08000010,Cardinall Heenan House,01/04/2015,Support & Safeguarding,Third Party Payments,Permanent Care,1824
Wigan Council ,E08000010,Cardinall Heenan House,01/04/2015,Support & Safeguarding,Third Party Payments,Permanent Care,1824
Wigan Council ,E08000010,Cardinall Heenan House,01/04/2015,Support & Safeguarding,Third Party Payments,Permanent Care,1824
Wigan Council ,E08000010,Cardinall Heenan House,29/04/2015,Support & Safeguarding,Third Party Payments,Permanent Care,1780
Wigan Council ,E08000010,Cardinall Heenan House,29/04/2015,Support & Safeguarding,Third Party Payments,Permanent Care,1780
Wigan Council ,E08000010,Cardinall Heenan House,29/04/2015,Support & Safeguarding,Third Party Payments,Permanent Care,1780
Wigan Council ,E08000010,Cardinall Heenan House,29/04/2015,Support & Safeguarding,Third Party Payments,Permanent Care,1824
Wigan Council ,E08000010,Cardinall Heenan House,29/04/2015,Support & Safeguarding,Third Party Payments,Permanent Care,1824
Wigan Council ,E08000010,Cardinall Heenan House,29/04/2015,Support & Safeguarding,Third Party Payments,Permanent Care,1824
Wigan Council ,E08000010,Cardinall Heenan House,29/04/2015,Support & Safeguarding,Third Party Payments,Permanent Care,1824
Wigan Council ,E08000010,Holly Tree Day Nursery Ltd,01/04/2015,Childrens - Departmental Overheads,Third Party Payments,Nursery Grant Payments,21216.55
Wigan Council ,E08000010,The David Lewis Centre,01/04/2015,Support & Safeguarding,Third Party Payments,Permanent Care,3170.44
Wigan Council ,E08000010,The David Lewis Centre,01/04/2015,Support & Safeguarding,Third Party Payments,Permanent Care,4779.64
Wigan Council ,E08000010,The David Lewis Centre,01/04/2015,Support & Safeguarding,Third Party Payments,Permanent Care,6966.2
Wigan Council ,E08000010,The David Lewis Centre,01/04/2015,Support & Safeguarding,Third Party Payments,Permanent Care,11859.08
Wigan Council ,E08000010,The David Lewis Centre,29/04/2015,Support & Safeguarding,Third Party Payments,Permanent Care,3170.44
Wigan Council ,E08000010,The David Lewis Centre,29/04/2015,Support & Safeguarding,Third Party Payments,Permanent Care,4779.64
Wigan Council ,E08000010,The David Lewis Centre,29/04/2015,Support & Safeguarding,Third Party Payments,Permanent Care,6966.2
Wigan Council ,E08000010,The David Lewis Centre,29/04/2015,Support & Safeguarding,Third Party Payments,Permanent Care,11859.08
Wigan Council ,E08000010,Liverpool City Council,21/04/2015,Infrastructure,Transport,Home To School,2124
Wigan Council ,E08000010,Orica Software Systems Ltd T/A Equisys,08/04/2015,"Leisure, Cultural & Property",Supplies & Services,Computer Software (Licences & Maintenance),2609.74
Wigan Council ,E08000010,Stepping Stones P.D.N.,16/04/2015,Childrens - Departmental Overheads,Third Party Payments,Nursery Grant Payments,13386.24
Wigan Council ,E08000010,Groundwork Lancashire West and Wigan,08/04/2015,Corporate,Capital Expenditure,GF Capital Expenditure,1372.5
Wigan Council ,E08000010,First Friends Pre-School,16/04/2015,Childrens - Departmental Overheads,Third Party Payments,Nursery Grant Payments,12728.52
Wigan Council ,E08000010,Haighfield Nursing Home,01/04/2015,Support & Safeguarding,Third Party Payments,Respite Care,748
Wigan Council ,E08000010,Haighfield Nursing Home,01/04/2015,Support & Safeguarding,Third Party Payments,Permanent Care,1348
Wigan Council ,E08000010,Haighfield Nursing Home,01/04/2015,Support & Safeguarding,Third Party Payments,Permanent Care,1496
Wigan Council ,E08000010,Haighfield Nursing Home,01/04/2015,Support & Safeguarding,Third Party Payments,Permanent Care,1496
Wigan Council ,E08000010,Haighfield Nursing Home,01/04/2015,Support & Safeguarding,Third Party Payments,Permanent Care,1496
Wigan Council ,E08000010,Haighfield Nursing Home,01/04/2015,Support & Safeguarding,Third Party Payments,Permanent Care,1496
Wigan Council ,E08000010,Haighfield Nursing Home,01/04/2015,Support & Safeguarding,Third Party Payments,Permanent Care,1496
Wigan Council ,E08000010,Haighfield Nursing Home,01/04/2015,Support & Safeguarding,Third Party Payments,Permanent Care,1496
Wigan Council ,E08000010,Haighfield Nursing Home,01/04/2015,Support & Safeguarding,Third Party Payments,Permanent Care,1496
Wigan Council ,E08000010,Haighfield Nursing Home,01/04/2015,Support & Safeguarding,Third Party Payments,Permanent Care,1496
Wigan Council ,E08000010,Haighfield Nursing Home,01/04/2015,Support & Safeguarding,Third Party Payments,Permanent Care,1496
Wigan Council ,E08000010,Haighfield Nursing Home,01/04/2015,Support & Safeguarding,Third Party Payments,Permanent Care,1684
Wigan Council ,E08000010,Haighfield Nursing Home,29/04/2015,Support & Safeguarding,Third Party Payments,Permanent Care,1348
Wigan Council ,E08000010,Haighfield Nursing Home,29/04/2015,Support & Safeguarding,Third Party Payments,Permanent Care,1389.14
Wigan Council ,E08000010,Haighfield Nursing Home,29/04/2015,Support & Safeguarding,Third Party Payments,Permanent Care,1389.14
Wigan Council ,E08000010,Haighfield Nursing Home,29/04/2015,Support & Safeguarding,Third Party Payments,Permanent Care,1389.14
Wigan Council ,E08000010,Haighfield Nursing Home,29/04/2015,Support & Safeguarding,Third Party Payments,Permanent Care,1389.14
Wigan Council ,E08000010,Haighfield Nursing Home,29/04/2015,Support & Safeguarding,Third Party Payments,Permanent Care,1389.14
Wigan Council ,E08000010,Haighfield Nursing Home,29/04/2015,Support & Safeguarding,Third Party Payments,Permanent Care,1389.14
Wigan Council ,E08000010,Haighfield Nursing Home,29/04/2015,Support & Safeguarding,Third Party Payments,Permanent Care,1389.14
Wigan Council ,E08000010,Haighfield Nursing Home,29/04/2015,Support & Safeguarding,Third Party Payments,Permanent Care,1389.14
Wigan Council ,E08000010,Haighfield Nursing Home,29/04/2015,Support & Safeguarding,Third Party Payments,Permanent Care,1496
Wigan Council ,E08000010,Haighfield Nursing Home,29/04/2015,Support & Safeguarding,Third Party Payments,Permanent Care,1496
Wigan Council ,E08000010,Haighfield Nursing Home,29/04/2015,Support & Safeguarding,Third Party Payments,Permanent Care,1496
Wigan Council ,E08000010,Haighfield Nursing Home,29/04/2015,Support & Safeguarding,Third Party Payments,Permanent Care,1496
Wigan Council ,E08000010,Haighfield Nursing Home,29/04/2015,Support & Safeguarding,Third Party Payments,Permanent Care,1496
Wigan Council ,E08000010,Haighfield Nursing Home,29/04/2015,Support & Safeguarding,Third Party Payments,Permanent Care,1496
Wigan Council ,E08000010,Haighfield Nursing Home,29/04/2015,Support & Safeguarding,Third Party Payments,Permanent Care,1496
Wigan Council ,E08000010,Haighfield Nursing Home,29/04/2015,Support & Safeguarding,Third Party Payments,Permanent Care,1496
Wigan Council ,E08000010,Haighfield Nursing Home,29/04/2015,Support & Safeguarding,Third Party Payments,Permanent Care,1496
Wigan Council ,E08000010,Haighfield Nursing Home,29/04/2015,Support & Safeguarding,Third Party Payments,Permanent Care,1563.71
Wigan Council ,E08000010,Haighfield Nursing Home,29/04/2015,Support & Safeguarding,Third Party Payments,Permanent Care,1684
Wigan Council ,E08000010,Haighfield Nursing Home,29/04/2015,Support & Safeguarding,Third Party Payments,Nursing Care,4546.49
Wigan Council ,E08000010,Caring Alternatives Ltd,01/04/2015,Support & Safeguarding,Third Party Payments,Permanent Care,721.71
Wigan Council ,E08000010,Caring Alternatives Ltd,01/04/2015,Support & Safeguarding,Third Party Payments,Permanent Care,1684
Wigan Council ,E08000010,Caring Alternatives Ltd,01/04/2015,Support & Safeguarding,Third Party Payments,Permanent Care,1684
Wigan Council ,E08000010,Caring Alternatives Ltd,01/04/2015,Support & Safeguarding,Third Party Payments,Permanent Care,1684
Wigan Council ,E08000010,Caring Alternatives Ltd,01/04/2015,Support & Safeguarding,Third Party Payments,Permanent Care,1684
Wigan Council ,E08000010,Caring Alternatives Ltd,01/04/2015,Support & Safeguarding,Third Party Payments,Permanent Care,1684
Wigan Council ,E08000010,Caring Alternatives Ltd,01/04/2015,Support & Safeguarding,Third Party Payments,Permanent Care,1684
Wigan Council ,E08000010,Caring Alternatives Ltd,01/04/2015,Support & Safeguarding,Third Party Payments,Permanent Care,1700.56
Wigan Council ,E08000010,Caring Alternatives Ltd,29/04/2015,Support & Safeguarding,Third Party Payments,Permanent Care,1684
Wigan Council ,E08000010,Caring Alternatives Ltd,29/04/2015,Support & Safeguarding,Third Party Payments,Permanent Care,1684
Wigan Council ,E08000010,Caring Alternatives Ltd,29/04/2015,Support & Safeguarding,Third Party Payments,Permanent Care,1684
Wigan Council ,E08000010,Caring Alternatives Ltd,29/04/2015,Support & Safeguarding,Third Party Payments,Permanent Care,1684
Wigan Council ,E08000010,Caring Alternatives Ltd,29/04/2015,Support & Safeguarding,Third Party Payments,Permanent Care,1684
Wigan Council ,E08000010,Caring Alternatives Ltd,29/04/2015,Support & Safeguarding,Third Party Payments,Permanent Care,1684
Wigan Council ,E08000010,Caring Alternatives Ltd,29/04/2015,Support & Safeguarding,Third Party Payments,Permanent Care,1684
Wigan Council ,E08000010,Caring Alternatives Ltd,29/04/2015,Support & Safeguarding,Third Party Payments,Permanent Care,1700.56
Wigan Council ,E08000010,Nugent Care,10/04/2015,Provider Management & Market Development,Third Party Payments,Payments to Voluntary Organisations,12586.19
Wigan Council ,E08000010,Nugent Care,23/04/2015,Provider Management & Market Development,Third Party Payments,Voluntary Day Care,1043.48
Wigan Council ,E08000010,The Nugent Care Society,01/04/2015,Support & Safeguarding,Third Party Payments,Respite Care,801.43
Wigan Council ,E08000010,The Nugent Care Society,01/04/2015,Support & Safeguarding,Third Party Payments,Permanent Care,1282.29
Wigan Council ,E08000010,The Nugent Care Society,01/04/2015,Support & Safeguarding,Third Party Payments,Permanent Care,1348
Wigan Council ,E08000010,The Nugent Care Society,01/04/2015,Support & Safeguarding,Third Party Payments,Permanent Care,1496
Wigan Council ,E08000010,The Nugent Care Society,01/04/2015,Support & Safeguarding,Third Party Payments,Permanent Care,1496
Wigan Council ,E08000010,The Nugent Care Society,01/04/2015,Support & Safeguarding,Third Party Payments,Permanent Care,1496
Wigan Council ,E08000010,The Nugent Care Society,01/04/2015,Support & Safeguarding,Third Party Payments,Permanent Care,1496
Wigan Council ,E08000010,The Nugent Care Society,01/04/2015,Support & Safeguarding,Third Party Payments,Permanent Care,1496
Wigan Council ,E08000010,The Nugent Care Society,01/04/2015,Support & Safeguarding,Third Party Payments,Permanent Care,1496
Wigan Council ,E08000010,The Nugent Care Society,01/04/2015,Support & Safeguarding,Third Party Payments,Permanent Care,1684
Wigan Council ,E08000010,The Nugent Care Society,01/04/2015,Support & Safeguarding,Third Party Payments,Permanent Care,1684
Wigan Council ,E08000010,The Nugent Care Society,01/04/2015,Support & Safeguarding,Third Party Payments,Permanent Care,1684
Wigan Council ,E08000010,The Nugent Care Society,01/04/2015,Support & Safeguarding,Third Party Payments,Permanent Care,1684
Wigan Council ,E08000010,The Nugent Care Society,01/04/2015,Support & Safeguarding,Third Party Payments,Permanent Care,1684
Wigan Council ,E08000010,The Nugent Care Society,01/04/2015,Support & Safeguarding,Third Party Payments,Permanent Care,1684
Wigan Council ,E08000010,The Nugent Care Society,01/04/2015,Support & Safeguarding,Third Party Payments,Permanent Care,1684
Wigan Council ,E08000010,The Nugent Care Society,01/04/2015,Support & Safeguarding,Third Party Payments,Permanent Care,4390.43
Wigan Council ,E08000010,The Nugent Care Society,29/04/2015,Support & Safeguarding,Third Party Payments,Respite Care,587.71
Wigan Council ,E08000010,The Nugent Care Society,29/04/2015,Support & Safeguarding,Third Party Payments,Respite Care,661.57
Wigan Council ,E08000010,The Nugent Care Society,29/04/2015,Support & Safeguarding,Third Party Payments,Permanent Care,694.57
Wigan Council ,E08000010,The Nugent Care Society,29/04/2015,Support & Safeguarding,Third Party Payments,Respite Care,908.29
Wigan Council ,E08000010,The Nugent Care Society,29/04/2015,Support & Safeguarding,Third Party Payments,Respite Care,1022.43
Wigan Council ,E08000010,The Nugent Care Society,29/04/2015,Support & Safeguarding,Third Party Payments,Permanent Care,1348
Wigan Council ,E08000010,The Nugent Care Society,29/04/2015,Support & Safeguarding,Third Party Payments,Permanent Care,1496
Wigan Council ,E08000010,The Nugent Care Society,29/04/2015,Support & Safeguarding,Third Party Payments,Permanent Care,1496
Wigan Council ,E08000010,The Nugent Care Society,29/04/2015,Support & Safeguarding,Third Party Payments,Permanent Care,1496
Wigan Council ,E08000010,The Nugent Care Society,29/04/2015,Support & Safeguarding,Third Party Payments,Permanent Care,1496
Wigan Council ,E08000010,The Nugent Care Society,29/04/2015,Support & Safeguarding,Third Party Payments,Permanent Care,1496
Wigan Council ,E08000010,The Nugent Care Society,29/04/2015,Support & Safeguarding,Third Party Payments,Permanent Care,1496
Wigan Council ,E08000010,The Nugent Care Society,29/04/2015,Support & Safeguarding,Third Party Payments,Permanent Care,1684
Wigan Council ,E08000010,The Nugent Care Society,29/04/2015,Support & Safeguarding,Third Party Payments,Permanent Care,1684
Wigan Council ,E08000010,The Nugent Care Society,29/04/2015,Support & Safeguarding,Third Party Payments,Permanent Care,1684
Wigan Council ,E08000010,The Nugent Care Society,29/04/2015,Support & Safeguarding,Third Party Payments,Permanent Care,1684
Wigan Council ,E08000010,The Nugent Care Society,29/04/2015,Support & Safeguarding,Third Party Payments,Permanent Care,1684
Wigan Council ,E08000010,The Nugent Care Society,29/04/2015,Support & Safeguarding,Third Party Payments,Permanent Care,1684
Wigan Council ,E08000010,The Nugent Care Society,29/04/2015,Support & Safeguarding,Third Party Payments,Permanent Care,1684
Wigan Council ,E08000010,The Nugent Care Society,29/04/2015,Support & Safeguarding,Third Party Payments,Respite Care,9021.43
Wigan Council ,E08000010,Parsons Walk Pre School,01/04/2015,Childrens - Departmental Overheads,Third Party Payments,Nursery Grant Payments,18065.88
Wigan Council ,E08000010,Crest Environmental Ltd,17/04/2015,Corporate,Capital Expenditure,HRA Capital Expenditure,675
Wigan Council ,E08000010,Parkinson Civil Eng Ltd,17/04/2015,"Leisure, Cultural & Property",Premises,Repairs & Maintenance (Landlord),3635
Wigan Council ,E08000010,Parkinson Civil Eng Ltd,29/04/2015,Corporate,Capital Expenditure,GF Capital Expenditure,5312
Wigan Council ,E08000010,Parkinson Civil Eng Ltd,30/04/2015,"Leisure, Cultural & Property",Premises,Repairs & Maintenance (Landlord),26782.09
Wigan Council ,E08000010,BDS Contracting Services,17/04/2015,Targeted Services,Premises,Repairs & Maintenance (Non CPMF),569
Wigan Council ,E08000010,BDS Contracting Services,17/04/2015,"Leisure, Cultural & Property",Supplies & Services,Hired & Contracted Services,2800
Wigan Council ,E08000010,BDS Contracting Services,17/04/2015,"Leisure, Cultural & Property",Supplies & Services,Hired & Contracted Services,2547
Wigan Council ,E08000010,BDS Contracting Services,17/04/2015,Targeted Services,Premises,Repairs & Maintenance (Non CPMF),1780
Wigan Council ,E08000010,BDS Contracting Services,17/04/2015,Targeted Services,Premises,Repairs & Maintenance (Non CPMF),1320
Wigan Council ,E08000010,BDS Contracting Services,22/04/2015,Trading,Supplies & Services,Subcontracted Repairs,5520
Wigan Council ,E08000010,BDS Contracting Services,24/04/2015,Housing Revenue Account,Premises,HRA Day to Day Responsive Repairs,840
Wigan Council ,E08000010,BDS Contracting Services,24/04/2015,Housing Revenue Account,Premises,HRA Day to Day Responsive Repairs,960
Wigan Council ,E08000010,BDS Contracting Services,24/04/2015,Housing Revenue Account,Premises,HRA Day to Day Responsive Repairs,840
Wigan Council ,E08000010,BDS Contracting Services,29/04/2015,Trading,Supplies & Services,Subcontracted Repairs,900
Wigan Council ,E08000010,BDS Contracting Services,29/04/2015,Trading,Supplies & Services,Subcontracted Repairs,900
Wigan Council ,E08000010,BDS Contracting Services,29/04/2015,Trading,Supplies & Services,Subcontracted Repairs,6000
Wigan Council ,E08000010,Euxton Tile Supplies Ltd,28/04/2015,Trading,Supplies & Services,Agresso Warehouse Control Account,1124.1
Wigan Council ,E08000010,First Steps At Cansfield,01/04/2015,Childrens - Departmental Overheads,Third Party Payments,Nursery Grant Payments,26901.96
Wigan Council ,E08000010,Bunzl UK Ltd T/AS Greenham,23/04/2015,Trading,Supplies & Services,Direct Materials,1387.46
Wigan Council ,E08000010,House Martins Care Ltd,01/04/2015,Support & Safeguarding,Third Party Payments,Permanent Care,1023.42
Wigan Council ,E08000010,House Martins Care Ltd,01/04/2015,Support & Safeguarding,Third Party Payments,Permanent Care,3070.26
Wigan Council ,E08000010,House Martins Care Ltd,01/04/2015,Support & Safeguarding,Third Party Payments,Permanent Care,4400
Wigan Council ,E08000010,House Martins Care Ltd,29/04/2015,Support & Safeguarding,Third Party Payments,Permanent Care,4093.68
Wigan Council ,E08000010,House Martins Care Ltd,29/04/2015,Support & Safeguarding,Third Party Payments,Permanent Care,4400
Wigan Council ,E08000010,Millennium Care (UK) Ltd,01/04/2015,Support & Safeguarding,Third Party Payments,Respite Care,748
Wigan Council ,E08000010,Millennium Care (UK) Ltd,01/04/2015,Support & Safeguarding,Third Party Payments,Respite Care,801.43
Wigan Council ,E08000010,Millennium Care (UK) Ltd,01/04/2015,Support & Safeguarding,Third Party Payments,Permanent Care,1348
Wigan Council ,E08000010,Millennium Care (UK) Ltd,01/04/2015,Support & Safeguarding,Third Party Payments,Respite Care,1389.14
Wigan Council ,E08000010,Millennium Care (UK) Ltd,01/04/2015,Support & Safeguarding,Third Party Payments,Permanent Care,1496
Wigan Council ,E08000010,Millennium Care (UK) Ltd,01/04/2015,Support & Safeguarding,Third Party Payments,Permanent Care,1496
Wigan Council ,E08000010,Millennium Care (UK) Ltd,01/04/2015,Support & Safeguarding,Third Party Payments,Permanent Care,1496
Wigan Council ,E08000010,Millennium Care (UK) Ltd,01/04/2015,Support & Safeguarding,Third Party Payments,Permanent Care,1496
Wigan Council ,E08000010,Millennium Care (UK) Ltd,01/04/2015,Support & Safeguarding,Third Party Payments,Permanent Care,1496
Wigan Council ,E08000010,Millennium Care (UK) Ltd,01/04/2015,Support & Safeguarding,Third Party Payments,Permanent Care,1496
Wigan Council ,E08000010,Millennium Care (UK) Ltd,01/04/2015,Support & Safeguarding,Third Party Payments,Permanent Care,1496
Wigan Council ,E08000010,Millennium Care (UK) Ltd,01/04/2015,Support & Safeguarding,Third Party Payments,Permanent Care,1496
Wigan Council ,E08000010,Millennium Care (UK) Ltd,01/04/2015,Support & Safeguarding,Third Party Payments,Permanent Care,1684
Wigan Council ,E08000010,Millennium Care (UK) Ltd,01/04/2015,Support & Safeguarding,Third Party Payments,Permanent Care,1816.57
Wigan Council ,E08000010,Millennium Care (UK) Ltd,29/04/2015,Support & Safeguarding,Third Party Payments,Respite Care,694.57
Wigan Council ,E08000010,Millennium Care (UK) Ltd,29/04/2015,Support & Safeguarding,Third Party Payments,Permanent Care,1348
Wigan Council ,E08000010,Millennium Care (UK) Ltd,29/04/2015,Support & Safeguarding,Third Party Payments,Permanent Care,1389.14
Wigan Council ,E08000010,Millennium Care (UK) Ltd,29/04/2015,Support & Safeguarding,Third Party Payments,Permanent Care,1389.14
Wigan Council ,E08000010,Millennium Care (UK) Ltd,29/04/2015,Support & Safeguarding,Third Party Payments,Permanent Care,1389.14
Wigan Council ,E08000010,Millennium Care (UK) Ltd,29/04/2015,Support & Safeguarding,Third Party Payments,Permanent Care,1389.14
Wigan Council ,E08000010,Millennium Care (UK) Ltd,29/04/2015,Support & Safeguarding,Third Party Payments,Permanent Care,1496
Wigan Council ,E08000010,Millennium Care (UK) Ltd,29/04/2015,Support & Safeguarding,Third Party Payments,Permanent Care,1496
Wigan Council ,E08000010,Millennium Care (UK) Ltd,29/04/2015,Support & Safeguarding,Third Party Payments,Permanent Care,1496
Wigan Council ,E08000010,Millennium Care (UK) Ltd,29/04/2015,Support & Safeguarding,Third Party Payments,Permanent Care,1496
Wigan Council ,E08000010,Millennium Care (UK) Ltd,29/04/2015,Support & Safeguarding,Third Party Payments,Permanent Care,1496
Wigan Council ,E08000010,Millennium Care (UK) Ltd,29/04/2015,Support & Safeguarding,Third Party Payments,Permanent Care,1496
Wigan Council ,E08000010,Millennium Care (UK) Ltd,29/04/2015,Support & Safeguarding,Third Party Payments,Permanent Care,1496
Wigan Council ,E08000010,Millennium Care (UK) Ltd,29/04/2015,Support & Safeguarding,Third Party Payments,Permanent Care,1496
Wigan Council ,E08000010,Millennium Care (UK) Ltd,29/04/2015,Support & Safeguarding,Third Party Payments,Permanent Care,1684
Wigan Council ,E08000010,Millennium Care (UK) Ltd,29/04/2015,Support & Safeguarding,Third Party Payments,Respite Care,1763.14
Wigan Council ,E08000010,Millennium Care (UK) Ltd,29/04/2015,Support & Safeguarding,Third Party Payments,Permanent Care,5556.57
Wigan Council ,E08000010,Little Dolphin Playgroup,01/04/2015,Childrens - Departmental Overheads,Third Party Payments,Nursery Grant Payments,26483.35
Wigan Council ,E08000010,Little Dolphin Playgroup,09/04/2015,Childrens - Departmental Overheads,Third Party Payments,Nursery Grant Payments,4321.8
Wigan Council ,E08000010,Little Dolphin Playgroup,09/04/2015,Childrens - Departmental Overheads,Third Party Payments,Nursery Grant Payments,14752.75
Wigan Council ,E08000010,Mangar International Ltd,30/04/2015,Corporate,Capital Expenditure,GF Capital Expenditure,3684
Wigan Council ,E08000010,St George's Nursing Home,01/04/2015,Support & Safeguarding,Third Party Payments,Respite Care,842
Wigan Council ,E08000010,St George's Nursing Home,01/04/2015,Support & Safeguarding,Third Party Payments,Permanent Care,1496
Wigan Council ,E08000010,St George's Nursing Home,01/04/2015,Support & Safeguarding,Third Party Payments,Permanent Care,1496
Wigan Council ,E08000010,St George's Nursing Home,01/04/2015,Support & Safeguarding,Third Party Payments,Permanent Care,1496
Wigan Council ,E08000010,St George's Nursing Home,01/04/2015,Support & Safeguarding,Third Party Payments,Permanent Care,1496
Wigan Council ,E08000010,St George's Nursing Home,01/04/2015,Support & Safeguarding,Third Party Payments,Permanent Care,1684
Wigan Council ,E08000010,St George's Nursing Home,01/04/2015,Support & Safeguarding,Third Party Payments,Permanent Care,1684
Wigan Council ,E08000010,St George's Nursing Home,01/04/2015,Support & Safeguarding,Third Party Payments,Permanent Care,1684
Wigan Council ,E08000010,St George's Nursing Home,01/04/2015,Support & Safeguarding,Third Party Payments,Permanent Care,1684
Wigan Council ,E08000010,St George's Nursing Home,29/04/2015,Support & Safeguarding,Third Party Payments,Respite Care,842
Wigan Council ,E08000010,St George's Nursing Home,29/04/2015,Support & Safeguarding,Third Party Payments,Respite Care,842
Wigan Council ,E08000010,St George's Nursing Home,29/04/2015,Support & Safeguarding,Third Party Payments,Nursing Care,887.12
Wigan Council ,E08000010,St George's Nursing Home,29/04/2015,Support & Safeguarding,Third Party Payments,Permanent Care,1389.14
Wigan Council ,E08000010,St George's Nursing Home,29/04/2015,Support & Safeguarding,Third Party Payments,Permanent Care,1389.14
Wigan Council ,E08000010,St George's Nursing Home,29/04/2015,Support & Safeguarding,Third Party Payments,Permanent Care,1389.14
Wigan Council ,E08000010,St George's Nursing Home,29/04/2015,Support & Safeguarding,Third Party Payments,Permanent Care,1389.14
Wigan Council ,E08000010,St George's Nursing Home,29/04/2015,Support & Safeguarding,Third Party Payments,Permanent Care,1496
Wigan Council ,E08000010,St George's Nursing Home,29/04/2015,Support & Safeguarding,Third Party Payments,Permanent Care,1496
Wigan Council ,E08000010,St George's Nursing Home,29/04/2015,Support & Safeguarding,Third Party Payments,Permanent Care,1496
Wigan Council ,E08000010,St George's Nursing Home,29/04/2015,Support & Safeguarding,Third Party Payments,Permanent Care,1496
Wigan Council ,E08000010,St George's Nursing Home,29/04/2015,Support & Safeguarding,Third Party Payments,Permanent Care,1563.71
Wigan Council ,E08000010,St George's Nursing Home,29/04/2015,Support & Safeguarding,Third Party Payments,Permanent Care,1563.71
Wigan Council ,E08000010,St George's Nursing Home,29/04/2015,Support & Safeguarding,Third Party Payments,Permanent Care,1563.71
Wigan Council ,E08000010,St George's Nursing Home,29/04/2015,Support & Safeguarding,Third Party Payments,Permanent Care,1563.71
Wigan Council ,E08000010,St George's Nursing Home,29/04/2015,Support & Safeguarding,Third Party Payments,Permanent Care,1684
Wigan Council ,E08000010,St George's Nursing Home,29/04/2015,Support & Safeguarding,Third Party Payments,Permanent Care,1684
Wigan Council ,E08000010,St George's Nursing Home,29/04/2015,Support & Safeguarding,Third Party Payments,Permanent Care,1684
Wigan Council ,E08000010,St George's Nursing Home,29/04/2015,Support & Safeguarding,Third Party Payments,Permanent Care,1684
Wigan Council ,E08000010,Springfield Nursing Home,01/04/2015,Support & Safeguarding,Third Party Payments,Permanent Care,1591.04
Wigan Council ,E08000010,Springfield Nursing Home,01/04/2015,Support & Safeguarding,Third Party Payments,Permanent Care,1591.04
Wigan Council ,E08000010,Springfield Nursing Home,29/04/2015,Support & Safeguarding,Third Party Payments,Permanent Care,1591.04
Wigan Council ,E08000010,Springfield Nursing Home,29/04/2015,Support & Safeguarding,Third Party Payments,Permanent Care,1591.04
Wigan Council ,E08000010,Wolseley Centres Limited,28/04/2015,Trading,Supplies & Services,Direct Materials,529.68
Wigan Council ,E08000010,Wolseley Centres Limited,28/04/2015,Trading,Supplies & Services,Direct Materials,529.68
Wigan Council ,E08000010,Douglas Bank Nursing Home,01/04/2015,Support & Safeguarding,Third Party Payments,Permanent Care,1706.68
Wigan Council ,E08000010,Douglas Bank Nursing Home,01/04/2015,Support & Safeguarding,Third Party Payments,Permanent Care,1706.68
Wigan Council ,E08000010,Douglas Bank Nursing Home,01/04/2015,Support & Safeguarding,Third Party Payments,Permanent Care,1722.8
Wigan Council ,E08000010,Douglas Bank Nursing Home,01/04/2015,Support & Safeguarding,Third Party Payments,Permanent Care,1787.56
Wigan Council ,E08000010,Douglas Bank Nursing Home,01/04/2015,Support & Safeguarding,Third Party Payments,Permanent Care,1824
Wigan Council ,E08000010,Douglas Bank Nursing Home,01/04/2015,Support & Safeguarding,Third Party Payments,Permanent Care,1824
Wigan Council ,E08000010,Douglas Bank Nursing Home,01/04/2015,Support & Safeguarding,Third Party Payments,Permanent Care,1898
Wigan Council ,E08000010,Douglas Bank Nursing Home,01/04/2015,Support & Safeguarding,Third Party Payments,Permanent Care,1954.84
Wigan Council ,E08000010,Douglas Bank Nursing Home,01/04/2015,Support & Safeguarding,Third Party Payments,Permanent Care,1988.84
Wigan Council ,E08000010,Douglas Bank Nursing Home,01/04/2015,Support & Safeguarding,Third Party Payments,Permanent Care,1988.84
Wigan Council ,E08000010,Douglas Bank Nursing Home,01/04/2015,Support & Safeguarding,Third Party Payments,Permanent Care,1988.84
Wigan Council ,E08000010,Douglas Bank Nursing Home,29/04/2015,Support & Safeguarding,Third Party Payments,Respite Care,977.14
Wigan Council ,E08000010,Douglas Bank Nursing Home,29/04/2015,Support & Safeguarding,Third Party Payments,Permanent Care,1706.68
Wigan Council ,E08000010,Douglas Bank Nursing Home,29/04/2015,Support & Safeguarding,Third Party Payments,Permanent Care,1706.68
Wigan Council ,E08000010,Douglas Bank Nursing Home,29/04/2015,Support & Safeguarding,Third Party Payments,Permanent Care,1712
Wigan Council ,E08000010,Douglas Bank Nursing Home,29/04/2015,Support & Safeguarding,Third Party Payments,Permanent Care,1722.8
Wigan Council ,E08000010,Douglas Bank Nursing Home,29/04/2015,Support & Safeguarding,Third Party Payments,Permanent Care,1787.56
Wigan Council ,E08000010,Douglas Bank Nursing Home,29/04/2015,Support & Safeguarding,Third Party Payments,Permanent Care,1824
Wigan Council ,E08000010,Douglas Bank Nursing Home,29/04/2015,Support & Safeguarding,Third Party Payments,Permanent Care,1824
Wigan Council ,E08000010,Douglas Bank Nursing Home,29/04/2015,Support & Safeguarding,Third Party Payments,Permanent Care,1846.78
Wigan Council ,E08000010,Douglas Bank Nursing Home,29/04/2015,Support & Safeguarding,Third Party Payments,Permanent Care,1898
Wigan Council ,E08000010,Douglas Bank Nursing Home,29/04/2015,Support & Safeguarding,Third Party Payments,Permanent Care,1954.84
Wigan Council ,E08000010,Douglas Bank Nursing Home,29/04/2015,Support & Safeguarding,Third Party Payments,Permanent Care,1988.84
Wigan Council ,E08000010,Douglas Bank Nursing Home,29/04/2015,Support & Safeguarding,Third Party Payments,Permanent Care,1988.84
Wigan Council ,E08000010,Douglas Bank Nursing Home,29/04/2015,Support & Safeguarding,Third Party Payments,Permanent Care,1988.84
Wigan Council ,E08000010,Douglas Bank Nursing Home,29/04/2015,Support & Safeguarding,Third Party Payments,Permanent Care,1992.86
Wigan Council ,E08000010,Douglas Bank Nursing Home,29/04/2015,Support & Safeguarding,Third Party Payments,Permanent Care,2232
Wigan Council ,E08000010,Douglas Bank Nursing Home,29/04/2015,Support & Safeguarding,Third Party Payments,Permanent Care,11066.86
Wigan Council ,E08000010,The Hollands Nursing Home,01/04/2015,Support & Safeguarding,Third Party Payments,Permanent Care,1495.32
Wigan Council ,E08000010,The Hollands Nursing Home,29/04/2015,Support & Safeguarding,Third Party Payments,Permanent Care,1495.32
Wigan Council ,E08000010,Lancashire County Council,09/04/2015,Education,Third Party Payments,Payments to Other Local Authorities,5700
Wigan Council ,E08000010,Lancashire County Council,29/04/2015,Customer Services,Supplies & Services,Reprographics,2773
Wigan Council ,E08000010,Lancashire County Council,30/04/2015,Finance,Salaries,Enhanced Pension Costs,6159.07
Wigan Council ,E08000010,Langtree Hall Day Nursery Ltd,01/04/2015,Childrens - Departmental Overheads,Third Party Payments,Nursery Grant Payments,14652.79
Wigan Council ,E08000010,Little People Day Nursery,01/04/2015,Childrens - Departmental Overheads,Third Party Payments,Nursery Grant Payments,13523.33
Wigan Council ,E08000010,The Oaks Residential Home,01/04/2015,Support & Safeguarding,Third Party Payments,Respite Care,1335.71
Wigan Council ,E08000010,The Oaks Residential Home,01/04/2015,Support & Safeguarding,Third Party Payments,Permanent Care,1684
Wigan Council ,E08000010,The Oaks Residential Home,01/04/2015,Support & Safeguarding,Third Party Payments,Permanent Care,1684
Wigan Council ,E08000010,The Oaks Residential Home,01/04/2015,Support & Safeguarding,Third Party Payments,Permanent Care,1684
Wigan Council ,E08000010,The Oaks Residential Home,01/04/2015,Support & Safeguarding,Third Party Payments,Permanent Care,1684
Wigan Council ,E08000010,The Oaks Residential Home,01/04/2015,Support & Safeguarding,Third Party Payments,Permanent Care,1684
Wigan Council ,E08000010,The Oaks Residential Home,01/04/2015,Support & Safeguarding,Third Party Payments,Permanent Care,1684
Wigan Council ,E08000010,The Oaks Residential Home,01/04/2015,Support & Safeguarding,Third Party Payments,Permanent Care,1684
Wigan Council ,E08000010,The Oaks Residential Home,01/04/2015,Support & Safeguarding,Third Party Payments,Permanent Care,1684
Wigan Council ,E08000010,The Oaks Residential Home,01/04/2015,Support & Safeguarding,Third Party Payments,Permanent Care,1684
Wigan Council ,E08000010,The Oaks Residential Home,01/04/2015,Support & Safeguarding,Third Party Payments,Permanent Care,1684
Wigan Council ,E08000010,The Oaks Residential Home,01/04/2015,Support & Safeguarding,Third Party Payments,Permanent Care,1684
Wigan Council ,E08000010,The Oaks Residential Home,01/04/2015,Support & Safeguarding,Third Party Payments,Permanent Care,1684
Wigan Council ,E08000010,The Oaks Residential Home,29/04/2015,Support & Safeguarding,Third Party Payments,Permanent Care,781.86
Wigan Council ,E08000010,The Oaks Residential Home,29/04/2015,Support & Safeguarding,Third Party Payments,Respite Care,1263
Wigan Council ,E08000010,The Oaks Residential Home,29/04/2015,Support & Safeguarding,Third Party Payments,Respite Care,1335.71
Wigan Council ,E08000010,The Oaks Residential Home,29/04/2015,Support & Safeguarding,Third Party Payments,Respite Care,1684
Wigan Council ,E08000010,The Oaks Residential Home,29/04/2015,Support & Safeguarding,Third Party Payments,Permanent Care,1684
Wigan Council ,E08000010,The Oaks Residential Home,29/04/2015,Support & Safeguarding,Third Party Payments,Permanent Care,1684
Wigan Council ,E08000010,The Oaks Residential Home,29/04/2015,Support & Safeguarding,Third Party Payments,Permanent Care,1684
Wigan Council ,E08000010,The Oaks Residential Home,29/04/2015,Support & Safeguarding,Third Party Payments,Permanent Care,1684
Wigan Council ,E08000010,The Oaks Residential Home,29/04/2015,Support & Safeguarding,Third Party Payments,Permanent Care,1684
Wigan Council ,E08000010,The Oaks Residential Home,29/04/2015,Support & Safeguarding,Third Party Payments,Permanent Care,1684
Wigan Council ,E08000010,The Oaks Residential Home,29/04/2015,Support & Safeguarding,Third Party Payments,Permanent Care,1684
Wigan Council ,E08000010,The Oaks Residential Home,29/04/2015,Support & Safeguarding,Third Party Payments,Permanent Care,1684
Wigan Council ,E08000010,The Oaks Residential Home,29/04/2015,Support & Safeguarding,Third Party Payments,Permanent Care,1684
Wigan Council ,E08000010,The Oaks Residential Home,29/04/2015,Support & Safeguarding,Third Party Payments,Permanent Care,1684
Wigan Council ,E08000010,The Oaks Residential Home,29/04/2015,Support & Safeguarding,Third Party Payments,Permanent Care,1684
Wigan Council ,E08000010,The Oaks Residential Home,29/04/2015,Support & Safeguarding,Third Party Payments,Permanent Care,1684
Wigan Council ,E08000010,The Oaks Residential Home,29/04/2015,Support & Safeguarding,Third Party Payments,Permanent Care,1684
Wigan Council ,E08000010,The Oaks Residential Home,29/04/2015,Support & Safeguarding,Third Party Payments,Permanent Care,1684
Wigan Council ,E08000010,The Oaks Residential Home,29/04/2015,Support & Safeguarding,Third Party Payments,Permanent Care,1684
Wigan Council ,E08000010,The Oaks Residential Home,29/04/2015,Support & Safeguarding,Third Party Payments,Permanent Care,1684
Wigan Council ,E08000010,The Oaks Residential Home,29/04/2015,Support & Safeguarding,Third Party Payments,Permanent Care,1684
Wigan Council ,E08000010,The Oaks Residential Home,29/04/2015,Support & Safeguarding,Third Party Payments,Permanent Care,1684
Wigan Council ,E08000010,The Oaks Residential Home,29/04/2015,Support & Safeguarding,Third Party Payments,Respite Care,3947.71
Wigan Council ,E08000010,The Oaks Residential Home,29/04/2015,Support & Safeguarding,Third Party Payments,Permanent Care,4510.71
Wigan Council ,E08000010,The Oaks Residential Home,29/04/2015,Support & Safeguarding,Third Party Payments,Permanent Care,4631
Wigan Council ,E08000010,The Oaks Residential Home,29/04/2015,Support & Safeguarding,Third Party Payments,Permanent Care,5352.71
Wigan Council ,E08000010,The Oaks Residential Home,29/04/2015,Support & Safeguarding,Third Party Payments,Permanent Care,8239.57
Wigan Council ,E08000010,The Oaks Residential Home,29/04/2015,Support & Safeguarding,Third Party Payments,Permanent Care,8922.57
Wigan Council ,E08000010,St James' Community Pre-School,01/04/2015,Childrens - Departmental Overheads,Third Party Payments,Nursery Grant Payments,13386.24
Wigan Council ,E08000010,St Bernadettes Pre School,01/04/2015,Childrens - Departmental Overheads,Third Party Payments,Nursery Grant Payments,11037.43
Wigan Council ,E08000010,St Maries B & A School Club,01/04/2015,Childrens - Departmental Overheads,Third Party Payments,Nursery Grant Payments,12023.59
Wigan Council ,E08000010,Woodlands Care GRP Ltd,01/04/2015,Support & Safeguarding,Third Party Payments,Respite Care,1657.92
Wigan Council ,E08000010,Woodlands Care GRP Ltd,01/04/2015,Support & Safeguarding,Third Party Payments,Permanent Care,1719.32
Wigan Council ,E08000010,Woodlands Care GRP Ltd,01/04/2015,Support & Safeguarding,Third Party Payments,Permanent Care,1719.32
Wigan Council ,E08000010,Woodlands Care GRP Ltd,01/04/2015,Support & Safeguarding,Third Party Payments,Permanent Care,1719.32
Wigan Council ,E08000010,Woodlands Care GRP Ltd,01/04/2015,Support & Safeguarding,Third Party Payments,Permanent Care,1740.44
Wigan Council ,E08000010,Woodlands Care GRP Ltd,29/04/2015,Support & Safeguarding,Third Party Payments,Permanent Care,1719.32
Wigan Council ,E08000010,Woodlands Care GRP Ltd,29/04/2015,Support & Safeguarding,Third Party Payments,Permanent Care,1719.32
Wigan Council ,E08000010,Woodlands Care GRP Ltd,29/04/2015,Support & Safeguarding,Third Party Payments,Permanent Care,1719.32
Wigan Council ,E08000010,Woodlands Care GRP Ltd,29/04/2015,Support & Safeguarding,Third Party Payments,Permanent Care,1740.44
Wigan Council ,E08000010,H W Engineering (Htg) Ltd,29/04/2015,Corporate,Capital Expenditure,HRA Capital Expenditure,1924.31
Wigan Council ,E08000010,H W Engineering (Htg) Ltd,29/04/2015,Corporate,Capital Expenditure,HRA Capital Expenditure,2154.24
Wigan Council ,E08000010,H W Engineering (Htg) Ltd,29/04/2015,Corporate,Capital Expenditure,HRA Capital Expenditure,2257.55
Wigan Council ,E08000010,BHE Services (Bolton) Ltd,07/04/2015,Housing Revenue Account,Premises,HRA Day to Day Responsive Repairs,17548.78
Wigan Council ,E08000010,BHE Services (Bolton) Ltd,07/04/2015,Housing Revenue Account,Premises,HRA Day to Day Responsive Repairs,74154.94
Wigan Council ,E08000010,BHE Services (Bolton) Ltd,29/04/2015,Housing Revenue Account,Premises,HRA Repairs to Void Properties,1011.24
Wigan Council ,E08000010,BHE Services (Bolton) Ltd,29/04/2015,Housing Revenue Account,Premises,HRA Repairs to Void Properties,1515.88
Wigan Council ,E08000010,BHE Services (Bolton) Ltd,29/04/2015,Housing Revenue Account,Premises,HRA Day to Day Responsive Repairs,20385.01
Wigan Council ,E08000010,BHE Services (Bolton) Ltd,29/04/2015,Housing Revenue Account,Premises,HRA Day to Day Responsive Repairs,73869
Wigan Council ,E08000010,BHE Services (Bolton) Ltd,30/04/2015,Wigan and Leigh Housing,Premises,Repairs & Maintenance (Non CPMF),7411.37
Wigan Council ,E08000010,Browne Jacobson LLP,30/04/2015,"Corporate Funding (RSG,NNDR etc)",Supplies & Services,Insurance Work and Claims,3501.5
Wigan Council ,E08000010,Lamberhead Green Headstart,01/04/2015,Childrens - Departmental Overheads,Third Party Payments,Nursery Grant Payments,22207.22
Wigan Council ,E08000010,Morris & Alexander Limited,30/04/2015,Corporate,Capital Expenditure,GF Capital Expenditure,4214.1
Wigan Council ,E08000010,Next Stage - A Way Forward,23/04/2015,Early Intervention & Prevention,Third Party Payments,Payments to Private Contractors,2150.64
Wigan Council ,E08000010,United Utilities Water plc,14/04/2015,Targeted Services,Premises,Water Charges,579.73
Wigan Council ,E08000010,United Utilities Water plc,14/04/2015,Targeted Services,Premises,Water Charges,586.78
Wigan Council ,E08000010,United Utilities Water plc,14/04/2015,Provider Management & Market Development,Premises,Water Charges,659.57
Wigan Council ,E08000010,United Utilities Water plc,14/04/2015,Targeted Services,Premises,Water Charges,687.89
Wigan Council ,E08000010,United Utilities Water plc,14/04/2015,Support & Safeguarding,Premises,Water Charges,732.38
Wigan Council ,E08000010,United Utilities Water plc,14/04/2015,Education,Premises,Water Charges,813.02
Wigan Council ,E08000010,United Utilities Water plc,14/04/2015,Provider Management & Market Development,Premises,Water Charges,822.74
Wigan Council ,E08000010,United Utilities Water plc,14/04/2015,Economic Development & Skills,Premises,Water Charges,936.26
Wigan Council ,E08000010,United Utilities Water plc,14/04/2015,Provider Management & Market Development,Premises,Water Charges,1449.53
Wigan Council ,E08000010,United Utilities Water plc,14/04/2015,Provider Management & Market Development,Premises,Water Charges,1684.23
Wigan Council ,E08000010,United Utilities Water plc,14/04/2015,"Leisure, Cultural & Property",Premises,Water Charges,2035.52
Wigan Council ,E08000010,United Utilities Water plc,14/04/2015,"Leisure, Cultural & Property",Premises,Water Charges,2085.2
Wigan Council ,E08000010,United Utilities Water plc,14/04/2015,Provider Management & Market Development,Premises,Water Charges,2090.22
Wigan Council ,E08000010,United Utilities Water plc,14/04/2015,Trading,Premises,Water Charges,2476.72
Wigan Council ,E08000010,United Utilities Water plc,14/04/2015,Housing and Regeneration,Premises,Water Charges,3728.2
Wigan Council ,E08000010,United Utilities Water plc,14/04/2015,Economic Development & Skills,Premises,Water Charges,5523.51
Wigan Council ,E08000010,United Utilities Water plc,14/04/2015,Trading,Premises,Water Charges,6121.38
Wigan Council ,E08000010,United Utilities Water plc,14/04/2015,Trading,Premises,Water Charges,7104.72
Wigan Council ,E08000010,United Utilities Water plc,23/04/2015,Trading,Premises,Water Charges,939.98
Wigan Council ,E08000010,United Utilities Water plc,24/04/2015,Provider Management & Market Development,Premises,Water Charges,553.14
Wigan Council ,E08000010,United Utilities Water plc,24/04/2015,Housing Revenue Account,Premises,Water Charges,574.78
Wigan Council ,E08000010,United Utilities Water plc,24/04/2015,Targeted Services,Premises,Water Charges,608.47
Wigan Council ,E08000010,United Utilities Water plc,24/04/2015,"Leisure, Cultural & Property",Premises,Water Charges,891.66
Wigan Council ,E08000010,United Utilities Water plc,24/04/2015,Provider Management & Market Development,Premises,Water Charges,1128.8
Wigan Council ,E08000010,United Utilities Water plc,24/04/2015,Provider Management & Market Development,Premises,Water Charges,1304.76
Wigan Council ,E08000010,United Utilities Water plc,28/04/2015,"Leisure, Cultural & Property",Premises,Water Charges,616.55
Wigan Council ,E08000010,United Utilities Water plc,28/04/2015,"Leisure, Cultural & Property",Premises,Water Charges,1259.98
Wigan Council ,E08000010,United Utilities Water plc,28/04/2015,"Leisure, Cultural & Property",Premises,Water Charges,616.55
Wigan Council ,E08000010,United Utilities Water plc,28/04/2015,"Leisure, Cultural & Property",Premises,Water Charges,616.55
Wigan Council ,E08000010,United Utilities Water plc,30/04/2015,Early Intervention and Prevention (Children),Premises,Water Charges,1052.34
Wigan Council ,E08000010,Warrington Borough Council,09/04/2015,Partnerships & Safeguarding,Third Party Payments,Payments to Other Local Authorities,12754
Wigan Council ,E08000010,Warrington Borough Council,10/04/2015,Partnerships & Safeguarding,Third Party Payments,Payments to Other Local Authorities,72436
Wigan Council ,E08000010,Warrington Borough Council,14/04/2015,Education,Third Party Payments,Payments to Other Local Authorities,1108
Wigan Council ,E08000010,Warrington Borough Council,28/04/2015,Targeted Services,Third Party Payments,Payments to Other Local Authorities,25760
Wigan Council ,E08000010,Wigan Football Company Ltd,08/04/2015,Finance,Supplies & Services,Hospitality,608.45
Wigan Council ,E08000010,Wigan Football Company Ltd,09/04/2015,Human Resources and Organisational Development,Supplies & Services,Equipment Furniture & Materials,851
Wigan Council ,E08000010,Wigan Football Company Ltd,09/04/2015,Human Resources and Organisational Development,Supplies & Services,Equipment Furniture & Materials,4223.17
Wigan Council ,E08000010,Hanover Housing Association,23/04/2015,Early Intervention & Prevention,Third Party Payments,Payments to Private Contractors,2022.4
Wigan Council ,E08000010,Mental Health Care (UK) Ltd,01/04/2015,Support & Safeguarding,Third Party Payments,Permanent Care,5400.12
Wigan Council ,E08000010,Mental Health Care (UK) Ltd,01/04/2015,Support & Safeguarding,Third Party Payments,Respite Care,9324
Wigan Council ,E08000010,Mental Health Care (UK) Ltd,29/04/2015,Support & Safeguarding,Third Party Payments,Permanent Care,5400.12
Wigan Council ,E08000010,Mental Health Care (UK) Ltd,29/04/2015,Support & Safeguarding,Third Party Payments,Respite Care,9324
Wigan Council ,E08000010,Madinah Private Day Nursery,16/04/2015,Childrens - Departmental Overheads,Third Party Payments,Nursery Grant Payments,10443.72
Wigan Council ,E08000010,Snap Surveys Ltd,14/04/2015,Strategy & Partnerships,Supplies & Services,Subscriptions,999
Wigan Council ,E08000010,Snap Surveys Ltd,14/04/2015,Wigan and Leigh Housing,Supplies & Services,Computer Software (Licences & Maintenance),699
Wigan Council ,E08000010,J Hopkins (Contractors) Ltd,08/04/2015,Trading,Supplies & Services,Direct Materials,820
Wigan Council ,E08000010,J Hopkins (Contractors) Ltd,08/04/2015,Trading,Supplies & Services,Direct Materials,820
Wigan Council ,E08000010,J Hopkins (Contractors) Ltd,21/04/2015,Trading,Supplies & Services,Direct Materials,697
Wigan Council ,E08000010,Lancashire Mechanical Services Ltd,10/04/2015,Corporate,Capital Expenditure,HRA Capital Expenditure,3679
Wigan Council ,E08000010,Lancashire Mechanical Services Ltd,10/04/2015,Corporate,Capital Expenditure,HRA Capital Expenditure,3064
Wigan Council ,E08000010,Lancashire Mechanical Services Ltd,10/04/2015,Corporate,Capital Expenditure,HRA Capital Expenditure,2132.62
Wigan Council ,E08000010,Lancashire Mechanical Services Ltd,10/04/2015,Corporate,Capital Expenditure,HRA Capital Expenditure,1833.31
Wigan Council ,E08000010,Lancashire Mechanical Services Ltd,10/04/2015,Corporate,Capital Expenditure,HRA Capital Expenditure,1714.62
Wigan Council ,E08000010,Lancashire Mechanical Services Ltd,10/04/2015,Corporate,Capital Expenditure,HRA Capital Expenditure,1620.31
Wigan Council ,E08000010,Lancashire Mechanical Services Ltd,10/04/2015,Corporate,Capital Expenditure,HRA Capital Expenditure,1351
Wigan Council ,E08000010,Lancashire Mechanical Services Ltd,10/04/2015,Corporate,Capital Expenditure,HRA Capital Expenditure,629.62
Wigan Council ,E08000010,Lancashire Mechanical Services Ltd,13/04/2015,Corporate,Capital Expenditure,HRA Capital Expenditure,2689
Wigan Council ,E08000010,Lancashire Mechanical Services Ltd,13/04/2015,Corporate,Capital Expenditure,HRA Capital Expenditure,3390
Wigan Council ,E08000010,Lancashire Mechanical Services Ltd,29/04/2015,Corporate,Capital Expenditure,HRA Capital Expenditure,2958
Wigan Council ,E08000010,Lancashire Mechanical Services Ltd,29/04/2015,Corporate,Capital Expenditure,HRA Capital Expenditure,2907.62
Wigan Council ,E08000010,Lancashire Mechanical Services Ltd,29/04/2015,Corporate,Capital Expenditure,HRA Capital Expenditure,2101.93
Wigan Council ,E08000010,Lancashire Mechanical Services Ltd,29/04/2015,Corporate,Capital Expenditure,HRA Capital Expenditure,605.62
Wigan Council ,E08000010,Lancashire Mechanical Services Ltd,29/04/2015,Corporate,Capital Expenditure,HRA Capital Expenditure,1505
Wigan Council ,E08000010,Lancashire Mechanical Services Ltd,29/04/2015,Corporate,Capital Expenditure,HRA Capital Expenditure,1431
Wigan Council ,E08000010,Lancashire Mechanical Services Ltd,29/04/2015,Corporate,Capital Expenditure,HRA Capital Expenditure,634.62
Wigan Council ,E08000010,Lancashire Mechanical Services Ltd,29/04/2015,Corporate,Capital Expenditure,HRA Capital Expenditure,1228
Wigan Council ,E08000010,Lancashire Mechanical Services Ltd,29/04/2015,Corporate,Capital Expenditure,HRA Capital Expenditure,2027.24
Wigan Council ,E08000010,Lancashire Mechanical Services Ltd,29/04/2015,Corporate,Capital Expenditure,HRA Capital Expenditure,1779.31
Wigan Council ,E08000010,Lancashire Mechanical Services Ltd,29/04/2015,Corporate,Capital Expenditure,HRA Capital Expenditure,1341
Wigan Council ,E08000010,Lancashire Mechanical Services Ltd,29/04/2015,Corporate,Capital Expenditure,HRA Capital Expenditure,2125.93
Wigan Council ,E08000010,Lancashire Mechanical Services Ltd,29/04/2015,Corporate,Capital Expenditure,HRA Capital Expenditure,1253
Wigan Council ,E08000010,Lancashire Mechanical Services Ltd,29/04/2015,Corporate,Capital Expenditure,HRA Capital Expenditure,2174
Wigan Council ,E08000010,Lancashire Mechanical Services Ltd,29/04/2015,Corporate,Capital Expenditure,HRA Capital Expenditure,673
Wigan Council ,E08000010,Lancashire Mechanical Services Ltd,29/04/2015,Corporate,Capital Expenditure,HRA Capital Expenditure,1200.62
Wigan Council ,E08000010,Lancashire Mechanical Services Ltd,29/04/2015,Corporate,Capital Expenditure,HRA Capital Expenditure,1338
Wigan Council ,E08000010,Lancashire Mechanical Services Ltd,29/04/2015,Corporate,Capital Expenditure,HRA Capital Expenditure,1659
Wigan Council ,E08000010,Lancashire Mechanical Services Ltd,29/04/2015,Corporate,Capital Expenditure,HRA Capital Expenditure,1377
Wigan Council ,E08000010,Lancashire Mechanical Services Ltd,29/04/2015,Corporate,Capital Expenditure,HRA Capital Expenditure,1568
Wigan Council ,E08000010,Lancashire Mechanical Services Ltd,29/04/2015,Corporate,Capital Expenditure,HRA Capital Expenditure,2299
Wigan Council ,E08000010,Davron Taxis,08/04/2015,Provider Management & Market Development,Third Party Payments,Payments to Private Contractors,736
Wigan Council ,E08000010,Davron Taxis,08/04/2015,Provider Management & Market Development,Third Party Payments,Payments to Private Contractors,576
Wigan Council ,E08000010,Davron Taxis,08/04/2015,Provider Management & Market Development,Third Party Payments,Payments to Private Contractors,736
Wigan Council ,E08000010,Davron Taxis,16/04/2015,Provider Management & Market Development,Third Party Payments,Payments to Private Contractors,736
Wigan Council ,E08000010,Headstart At Shevington Vale,01/04/2015,Childrens - Departmental Overheads,Third Party Payments,Nursery Grant Payments,12911.81
Wigan Council ,E08000010,Citizens Advice Service In The Borough Of Wigan,20/04/2015,Housing and Regeneration,Supplies & Services,Professional Fees,9827
Wigan Council ,E08000010,Crown Records Management Ltd,14/04/2015,Finance,Supplies & Services,Equipment Furniture & Materials,1037.83
Wigan Council ,E08000010,Crown Records Management Ltd,16/04/2015,Finance,Supplies & Services,Equipment Furniture & Materials,1042.86
Wigan Council ,E08000010,Four Seasons Health Care Ltd,01/04/2015,Support & Safeguarding,Third Party Payments,Nursing Care,610.44
Wigan Council ,E08000010,Four Seasons Health Care Ltd,01/04/2015,Support & Safeguarding,Third Party Payments,Nursing Care,760.39
Wigan Council ,E08000010,Four Seasons Health Care Ltd,01/04/2015,Support & Safeguarding,Third Party Payments,Nursing Care,855.44
Wigan Council ,E08000010,Four Seasons Health Care Ltd,01/04/2015,Support & Safeguarding,Third Party Payments,Respite Care,962.29
Wigan Council ,E08000010,Four Seasons Health Care Ltd,01/04/2015,Support & Safeguarding,Third Party Payments,Respite Care,1142.71
Wigan Council ,E08000010,Four Seasons Health Care Ltd,01/04/2015,Support & Safeguarding,Third Party Payments,Respite Care,1263
Wigan Council ,E08000010,Four Seasons Health Care Ltd,01/04/2015,Support & Safeguarding,Third Party Payments,Permanent Care,1348
Wigan Council ,E08000010,Four Seasons Health Care Ltd,01/04/2015,Support & Safeguarding,Third Party Payments,Permanent Care,1496
Wigan Council ,E08000010,Four Seasons Health Care Ltd,01/04/2015,Support & Safeguarding,Third Party Payments,Permanent Care,1496
Wigan Council ,E08000010,Four Seasons Health Care Ltd,01/04/2015,Support & Safeguarding,Third Party Payments,Permanent Care,1496
Wigan Council ,E08000010,Four Seasons Health Care Ltd,01/04/2015,Support & Safeguarding,Third Party Payments,Permanent Care,1496
Wigan Council ,E08000010,Four Seasons Health Care Ltd,01/04/2015,Support & Safeguarding,Third Party Payments,Permanent Care,1496
Wigan Council ,E08000010,Four Seasons Health Care Ltd,01/04/2015,Support & Safeguarding,Third Party Payments,Permanent Care,1496
Wigan Council ,E08000010,Four Seasons Health Care Ltd,01/04/2015,Support & Safeguarding,Third Party Payments,Permanent Care,1684
Wigan Council ,E08000010,Four Seasons Health Care Ltd,01/04/2015,Support & Safeguarding,Third Party Payments,Permanent Care,1684
Wigan Council ,E08000010,Four Seasons Health Care Ltd,01/04/2015,Support & Safeguarding,Third Party Payments,Permanent Care,1684
Wigan Council ,E08000010,Four Seasons Health Care Ltd,01/04/2015,Support & Safeguarding,Third Party Payments,Permanent Care,1684
Wigan Council ,E08000010,Four Seasons Health Care Ltd,01/04/2015,Support & Safeguarding,Third Party Payments,Permanent Care,1684
Wigan Council ,E08000010,Four Seasons Health Care Ltd,01/04/2015,Support & Safeguarding,Third Party Payments,Permanent Care,1684
Wigan Council ,E08000010,Four Seasons Health Care Ltd,01/04/2015,Support & Safeguarding,Third Party Payments,Permanent Care,1684
Wigan Council ,E08000010,Four Seasons Health Care Ltd,01/04/2015,Support & Safeguarding,Third Party Payments,Permanent Care,1684
Wigan Council ,E08000010,Four Seasons Health Care Ltd,01/04/2015,Support & Safeguarding,Third Party Payments,Permanent Care,1684
Wigan Council ,E08000010,Four Seasons Health Care Ltd,01/04/2015,Support & Safeguarding,Third Party Payments,Permanent Care,1684
Wigan Council ,E08000010,Four Seasons Health Care Ltd,01/04/2015,Support & Safeguarding,Third Party Payments,Permanent Care,1684
Wigan Council ,E08000010,Four Seasons Health Care Ltd,01/04/2015,Support & Safeguarding,Third Party Payments,Nursing Care,1758.4
Wigan Council ,E08000010,Four Seasons Health Care Ltd,01/04/2015,Support & Safeguarding,Third Party Payments,Respite Care,2885.14
Wigan Council ,E08000010,Four Seasons Health Care Ltd,29/04/2015,Support & Safeguarding,Third Party Payments,Permanent Care,534.29
Wigan Council ,E08000010,Four Seasons Health Care Ltd,29/04/2015,Support & Safeguarding,Third Party Payments,Nursing Care,572.52
Wigan Council ,E08000010,Four Seasons Health Care Ltd,29/04/2015,Support & Safeguarding,Third Party Payments,Nursing Care,616.56
Wigan Council ,E08000010,Four Seasons Health Care Ltd,29/04/2015,Support & Safeguarding,Third Party Payments,Respite Care,721.71
Wigan Council ,E08000010,Four Seasons Health Care Ltd,29/04/2015,Support & Safeguarding,Third Party Payments,Permanent Care,1348
Wigan Council ,E08000010,Four Seasons Health Care Ltd,29/04/2015,Support & Safeguarding,Third Party Payments,Permanent Care,1389.14
Wigan Council ,E08000010,Four Seasons Health Care Ltd,29/04/2015,Support & Safeguarding,Third Party Payments,Permanent Care,1389.14
Wigan Council ,E08000010,Four Seasons Health Care Ltd,29/04/2015,Support & Safeguarding,Third Party Payments,Permanent Care,1389.14
Wigan Council ,E08000010,Four Seasons Health Care Ltd,29/04/2015,Support & Safeguarding,Third Party Payments,Permanent Care,1389.14
Wigan Council ,E08000010,Four Seasons Health Care Ltd,29/04/2015,Support & Safeguarding,Third Party Payments,Permanent Care,1389.14
Wigan Council ,E08000010,Four Seasons Health Care Ltd,29/04/2015,Support & Safeguarding,Third Party Payments,Permanent Care,1389.14
Wigan Council ,E08000010,Four Seasons Health Care Ltd,29/04/2015,Support & Safeguarding,Third Party Payments,Respite Care,1412.3
Wigan Council ,E08000010,Four Seasons Health Care Ltd,29/04/2015,Support & Safeguarding,Third Party Payments,Respite Care,1443.43
Wigan Council ,E08000010,Four Seasons Health Care Ltd,29/04/2015,Support & Safeguarding,Third Party Payments,Respite Care,1496
Wigan Council ,E08000010,Four Seasons Health Care Ltd,29/04/2015,Support & Safeguarding,Third Party Payments,Permanent Care,1496
Wigan Council ,E08000010,Four Seasons Health Care Ltd,29/04/2015,Support & Safeguarding,Third Party Payments,Permanent Care,1496
Wigan Council ,E08000010,Four Seasons Health Care Ltd,29/04/2015,Support & Safeguarding,Third Party Payments,Permanent Care,1496
Wigan Council ,E08000010,Four Seasons Health Care Ltd,29/04/2015,Support & Safeguarding,Third Party Payments,Permanent Care,1496
Wigan Council ,E08000010,Four Seasons Health Care Ltd,29/04/2015,Support & Safeguarding,Third Party Payments,Permanent Care,1496
Wigan Council ,E08000010,Four Seasons Health Care Ltd,29/04/2015,Support & Safeguarding,Third Party Payments,Permanent Care,1496
Wigan Council ,E08000010,Four Seasons Health Care Ltd,29/04/2015,Support & Safeguarding,Third Party Payments,Permanent Care,1496
Wigan Council ,E08000010,Four Seasons Health Care Ltd,29/04/2015,Support & Safeguarding,Third Party Payments,Permanent Care,1496
Wigan Council ,E08000010,Four Seasons Health Care Ltd,29/04/2015,Support & Safeguarding,Third Party Payments,Permanent Care,1563.71
Wigan Council ,E08000010,Four Seasons Health Care Ltd,29/04/2015,Support & Safeguarding,Third Party Payments,Permanent Care,1563.71
Wigan Council ,E08000010,Four Seasons Health Care Ltd,29/04/2015,Support & Safeguarding,Third Party Payments,Permanent Care,1563.71
Wigan Council ,E08000010,Four Seasons Health Care Ltd,29/04/2015,Support & Safeguarding,Third Party Payments,Permanent Care,1563.71
Wigan Council ,E08000010,Four Seasons Health Care Ltd,29/04/2015,Support & Safeguarding,Third Party Payments,Permanent Care,1623.86
Wigan Council ,E08000010,Four Seasons Health Care Ltd,29/04/2015,Support & Safeguarding,Third Party Payments,Respite Care,1656.29
Wigan Council ,E08000010,Four Seasons Health Care Ltd,29/04/2015,Support & Safeguarding,Third Party Payments,Respite Care,1684
Wigan Council ,E08000010,Four Seasons Health Care Ltd,29/04/2015,Support & Safeguarding,Third Party Payments,Permanent Care,1684
Wigan Council ,E08000010,Four Seasons Health Care Ltd,29/04/2015,Support & Safeguarding,Third Party Payments,Permanent Care,1684
Wigan Council ,E08000010,Four Seasons Health Care Ltd,29/04/2015,Support & Safeguarding,Third Party Payments,Permanent Care,1684
Wigan Council ,E08000010,Four Seasons Health Care Ltd,29/04/2015,Support & Safeguarding,Third Party Payments,Permanent Care,1684
Wigan Council ,E08000010,Four Seasons Health Care Ltd,29/04/2015,Support & Safeguarding,Third Party Payments,Permanent Care,1684
Wigan Council ,E08000010,Four Seasons Health Care Ltd,29/04/2015,Support & Safeguarding,Third Party Payments,Permanent Care,1684
Wigan Council ,E08000010,Four Seasons Health Care Ltd,29/04/2015,Support & Safeguarding,Third Party Payments,Permanent Care,1684
Wigan Council ,E08000010,Four Seasons Health Care Ltd,29/04/2015,Support & Safeguarding,Third Party Payments,Permanent Care,1684
Wigan Council ,E08000010,Four Seasons Health Care Ltd,29/04/2015,Support & Safeguarding,Third Party Payments,Permanent Care,1684
Wigan Council ,E08000010,Four Seasons Health Care Ltd,29/04/2015,Support & Safeguarding,Third Party Payments,Permanent Care,1684
Wigan Council ,E08000010,Whitley Pre School Playgroup,01/04/2015,Childrens - Departmental Overheads,Third Party Payments,Nursery Grant Payments,10541.66
Wigan Council ,E08000010,Paul Horton Flooring,17/04/2015,Targeted Services,Premises,Repairs & Maintenance (Non CPMF),1340
Wigan Council ,E08000010,JJH Building Contractors Ltd,22/04/2015,Trading,Supplies & Services,Subcontracted Repairs,885.78
Wigan Council ,E08000010,JJH Building Contractors Ltd,22/04/2015,Trading,Supplies & Services,Subcontracted Repairs,590.52
Wigan Council ,E08000010,JJH Building Contractors Ltd,22/04/2015,Trading,Supplies & Services,Subcontracted Repairs,1771.56
Wigan Council ,E08000010,JJH Building Contractors Ltd,22/04/2015,Trading,Supplies & Services,Subcontracted Repairs,1181.04
Wigan Council ,E08000010,JJH Building Contractors Ltd,22/04/2015,Trading,Supplies & Services,Subcontracted Repairs,1771.56
Wigan Council ,E08000010,JJH Building Contractors Ltd,22/04/2015,Trading,Supplies & Services,Subcontracted Repairs,1181.04
Wigan Council ,E08000010,Chassis & Cab Specialists Ltd,16/04/2015,Trading,Supplies & Services,Subcontracted Repairs,1038.03
Wigan Council ,E08000010,Little Acorns Private Nursery,01/04/2015,Childrens - Departmental Overheads,Third Party Payments,Nursery Grant Payments,24278.02
Wigan Council ,E08000010,Leigh Community Starter Group,01/04/2015,Childrens - Departmental Overheads,Third Party Payments,Nursery Grant Payments,23079.92
Wigan Council ,E08000010,St Johns Pre-School,01/04/2015,Childrens - Departmental Overheads,Third Party Payments,Nursery Grant Payments,12591.43
Wigan Council ,E08000010,Travis Perkins Trading Co Ltd,15/04/2015,Trading,Supplies & Services,Agresso Warehouse Control Account,954.44
Wigan Council ,E08000010,Travis Perkins Trading Co Ltd,20/04/2015,Trading,Supplies & Services,Agresso Warehouse Control Account,1390.05
Wigan Council ,E08000010,Travis Perkins Trading Co Ltd,28/04/2015,Trading,Supplies & Services,Direct Materials,826.76
Wigan Council ,E08000010,Travis Perkins Trading Co Ltd,28/04/2015,Trading,Supplies & Services,Direct Materials,979.32
Wigan Council ,E08000010,Wigan & Leigh Pensioners Link,07/04/2015,Strategy & Partnerships,Third Party Payments,Payments to Voluntary Organisations,20942.33
Wigan Council ,E08000010,Truline Construction & Interior Services Ltd,17/04/2015,Corporate,Capital Expenditure,GF Capital Expenditure,533
Wigan Council ,E08000010,Truline Construction & Interior Services Ltd,17/04/2015,Corporate,Capital Expenditure,GF Capital Expenditure,2635.98
Wigan Council ,E08000010,Truline Construction & Interior Services Ltd,23/04/2015,Corporate,Capital Expenditure,HRA Capital Expenditure,623.07
Wigan Council ,E08000010,Truline Construction & Interior Services Ltd,23/04/2015,Corporate,Capital Expenditure,HRA Capital Expenditure,4838.13
Wigan Council ,E08000010,Truline Construction & Interior Services Ltd,29/04/2015,"Leisure, Cultural & Property",Premises,Repairs & Maintenance (Landlord),570.95
Wigan Council ,E08000010,Truline Construction & Interior Services Ltd,30/04/2015,Corporate,Capital Expenditure,GF Capital Expenditure,1512.99
Wigan Council ,E08000010,Truline Construction & Interior Services Ltd,30/04/2015,Corporate,Capital Expenditure,HRA Capital Expenditure,1614.95
Wigan Council ,E08000010,Truline Construction & Interior Services Ltd,30/04/2015,"Leisure, Cultural & Property",Premises,Repairs & Maintenance (Landlord),14453.8
Wigan Council ,E08000010,B & M Davies (Plant Hire) Ltd,22/04/2015,Trading,Transport,Vehicle and Plant Hire,741
Wigan Council ,E08000010,BT Payment Services Ltd,08/04/2015,Corporate,Capital Expenditure,GF Capital Expenditure,8744.17
Wigan Council ,E08000010,BT Payment Services Ltd,09/04/2015,Legal,Supplies & Services,Telecommunications,1365.65
Wigan Council ,E08000010,BT Payment Services Ltd,23/04/2015,IT and Communications,Supplies & Services,Telecommunications,15858.89
Wigan Council ,E08000010,BT Payment Services Ltd,23/04/2015,IT and Communications,Supplies & Services,Telecommunications,45446.45
Wigan Council ,E08000010,BT Payment Services Ltd,23/04/2015,IT and Communications,Supplies & Services,Telecommunications,37404.31
Wigan Council ,E08000010,BT Payment Services Ltd,23/04/2015,IT and Communications,Supplies & Services,Telecommunications,2006.21
Wigan Council ,E08000010,BT Payment Services Ltd,23/04/2015,IT and Communications,Supplies & Services,Telecommunications,10913.8
Wigan Council ,E08000010,Chartered Institute Of Housing,14/04/2015,Wigan and Leigh Housing,Salaries,Learning and Development,899
Wigan Council ,E08000010,Riverside Group Ltd,10/04/2015,Provider Management & Market Development,Premises,Rent,728.82
Wigan Council ,E08000010,Riverside Group Ltd,10/04/2015,Provider Management & Market Development,Premises,Rent,729
Wigan Council ,E08000010,Riverside Group Ltd,23/04/2015,Public Health,Third Party Payments,Payments to Private Contractors,1674.24
Wigan Council ,E08000010,Riverside Group Ltd,28/04/2015,Early Intervention & Prevention,Third Party Payments,Payments to Private Contractors,6590.67
Wigan Council ,E08000010,Riverside Group Ltd,28/04/2015,Early Intervention & Prevention,Third Party Payments,Payments to Private Contractors,14895.5
Wigan Council ,E08000010,Riverside Group Ltd,28/04/2015,Public Health,Third Party Payments,Payments to Private Contractors,24141.42
Wigan Council ,E08000010,Micro Computer Consultants Ltd,16/04/2015,Partnerships & Safeguarding,Supplies & Services,Equipment Furniture & Materials,659.7
Wigan Council ,E08000010,Micro Computer Consultants Ltd,16/04/2015,Partnerships & Safeguarding,Supplies & Services,Equipment Furniture & Materials,1380
Wigan Council ,E08000010,Manchester Safety Services Ltd,08/04/2015,Trading,Supplies & Services,Direct Materials,1868.8
Wigan Council ,E08000010,Hayman Mechanical Services Ltd,17/04/2015,"Leisure, Cultural & Property",Premises,Repairs & Maintenance (Landlord),575.95
Wigan Council ,E08000010,Hayman Mechanical Services Ltd,23/04/2015,Housing Revenue Account,Premises,HRA Programmed Works,510.85
Wigan Council ,E08000010,Hayman Mechanical Services Ltd,23/04/2015,Housing Revenue Account,Premises,HRA Day to Day Responsive Repairs,1121.8
Wigan Council ,E08000010,Hayman Mechanical Services Ltd,23/04/2015,Housing Revenue Account,Premises,HRA Day to Day Responsive Repairs,1126.07
Wigan Council ,E08000010,Hayman Mechanical Services Ltd,29/04/2015,"Leisure, Cultural & Property",Premises,Repairs & Maintenance (Landlord),787.5
Wigan Council ,E08000010,Hayman Mechanical Services Ltd,29/04/2015,Corporate,Capital Expenditure,GF Capital Expenditure,1150.6
Wigan Council ,E08000010,Hayman Mechanical Services Ltd,30/04/2015,Trading,Supplies & Services,Subcontracted Repairs,645
Wigan Council ,E08000010,Hayman Mechanical Services Ltd,30/04/2015,Trading,Supplies & Services,Subcontracted Repairs,764.21
Wigan Council ,E08000010,Hayman Mechanical Services Ltd,30/04/2015,"Leisure, Cultural & Property",Premises,Repairs & Maintenance (Landlord),897
Wigan Council ,E08000010,Blakeley's Recycling Ltd,30/04/2015,Economic Development & Skills,Supplies & Services,Equipment Hire,651.76
Wigan Council ,E08000010,First Steps Private Day Nursery Lowton Ltd,01/04/2015,Childrens - Departmental Overheads,Third Party Payments,Nursery Grant Payments,35227.71
Wigan Council ,E08000010,By The Bridge North West,09/04/2015,Targeted Services,Third Party Payments,Payments to Voluntary Organisations,4050
Wigan Council ,E08000010,By The Bridge North West,09/04/2015,Targeted Services,Third Party Payments,Payments to Voluntary Organisations,3897.6
Wigan Council ,E08000010,By The Bridge North West,09/04/2015,Targeted Services,Third Party Payments,Payments to Voluntary Organisations,3702.73
Wigan Council ,E08000010,By The Bridge North West,09/04/2015,Targeted Services,Third Party Payments,Payments to Voluntary Organisations,3702.73
Wigan Council ,E08000010,One Vision Media Productions,10/04/2015,Provider Management & Market Development,Third Party Payments,Private Day Care,780
Wigan Council ,E08000010,One Vision Media Productions,10/04/2015,Provider Management & Market Development,Third Party Payments,Private Day Care,540
Wigan Council ,E08000010,Progress Care Housing Assoc Ltd,20/04/2015,Provider Management & Market Development,Premises,Rent,3919.24
Wigan Council ,E08000010,Progress Care Housing Assoc Ltd,20/04/2015,Provider Management & Market Development,Premises,Rent,4902.3
Wigan Council ,E08000010,Progress Care Housing Assoc Ltd,20/04/2015,Provider Management & Market Development,Premises,Rent,3898.44
Wigan Council ,E08000010,Progress Care Housing Assoc Ltd,20/04/2015,Provider Management & Market Development,Premises,Rent,3662.88
Wigan Council ,E08000010,Progress Care Housing Assoc Ltd,20/04/2015,Provider Management & Market Development,Premises,Rent,3986.58
Wigan Council ,E08000010,Progress Care Housing Assoc Ltd,20/04/2015,Provider Management & Market Development,Premises,Rent,3409.64
Wigan Council ,E08000010,Progress Care Housing Assoc Ltd,20/04/2015,Provider Management & Market Development,Premises,Rent,3589.04
Wigan Council ,E08000010,Progress Care Housing Assoc Ltd,20/04/2015,Provider Management & Market Development,Premises,Rent,3424.72
Wigan Council ,E08000010,Progress Care Housing Assoc Ltd,20/04/2015,Provider Management & Market Development,Premises,Rent,1611.83
Wigan Council ,E08000010,Progress Care Housing Assoc Ltd,20/04/2015,Provider Management & Market Development,Premises,Rent,1611.83
Wigan Council ,E08000010,Progress Care Housing Assoc Ltd,20/04/2015,Provider Management & Market Development,Premises,Rent,1611.82
Wigan Council ,E08000010,Progress Care Housing Assoc Ltd,20/04/2015,Provider Management & Market Development,Premises,Rent,3814.2
Wigan Council ,E08000010,Progress Care Housing Assoc Ltd,20/04/2015,Provider Management & Market Development,Premises,Rent,4453.28
Wigan Council ,E08000010,Progress Care Housing Assoc Ltd,20/04/2015,Provider Management & Market Development,Premises,Rent,3779.88
Wigan Council ,E08000010,Progress Care Housing Assoc Ltd,20/04/2015,Provider Management & Market Development,Premises,Rent,2454.27
Wigan Council ,E08000010,Progress Care Housing Assoc Ltd,20/04/2015,Provider Management & Market Development,Premises,Rent,4932.2
Wigan Council ,E08000010,Progress Care Housing Assoc Ltd,20/04/2015,Provider Management & Market Development,Premises,Rent,3778.84
Wigan Council ,E08000010,Progress Care Housing Assoc Ltd,20/04/2015,Provider Management & Market Development,Premises,Rent,3740.1
Wigan Council ,E08000010,Progress Care Housing Assoc Ltd,20/04/2015,Provider Management & Market Development,Premises,Rent,3843.32
Wigan Council ,E08000010,Progress Care Housing Assoc Ltd,20/04/2015,Provider Management & Market Development,Premises,Rent,2868.84
Wigan Council ,E08000010,Progress Care Housing Assoc Ltd,20/04/2015,Provider Management & Market Development,Premises,Rent,4769.44
Wigan Council ,E08000010,Progress Care Housing Assoc Ltd,23/04/2015,Provider Management & Market Development,Premises,Rent,747.03
Wigan Council ,E08000010,Redwood House Childrens Nursery,01/04/2015,Childrens - Departmental Overheads,Third Party Payments,Nursery Grant Payments,35029.51
Wigan Council ,E08000010,Rose Bridge Day Nursery,16/04/2015,Childrens - Departmental Overheads,Third Party Payments,Nursery Grant Payments,15795.36
Wigan Council ,E08000010,South Lakeland District Council,09/04/2015,Education,Premises,NNDR,1831.8
Wigan Council ,E08000010,Bond Care (The Spinney) Limited,01/04/2015,Support & Safeguarding,Third Party Payments,Permanent Care,1684
Wigan Council ,E08000010,Bond Care (The Spinney) Limited,01/04/2015,Support & Safeguarding,Third Party Payments,Permanent Care,1684
Wigan Council ,E08000010,Bond Care (The Spinney) Limited,01/04/2015,Support & Safeguarding,Third Party Payments,Respite Care,1684
Wigan Council ,E08000010,Bond Care (The Spinney) Limited,01/04/2015,Support & Safeguarding,Third Party Payments,Permanent Care,1684
Wigan Council ,E08000010,Bond Care (The Spinney) Limited,29/04/2015,Support & Safeguarding,Third Party Payments,Respite Care,587.71
Wigan Council ,E08000010,Bond Care (The Spinney) Limited,29/04/2015,Support & Safeguarding,Third Party Payments,Respite Care,908.29
Wigan Council ,E08000010,Bond Care (The Spinney) Limited,29/04/2015,Support & Safeguarding,Third Party Payments,Respite Care,1383.29
Wigan Council ,E08000010,Bond Care (The Spinney) Limited,29/04/2015,Support & Safeguarding,Third Party Payments,Permanent Care,1684
Wigan Council ,E08000010,Bond Care (The Spinney) Limited,29/04/2015,Support & Safeguarding,Third Party Payments,Permanent Care,1684
Wigan Council ,E08000010,Bond Care (The Spinney) Limited,29/04/2015,Support & Safeguarding,Third Party Payments,Permanent Care,1684
Wigan Council ,E08000010,Gibsons Garden Machinery Limited,30/04/2015,Trading,Supplies & Services,Direct Materials,1582.33
Wigan Council ,E08000010,Local Government Information Unit,09/04/2015,Finance,Supplies & Services,Subscriptions,11500
Wigan Council ,E08000010,Mrs Ogden's Academic Nursery School,01/04/2015,Childrens - Departmental Overheads,Third Party Payments,Nursery Grant Payments,13028.9
Wigan Council ,E08000010,Smith Bros (Caerconan Wholesale),21/04/2015,Corporate,Capital Expenditure,GF Capital Expenditure,191630.4
Wigan Council ,E08000010,Smith Bros (Caerconan Wholesale),21/04/2015,Corporate,Capital Expenditure,GF Capital Expenditure,233766
Wigan Council ,E08000010,Smith Bros (Caerconan Wholesale),21/04/2015,Corporate,Capital Expenditure,GF Capital Expenditure,135064.8
Wigan Council ,E08000010,Smith Bros (Caerconan Wholesale),21/04/2015,Corporate,Capital Expenditure,GF Capital Expenditure,16450.2
Wigan Council ,E08000010,St John Rigby R C Sixth Form College,30/04/2015,Partnerships & Safeguarding,Third Party Payments,Private Education Services,126196.66
Wigan Council ,E08000010,Electricity North West Ltd,10/04/2015,Infrastructure,Third Party Payments,Highways Maintenance,649.63
Wigan Council ,E08000010,Electricity North West Ltd,10/04/2015,Infrastructure,Third Party Payments,Highways Maintenance,610.7
Wigan Council ,E08000010,A Wood Plumbing Heating Building,08/04/2015,Corporate,Capital Expenditure,GF Capital Expenditure,12900
Wigan Council ,E08000010,A Wood Plumbing Heating Building,10/04/2015,Corporate,Capital Expenditure,GF Capital Expenditure,3900
Wigan Council ,E08000010,Bottomline Technologies Limited,10/04/2015,Customer Services,Supplies & Services,Computer Software (Licences & Maintenance),1000
Wigan Council ,E08000010,Wrightington Wigan & Leigh NHS Trust,09/04/2015,Adults - Departmental Overheads,Supplies & Services,Professional Fees,614.1
Wigan Council ,E08000010,Wrightington Wigan & Leigh NHS Trust,14/04/2015,Provider Management & Market Development,Supplies & Services,Provisions - Food and Drink,594.66
Wigan Council ,E08000010,Wrightington Wigan & Leigh NHS Trust,20/04/2015,Public Health,Third Party Payments,Housing Support / Drugs and Alcohol,10172.33
Wigan Council ,E08000010,Micron Electrical (Contracting) Ltd,14/04/2015,Trading,Supplies & Services,Equipment Furniture & Materials,611.6
Wigan Council ,E08000010,Hearing Products International Limited,23/04/2015,Corporate,Capital Expenditure,GF Capital Expenditure,793
Wigan Council ,E08000010,Northgate Information Solutions UK Ltd,10/04/2015,Customer Services,Supplies & Services,Computer Software (Licences & Maintenance),21900.51
Wigan Council ,E08000010,Northgate Information Solutions UK Ltd,10/04/2015,Customer Services,Supplies & Services,Computer Software (Licences & Maintenance),1250
Wigan Council ,E08000010,Northgate Information Solutions UK Ltd,10/04/2015,Customer Services,Supplies & Services,Computer Software (Licences & Maintenance),2896.23
Wigan Council ,E08000010,Northgate Information Solutions UK Ltd,10/04/2015,Customer Services,Supplies & Services,Computer Software (Licences & Maintenance),12471.42
Wigan Council ,E08000010,Northgate Information Solutions UK Ltd,14/04/2015,Wigan and Leigh Housing,Supplies & Services,Computer Software (Licences & Maintenance),1800
Wigan Council ,E08000010,Northgate Information Solutions UK Ltd,14/04/2015,Wigan and Leigh Housing,Supplies & Services,Computer Software (Licences & Maintenance),1000
Wigan Council ,E08000010,Northgate Information Solutions UK Ltd,14/04/2015,Wigan and Leigh Housing,Supplies & Services,Computer Software (Licences & Maintenance),5643
Wigan Council ,E08000010,Northgate Information Solutions UK Ltd,14/04/2015,Wigan and Leigh Housing,Supplies & Services,Computer Software (Licences & Maintenance),32900
Wigan Council ,E08000010,Northgate Information Solutions UK Ltd,14/04/2015,Wigan and Leigh Housing,Supplies & Services,Computer Software (Licences & Maintenance),2443
Wigan Council ,E08000010,Northgate Information Solutions UK Ltd,14/04/2015,Wigan and Leigh Housing,Supplies & Services,Computer Software (Licences & Maintenance),117055
Wigan Council ,E08000010,Northgate Information Solutions UK Ltd,15/04/2015,IT and Communications,Supplies & Services,Computer Software (Licences & Maintenance),82093
Wigan Council ,E08000010,Northgate Information Solutions UK Ltd,15/04/2015,Customer Services,Supplies & Services,Computer Software (Licences & Maintenance),35045
Wigan Council ,E08000010,Northgate Information Solutions UK Ltd,20/04/2015,Customer Services,Supplies & Services,Computer Software (Licences & Maintenance),16950
Wigan Council ,E08000010,Northgate Information Solutions UK Ltd,22/04/2015,Customer Services,Supplies & Services,Equipment Furniture & Materials,3436.85
Wigan Council ,E08000010,Valuation Office Agency,08/04/2015,Corporate,Capital Expenditure,GF Capital Expenditure,941.23
Wigan Council ,E08000010,Lawrence Vehicles Ltd T/A Lancashire Daf,10/04/2015,Trading,Supplies & Services,Direct Materials,571.01
Wigan Council ,E08000010,Woodall Nicholson Ltd,23/04/2015,Corporate,Capital Expenditure,GF Capital Expenditure,65699
Wigan Council ,E08000010,Woodall Nicholson Ltd,23/04/2015,Corporate,Capital Expenditure,GF Capital Expenditure,65699
Wigan Council ,E08000010,Woodall Nicholson Ltd,23/04/2015,Corporate,Capital Expenditure,GF Capital Expenditure,65699
Wigan Council ,E08000010,Woodall Nicholson Ltd,23/04/2015,Corporate,Capital Expenditure,GF Capital Expenditure,65699
Wigan Council ,E08000010,Woodall Nicholson Ltd,23/04/2015,Corporate,Capital Expenditure,GF Capital Expenditure,65699
Wigan Council ,E08000010,Woodall Nicholson Ltd,23/04/2015,Corporate,Capital Expenditure,GF Capital Expenditure,65699
Wigan Council ,E08000010,Eldercare,17/04/2015,Early Intervention & Prevention,Third Party Payments,Payments to Private Contractors,24053.19
Wigan Council ,E08000010,Eldercare,20/04/2015,Support & Safeguarding,Third Party Payments,Private Domicilliary,13971.05
Wigan Council ,E08000010,Eldercare,20/04/2015,Provider Management & Market Development,Third Party Payments,Private Domicilliary,2993.8
Wigan Council ,E08000010,Eldercare,20/04/2015,Provider Management & Market Development,Third Party Payments,Private Domicilliary,2993.8
Wigan Council ,E08000010,Eldercare,20/04/2015,Provider Management & Market Development,Third Party Payments,Private Domicilliary,2138.41
Wigan Council ,E08000010,Eldercare,21/04/2015,Early Intervention & Prevention,Supplies & Services,Equipment Furniture & Materials,17200.64
Wigan Council ,E08000010,Eldercare,22/04/2015,Housing Revenue Account,Third Party Payments,Payments to Private Contractors,14486.07
Wigan Council ,E08000010,Next Generation Nursery & Schoolies Club Ltd,16/04/2015,Childrens - Departmental Overheads,Third Party Payments,Nursery Grant Payments,17289.72
Wigan Council ,E08000010,Wigan Churches Association For Family Welfare,28/04/2015,Support & Safeguarding,Third Party Payments,Payments to Voluntary Organisations,1757.5
Wigan Council ,E08000010,Wigan Metropolitan Development Co (Investment) Ltd,14/04/2015,Human Resources and Organisational Development,Premises,Rent,33940
Wigan Council ,E08000010,Arco Limited,10/04/2015,Trading,Supplies & Services,Agresso Warehouse Control Account,679.69
Wigan Council ,E08000010,Wigan Leisure & Culture Trust,14/04/2015,"Corporate Funding (RSG,NNDR etc)",Supplies & Services,Insurance Work and Claims,3096.5
Wigan Council ,E08000010,Wigan Leisure & Culture Trust,14/04/2015,"Leisure, Cultural & Property",Third Party Payments,Payments to Voluntary Organisations,1061132.75
Wigan Council ,E08000010,Wigan Leisure & Culture Trust,16/04/2015,Early Intervention and Prevention (Children),Supplies & Services,Professional Fees,765
Wigan Council ,E08000010,Wigan Leisure & Culture Trust,17/04/2015,"Leisure, Cultural & Property",Third Party Payments,Payments to Voluntary Organisations,7687.62
Wigan Council ,E08000010,Wigan Leisure & Culture Trust,30/04/2015,Trading,Supplies & Services,Hired & Contracted Services,2907.08
Wigan Council ,E08000010,Wigan Leisure & Culture Trust,30/04/2015,Economic Development & Skills,Third Party Payments,Private Education Services,3944.01
Wigan Council ,E08000010,Wigan Leisure & Culture Trust,30/04/2015,Economic Development & Skills,Third Party Payments,Private Education Services,10128.99
Wigan Council ,E08000010,Alpha Homecare Ltd T/AS Alpha Nursing Agency,08/04/2015,Support & Safeguarding,Third Party Payments,Private Domicilliary,2093.87
Wigan Council ,E08000010,Alpha Homecare Ltd T/AS Alpha Nursing Agency,08/04/2015,Early Intervention & Prevention,Third Party Payments,Private Domicilliary,5808.29
Wigan Council ,E08000010,Alpha Homecare Ltd T/AS Alpha Nursing Agency,08/04/2015,Targeted Services,Third Party Payments,Private Domicilliary,702.01
Wigan Council ,E08000010,Alpha Homecare Ltd T/AS Alpha Nursing Agency,08/04/2015,Support & Safeguarding,Third Party Payments,Private Domicilliary,10114.71
Wigan Council ,E08000010,Alpha Homecare Ltd T/AS Alpha Nursing Agency,08/04/2015,Provider Management & Market Development,Third Party Payments,Private Domicilliary,693.17
Wigan Council ,E08000010,Alpha Homecare Ltd T/AS Alpha Nursing Agency,08/04/2015,Provider Management & Market Development,Third Party Payments,Private Domicilliary,3982.54
Wigan Council ,E08000010,Alpha Homecare Ltd T/AS Alpha Nursing Agency,08/04/2015,Provider Management & Market Development,Third Party Payments,Private Domicilliary,17668.69
Wigan Council ,E08000010,Alpha Homecare Ltd T/AS Alpha Nursing Agency,08/04/2015,Provider Management & Market Development,Third Party Payments,Private Domicilliary,600.02
Wigan Council ,E08000010,Alpha Homecare Ltd T/AS Alpha Nursing Agency,08/04/2015,Provider Management & Market Development,Third Party Payments,Private Domicilliary,2476.69
Wigan Council ,E08000010,Alpha Homecare Ltd T/AS Alpha Nursing Agency,08/04/2015,Provider Management & Market Development,Third Party Payments,Private Domicilliary,4879.68
Wigan Council ,E08000010,Alpha Homecare Ltd T/AS Alpha Nursing Agency,08/04/2015,Provider Management & Market Development,Third Party Payments,Private Domicilliary,670.13
Wigan Council ,E08000010,Alpha Homecare Ltd T/AS Alpha Nursing Agency,08/04/2015,Provider Management & Market Development,Third Party Payments,Private Domicilliary,1269.77
Wigan Council ,E08000010,Alpha Homecare Ltd T/AS Alpha Nursing Agency,08/04/2015,Provider Management & Market Development,Third Party Payments,Private Domicilliary,2182.75
Wigan Council ,E08000010,Alpha Homecare Ltd T/AS Alpha Nursing Agency,23/04/2015,Support & Safeguarding,Third Party Payments,Private Domicilliary,2336.2
Wigan Council ,E08000010,Alpha Homecare Ltd T/AS Alpha Nursing Agency,23/04/2015,Early Intervention & Prevention,Third Party Payments,Private Domicilliary,5937.87
Wigan Council ,E08000010,Alpha Homecare Ltd T/AS Alpha Nursing Agency,23/04/2015,Targeted Services,Third Party Payments,Private Domicilliary,531.44
Wigan Council ,E08000010,Alpha Homecare Ltd T/AS Alpha Nursing Agency,23/04/2015,Support & Safeguarding,Third Party Payments,Private Domicilliary,10477.93
Wigan Council ,E08000010,Alpha Homecare Ltd T/AS Alpha Nursing Agency,23/04/2015,Support & Safeguarding,Third Party Payments,Private Domicilliary,728.92
Wigan Council ,E08000010,Alpha Homecare Ltd T/AS Alpha Nursing Agency,23/04/2015,Provider Management & Market Development,Third Party Payments,Private Domicilliary,825.65
Wigan Council ,E08000010,Alpha Homecare Ltd T/AS Alpha Nursing Agency,23/04/2015,Provider Management & Market Development,Third Party Payments,Private Domicilliary,3918.37
Wigan Council ,E08000010,Alpha Homecare Ltd T/AS Alpha Nursing Agency,23/04/2015,Provider Management & Market Development,Third Party Payments,Private Domicilliary,17958.21
Wigan Council ,E08000010,Alpha Homecare Ltd T/AS Alpha Nursing Agency,23/04/2015,Provider Management & Market Development,Third Party Payments,Private Domicilliary,516.26
Wigan Council ,E08000010,Alpha Homecare Ltd T/AS Alpha Nursing Agency,23/04/2015,Provider Management & Market Development,Third Party Payments,Private Domicilliary,2141.9
Wigan Council ,E08000010,Alpha Homecare Ltd T/AS Alpha Nursing Agency,23/04/2015,Provider Management & Market Development,Third Party Payments,Private Domicilliary,4483.34
Wigan Council ,E08000010,Alpha Homecare Ltd T/AS Alpha Nursing Agency,23/04/2015,Provider Management & Market Development,Third Party Payments,Private Domicilliary,707.8
Wigan Council ,E08000010,Alpha Homecare Ltd T/AS Alpha Nursing Agency,23/04/2015,Provider Management & Market Development,Third Party Payments,Private Domicilliary,1278.47
Wigan Council ,E08000010,Alpha Homecare Ltd T/AS Alpha Nursing Agency,23/04/2015,Provider Management & Market Development,Third Party Payments,Private Domicilliary,2335.1
Wigan Council ,E08000010,Alpha Homecare Ltd T/AS Alpha Nursing Agency,28/04/2015,Targeted Services,Third Party Payments,Private Domicilliary,515.57
Wigan Council ,E08000010,Alpha Homecare Ltd T/AS Alpha Nursing Agency,28/04/2015,Support & Safeguarding,Third Party Payments,Private Domicilliary,658.26
Wigan Council ,E08000010,Alpha Homecare Ltd T/AS Alpha Nursing Agency,28/04/2015,Support & Safeguarding,Third Party Payments,Private Domicilliary,9717.27
Wigan Council ,E08000010,Alpha Homecare Ltd T/AS Alpha Nursing Agency,28/04/2015,Provider Management & Market Development,Third Party Payments,Private Domicilliary,734.16
Wigan Council ,E08000010,Alpha Homecare Ltd T/AS Alpha Nursing Agency,28/04/2015,Provider Management & Market Development,Third Party Payments,Private Domicilliary,4013.32
Wigan Council ,E08000010,Alpha Homecare Ltd T/AS Alpha Nursing Agency,28/04/2015,Provider Management & Market Development,Third Party Payments,Private Domicilliary,17637.1
Wigan Council ,E08000010,Alpha Homecare Ltd T/AS Alpha Nursing Agency,28/04/2015,Provider Management & Market Development,Third Party Payments,Private Domicilliary,506.32
Wigan Council ,E08000010,Alpha Homecare Ltd T/AS Alpha Nursing Agency,28/04/2015,Provider Management & Market Development,Third Party Payments,Private Domicilliary,1914.61
Wigan Council ,E08000010,Alpha Homecare Ltd T/AS Alpha Nursing Agency,28/04/2015,Provider Management & Market Development,Third Party Payments,Private Domicilliary,4279.52
Wigan Council ,E08000010,Alpha Homecare Ltd T/AS Alpha Nursing Agency,28/04/2015,Provider Management & Market Development,Third Party Payments,Private Domicilliary,673.85
Wigan Council ,E08000010,Alpha Homecare Ltd T/AS Alpha Nursing Agency,28/04/2015,Provider Management & Market Development,Third Party Payments,Private Domicilliary,1270.19
Wigan Council ,E08000010,Alpha Homecare Ltd T/AS Alpha Nursing Agency,28/04/2015,Provider Management & Market Development,Third Party Payments,Private Domicilliary,2378.84
Wigan Council ,E08000010,Alpha Homecare Ltd T/AS Alpha Nursing Agency,28/04/2015,Support & Safeguarding,Third Party Payments,Private Domicilliary,2341.31
Wigan Council ,E08000010,Alpha Homecare Ltd T/AS Alpha Nursing Agency,28/04/2015,Early Intervention & Prevention,Third Party Payments,Private Domicilliary,5815.73
Wigan Council ,E08000010,Alpha Homecare Ltd T/AS Alpha Nursing Agency,30/04/2015,Support & Safeguarding,Third Party Payments,Private Domicilliary,9561.19
Wigan Council ,E08000010,Alpha Homecare Ltd T/AS Alpha Nursing Agency,30/04/2015,Support & Safeguarding,Third Party Payments,Private Domicilliary,690.83
Wigan Council ,E08000010,Alpha Homecare Ltd T/AS Alpha Nursing Agency,30/04/2015,Provider Management & Market Development,Third Party Payments,Private Domicilliary,1842.58
Wigan Council ,E08000010,Alpha Homecare Ltd T/AS Alpha Nursing Agency,30/04/2015,Provider Management & Market Development,Third Party Payments,Private Domicilliary,4022.98
Wigan Council ,E08000010,Alpha Homecare Ltd T/AS Alpha Nursing Agency,30/04/2015,Provider Management & Market Development,Third Party Payments,Private Domicilliary,17477.74
Wigan Council ,E08000010,Alpha Homecare Ltd T/AS Alpha Nursing Agency,30/04/2015,Provider Management & Market Development,Third Party Payments,Private Domicilliary,516.12
Wigan Council ,E08000010,Alpha Homecare Ltd T/AS Alpha Nursing Agency,30/04/2015,Provider Management & Market Development,Third Party Payments,Private Domicilliary,1994.24
Wigan Council ,E08000010,Alpha Homecare Ltd T/AS Alpha Nursing Agency,30/04/2015,Provider Management & Market Development,Third Party Payments,Private Domicilliary,4777.84
Wigan Council ,E08000010,Alpha Homecare Ltd T/AS Alpha Nursing Agency,30/04/2015,Provider Management & Market Development,Third Party Payments,Private Domicilliary,698.1
Wigan Council ,E08000010,Alpha Homecare Ltd T/AS Alpha Nursing Agency,30/04/2015,Provider Management & Market Development,Third Party Payments,Private Domicilliary,1265.77
Wigan Council ,E08000010,Alpha Homecare Ltd T/AS Alpha Nursing Agency,30/04/2015,Provider Management & Market Development,Third Party Payments,Private Domicilliary,2425.76
Wigan Council ,E08000010,Alpha Homecare Ltd T/AS Alpha Nursing Agency,30/04/2015,Support & Safeguarding,Third Party Payments,Private Domicilliary,2300.87
Wigan Council ,E08000010,Alpha Homecare Ltd T/AS Alpha Nursing Agency,30/04/2015,Early Intervention & Prevention,Third Party Payments,Private Domicilliary,5429.89
Wigan Council ,E08000010,Wigan Leisure & Culture Enterprises Ltd,08/04/2015,Corporate,Capital Expenditure,GF Capital Expenditure,7231.84
Wigan Council ,E08000010,Wigan Leisure & Culture Enterprises Ltd,17/04/2015,Planning and Transportation,Premises,Grounds Maintenance,3050.62
Wigan Council ,E08000010,Wigan Leisure & Culture Enterprises Ltd,17/04/2015,Corporate,Capital Expenditure,GF Capital Expenditure,2806.12
Wigan Council ,E08000010,Wigan Leisure & Culture Enterprises Ltd,17/04/2015,Legal,Supplies & Services,Grants to External Bodies,1500
Wigan Council ,E08000010,Wigan Leisure & Culture Enterprises Ltd,29/04/2015,Housing Revenue Account,Premises,Grounds Maintenance,6509.85
Wigan Council ,E08000010,Wigan Leisure & Culture Enterprises Ltd,29/04/2015,Housing Revenue Account,Premises,HRA Programmed Works,8266.4
Wigan Council ,E08000010,Abacus Cleaning Services Ltd,29/04/2015,Housing Revenue Account,Premises,HRA Day to Day Responsive Repairs,1495
Wigan Council ,E08000010,Abacus Cleaning Services Ltd,29/04/2015,Housing Revenue Account,Premises,HRA Day to Day Responsive Repairs,1975
Wigan Council ,E08000010,Nugent Care,23/04/2015,Provider Management & Market Development,Third Party Payments,Payments to Voluntary Organisations,11376.76
Wigan Council ,E08000010,Nugent Care,28/04/2015,Provider Management & Market Development,Third Party Payments,Voluntary Day Care,5346.67
Wigan Council ,E08000010,Nugent Care,28/04/2015,Provider Management & Market Development,Third Party Payments,Voluntary Day Care,23055.67
Wigan Council ,E08000010,ATS Euromaster Ltd,15/04/2015,Trading,Supplies & Services,Carriage,12135.1
Wigan Council ,E08000010,Terberg Matec UK Ltd,10/04/2015,Trading,Supplies & Services,Direct Materials,768.3
Wigan Council ,E08000010,Terberg Matec UK Ltd,23/04/2015,Trading,Supplies & Services,Direct Materials,721.41
Wigan Council ,E08000010,REDACTED PERSONAL DATA,21/04/2015,Corporate,Capital Expenditure,GF Capital Expenditure,10000
Wigan Council ,E08000010,Catch 22,28/04/2015,Public Health,Third Party Payments,Payments to Private Contractors,2833.33
Wigan Council ,E08000010,Catch 22,28/04/2015,Early Intervention & Prevention,Third Party Payments,Payments to Private Contractors,22527.5
Wigan Council ,E08000010,Vodafone Corporate,10/04/2015,IT and Communications,Supplies & Services,Telecommunications,931.16
Wigan Council ,E08000010,Vodafone Corporate,16/04/2015,IT and Communications,Supplies & Services,Telecommunications,609.43
Wigan Council ,E08000010,Vodafone Corporate,29/04/2015,IT and Communications,Supplies & Services,Telecommunications,931.16
Wigan Council ,E08000010,Vodafone Corporate,29/04/2015,IT and Communications,Supplies & Services,Telecommunications,28575.7
Wigan Council ,E08000010,Vodafone Corporate,29/04/2015,IT and Communications,Supplies & Services,Telecommunications,29952.11
Wigan Council ,E08000010,Vodafone Corporate,29/04/2015,IT and Communications,Supplies & Services,Telecommunications,976.9
Wigan Council ,E08000010,Vodafone Corporate,29/04/2015,IT and Communications,Supplies & Services,Telecommunications,2327.79
Wigan Council ,E08000010,Unique Integrated Systems,10/04/2015,Trading,Premises,Repairs & Maintenance (Non CPMF),2252.38
Wigan Council ,E08000010,Unique Integrated Systems,10/04/2015,Trading,Premises,Repairs & Maintenance (Non CPMF),2363.1
Wigan Council ,E08000010,Unique Integrated Systems,21/04/2015,Education,Premises,Repairs & Maintenance (Non CPMF),2351.94
Wigan Council ,E08000010,Midstream (West Lancs) Ltd,10/04/2015,Provider Management & Market Development,Third Party Payments,Private Day Care,996
Wigan Council ,E08000010,Midstream (West Lancs) Ltd,10/04/2015,Provider Management & Market Development,Third Party Payments,Private Day Care,7310.88
Wigan Council ,E08000010,PTS Plumbing Trade Supplies,08/04/2015,Corporate,Capital Expenditure,HRA Capital Expenditure,5825.3
Wigan Council ,E08000010,PTS Plumbing Trade Supplies,08/04/2015,Corporate,Capital Expenditure,HRA Capital Expenditure,6609.52
Wigan Council ,E08000010,PTS Plumbing Trade Supplies,08/04/2015,Corporate,Capital Expenditure,HRA Capital Expenditure,1593.7
Wigan Council ,E08000010,PTS Plumbing Trade Supplies,08/04/2015,Corporate,Capital Expenditure,HRA Capital Expenditure,2726.1
Wigan Council ,E08000010,PTS Plumbing Trade Supplies,08/04/2015,Corporate,Capital Expenditure,HRA Capital Expenditure,651.77
Wigan Council ,E08000010,PTS Plumbing Trade Supplies,16/04/2015,Corporate,Capital Expenditure,HRA Capital Expenditure,2497.73
Wigan Council ,E08000010,PTS Plumbing Trade Supplies,21/04/2015,Corporate,Capital Expenditure,HRA Capital Expenditure,1909.75
Wigan Council ,E08000010,PTS Plumbing Trade Supplies,21/04/2015,Corporate,Capital Expenditure,HRA Capital Expenditure,1678.72
Wigan Council ,E08000010,PTS Plumbing Trade Supplies,22/04/2015,Corporate,Capital Expenditure,HRA Capital Expenditure,1017.41
Wigan Council ,E08000010,PTS Plumbing Trade Supplies,22/04/2015,Corporate,Capital Expenditure,HRA Capital Expenditure,1016.83
Wigan Council ,E08000010,PTS Plumbing Trade Supplies,22/04/2015,Corporate,Capital Expenditure,HRA Capital Expenditure,990.88
Wigan Council ,E08000010,PTS Plumbing Trade Supplies,22/04/2015,Corporate,Capital Expenditure,HRA Capital Expenditure,2584.49
Wigan Council ,E08000010,PTS Plumbing Trade Supplies,24/04/2015,Corporate,Capital Expenditure,HRA Capital Expenditure,1821.62
Wigan Council ,E08000010,PTS Plumbing Trade Supplies,24/04/2015,Corporate,Capital Expenditure,HRA Capital Expenditure,518.6
Wigan Council ,E08000010,PTS Plumbing Trade Supplies,24/04/2015,Corporate,Capital Expenditure,HRA Capital Expenditure,509.82
Wigan Council ,E08000010,PTS Plumbing Trade Supplies,24/04/2015,Corporate,Capital Expenditure,HRA Capital Expenditure,2590.43
Wigan Council ,E08000010,PTS Plumbing Trade Supplies,24/04/2015,Corporate,Capital Expenditure,HRA Capital Expenditure,1375.28
Wigan Council ,E08000010,PTS Plumbing Trade Supplies,29/04/2015,Corporate,Capital Expenditure,HRA Capital Expenditure,869.09
Wigan Council ,E08000010,PTS Plumbing Trade Supplies,29/04/2015,Corporate,Capital Expenditure,HRA Capital Expenditure,627.04
Wigan Council ,E08000010,PTS Plumbing Trade Supplies,29/04/2015,Corporate,Capital Expenditure,HRA Capital Expenditure,2751.46
Wigan Council ,E08000010,PTS Plumbing Trade Supplies,30/04/2015,Corporate,Capital Expenditure,HRA Capital Expenditure,2251.18
Wigan Council ,E08000010,PTS Plumbing Trade Supplies,30/04/2015,Corporate,Capital Expenditure,HRA Capital Expenditure,547.19
Wigan Council ,E08000010,Caritas Care Ltd,16/04/2015,Targeted Services,Third Party Payments,Payments to Voluntary Organisations,9000
Wigan Council ,E08000010,Noahs Ark Playschool,01/04/2015,Childrens - Departmental Overheads,Third Party Payments,Nursery Grant Payments,12939.19
Wigan Council ,E08000010,Oaklea Private Day Nursery,01/04/2015,Childrens - Departmental Overheads,Third Party Payments,Nursery Grant Payments,17728.2
Wigan Council ,E08000010,St Thomas Pre School,01/04/2015,Childrens - Departmental Overheads,Third Party Payments,Nursery Grant Payments,15059.52
Wigan Council ,E08000010,First Steps Nursery (Leigh Branch),01/04/2015,Childrens - Departmental Overheads,Third Party Payments,Nursery Grant Payments,10856.16
Wigan Council ,E08000010,Squirrels Day Nursery,01/04/2015,Childrens - Departmental Overheads,Third Party Payments,Nursery Grant Payments,19121.76
Wigan Council ,E08000010,Playdays,07/04/2015,Childrens - Departmental Overheads,Third Party Payments,Nursery Grant Payments,9621.36
